Workbook

Sheet Instructions
B2: =CONCATENATE(dms_Sector," ",dms_Segment," ", "Network Service Provider") -> Gas Distribution Network Service Provider
B3: =IF(dms_Model="Reset","Regulatory Proposal RIN Template","Annual Reporting RIN") -> Annual Reporting RIN
B4: =CONCATENATE("This template is to be used by ",INDEX(dms_TradingNameFull_List,MATCH(dms_TradingName,dms_TradingName_List))," to fulfil its reporting obligations to the AER.") -> This template is to be used by Jemena Gas Networks (NSW) Ltd to fulfil its reporting obligations to the AER.
B5: INSTRUCTIONS
B6: GENERAL | C6: Complete the Business & other details worksheet before entering data or values in any other worksheets. The Business & other details worksheet is linked to other worksheets within the workbook and automatically generates certain column headings and conditional formatting.
B8: CONFIDENTIAL INFORMATION | C8: Businesses must use the macro at the top of each worksheet to identify confidential information in the confidential workbook and where confidential information has been removed in the public workbook.
C9: -Do this by selecting the cell or cells that contain confidential information and then run the CONFIDENTIAL macro. This will format the cells a specific colour that is identified by the AER's database which in turn marks that information as confidential. -To reverse this, select the cell or cells and run the NON-CONFIDENTIAL macro.
B11: PROTECTED (SOCI) INFORMATION | C11: Please use the macro at the top of each worksheet to identify information in the confidential workbook that is protected information under the SOCI Act. All information marked Protected (SOCI) is also deemed to be confidential information.
C12: -Do this by selecting the cell or cells that contain protected information and then run the PROTECTED (SOCI) macro. This will format the cells a specific colour that is identified by the AER's database which in turn marks that information as protected.. -To reverse this, select the cell or cells and run the NON-PROTECTED macro.
B14: RESPONSES | C14: Please return two (2) files to the AER: 1. A confidential version which must contain a complete set of all responses with confidential information marked using the Mark selection CONFIDENTIAL macro and which has been completed using the locked template file provided by the AER. 2. A public version with confidential information redacted or aggregated. Use the drop down box on the Business and other details worksheet to identify the file as either confidential or public.
B17: ORDER OF MAGNITUDE | C17: All amounts are to be unrounded and reported on a one for one basis: that is 1000 is to be entered as '1000'.
B19: INPUT / NON-INPUT CELLS
D20: Yellow = Input cell (mandatory)
D21: Darker yellow = input cell (mandatory)
D22: Orange = input cell (if data available)
D23: Grey = Not applicable/No inputs required
D24: PLEASE DO NOT ENTER TEXT into cells that are to contain numbers (including 'numbers stored as text')

Sheet CONTENTS
B1: =INDEX(dms_Worksheet_List,MATCH(dms_Model,dms_Model_List)) -> REGULATORY REPORTING - HISTORICAL DATA
B2: =dms_TradingName -> JGN
B3: =dms_Header_Span -> 2018-19 to 2022-23
C7: CONTENTS
C9: TEMPLATE DATE | D9: FEBRUARY 2024
C11: SUBMISSION | D11: Business & other details
C13: EXPENDITURE | D13: E2. Mains Repex
D14: E3. Mains Augex
D15: E4. Meter replacement
D16: E5. New Connections
D17: E6. Non-network
D18: E10. Overheads
D19: E12. ICT
D20: E13. Other capex
C22: SERVICE | D22: S1. Customer numbers - by customer type
C24: ADMIN | D24: Additional disclosures

Sheet Business & other details
V1: =INDEX(dms_Worksheet_List,MATCH(dms_Model,dms_Model_List)) -> REGULATORY REPORTING - HISTORICAL DATA
V2: =dms_TradingNameFull -> Jemena Gas Networks (NSW) Ltd
V3: =dms_Header_Span -> 2018-19 to 2022-23
V4: BUSINESS & OTHER DETAILS
V6: INSTRUCTIONS
V7: Complete the following business details regulatory template before entering data or values in any other regulatory template. This regulatory template is linked to other cells within the spreadsheet and automatically generates column headings and conditional formatting to distinguish business specific input and non-input cells.
Q9: SUBMISSION PARTICULARS INPUT SHEET
V12: ENTITY DETAILS
V14: Business Name
V16: Short name | AL16: JGN
V17: ACN/ABN | AL17: =INDEX(dms_ABN_List,MATCH(dms_TradingName,dms_TradingName_List)) -> 003 004 322
V20: Business Address | BQ20: Postal Address
V22: Address 1 | AL22: =INDEX(dms_Addr1_List,MATCH(dms_TradingName,dms_TradingName_List)) -> 0 | BI22: Address 1 | BQ22: =INDEX(dms_PAddr1_List,MATCH(dms_TradingName,dms_TradingName_List)) -> 0
V23: Address 2 | AL23: =IF(ISBLANK(INDEX(dms_Addr2_List,MATCH(dms_TradingName,dms_TradingName_List))),"",(INDEX(dms_Addr2_List,MATCH(dms_TradingName,dms_TradingName_List)))) ->  | BI23: Address 2 | BQ23: =IF(ISBLANK(INDEX(dms_PAddr2_List,MATCH(dms_TradingName,dms_TradingName_List))),"",(INDEX(dms_PAddr2_List,MATCH(dms_TradingName,dms_TradingName_List)))) -> 
V24: Suburb | BI24: Suburb
V25: State | AL25: NSW | AV25: Post code | BI25: State | BQ25: NSW | CA25: Post code
BA27: `
V29: Contact Names
V31: Name | BI31: Name
V32: Phone | BI32: Phone
V33: Email | BI33: Email
Q38: REGULATORY PERIODS
Z41: Forthcoming period | AL41: 2018-19 | AU41: =FRCP_y2 -> 2019-20 | BD41: =FRCP_y3 -> 2020-21 | BM41: =FRCP_y4 -> 2021-22 | BV41: =FRCP_y5 -> 2022-23
AL42: =FRCP_y6 -> 2023-24 | AU42: =FRCP_y7 -> 2024-25 | BD42: =FRCP_y8 -> 2025-26 | BM42: =FRCP_y9 -> 2026-27 | BV42: =FRCP_y10 -> 2027-28
AL43: =FRCP_y11 -> 2028-29 | AU43: =FRCP_y12 -> 2029-30 | BD43: =FRCP_y13 -> 2030-31 | BM43: =FRCP_y14 -> 2031-32 | BV43: =FRCP_y15 -> 2032-33
X45: RESETS | Z45: Current period | AL45: =CRCP_y1 -> 2013-14 | AU45: =CRCP_y2 -> 2014-15 | BD45: =CRCP_y3 -> 2015-16 | BM45: =CRCP_y4 -> 2016-17 | BV45: =CRCP_y5 -> 2017-18
AL46: =CRCP_y6 -> 2018-19 | AU46: =CRCP_y7 -> 2019-20 | BD46: =CRCP_y8 -> 2020-21 | BM46: =CRCP_y9 -> 2021-22 | BV46: =CRCP_y10 -> 2022-23
AL47: =CRCP_y11 -> 2023-24 | AU47: =CRCP_y12 -> 2024-25 | BD47: =CRCP_y13 -> 2025-26 | BM47: =CRCP_y14 -> 2026-27 | BV47: =CRCP_y15 -> 2027-28
Z49: Previous period | AL49: =PRCP_y1 -> 2008-09 | AU49: =PRCP_y2 -> 2009-10 | BD49: =PRCP_y3 -> 2010-11 | BM49: =PRCP_y4 -> 2011-12 | BV49: =PRCP_y5 -> 2012-13
AL50: =PRCP_y6 -> 2013-14 | AU50: =PRCP_y7 -> 2014-15 | BD50: =PRCP_y8 -> 2015-16 | BM50: =PRCP_y9 -> 2016-17 | BV50: =PRCP_y10 -> 2017-18
AL51: =PRCP_y11 -> 2018-19 | AU51: =PRCP_y12 -> 2019-20 | BD51: =PRCP_y13 -> 2020-21 | BM51: =PRCP_y14 -> 2021-22 | BV51: =PRCP_y15 -> 2022-23
Z53: Commencing year | AL53: 2018-19
X54: ANNUAL RINS
Z55: Final year | AL55: 2022-23
Q59: SUBMISSION DETAILS
Z61: RIN type | AL61: =INDIRECT(dms_Model) -> Annual Reporting
Z63: Source | AL63: Reporting
X65: THIS FILE | Z65: Data Quality | AL65: Consolidated
Z67: Confidentiality Status | AL67: Public
Z69: Amendment Reason | AL69: .
Z71: Submission Date | AL71: dd/mm/yy | BE71: Please enter date this file submitted to AER

Sheet E2. Mains Repex
B1: =INDEX(dms_Worksheet_List,MATCH(dms_Model,dms_Model_List)) -> REGULATORY REPORTING - HISTORICAL DATA
B2: =dms_TradingNameFull -> Jemena Gas Networks (NSW) Ltd
B3: =dms_Header_Span -> 2018-19 to 2022-23
B4: E2. MAINS REPLACEMENT
B5: FINAL RIN TEMPLATE - FEBRUARY 2024
B8: Please list all projects or categories here:
B9: Bidwell mains and service area renewal
B10: Bombo Bridge Main Insertion
B11: Kurri Kurri Rehabilitation 100kPa
B12: Maitland 2kPa Rehabilitation
B13: Matraville 2kPa and 7kPa Rehabilitation
B14: Mittagong Rehabilitation
B15: Mt Druitt Steel Rehabilitation
B61: E2.1 - CAPEX
B62: E2.1.1 - PROACTIVE - BY PROJECT
D63: EXPENDITURE
D64: $
D65: =dms_y1 -> 2018-19 | E65: =dms_y2 -> 2019-20 | F65: =dms_y3 -> 2020-21 | G65: =dms_y4 -> 2021-22 | H65: =dms_y5 -> 2022-23
B66: A. DIRECT INTERNAL LABOUR EXPENDITURE
B67: =IF(ISBLANK(dms_E2_Projects_01),"",dms_E2_Projects_01) -> Bidwell mains and service area renewal | D67: 0 | E67: 27355.47 | F67: 0 | G67: 0 | H67: 0
B68: =IF(ISBLANK(dms_E2_Projects_02),"",dms_E2_Projects_02) -> Bombo Bridge Main Insertion | D68: 0 | E68: 0 | F68: 0 | G68: 0 | H68: 13986.17
B69: =IF(ISBLANK(dms_E2_Projects_03),"",dms_E2_Projects_03) -> Kurri Kurri Rehabilitation 100kPa | D69: 0 | E69: 0 | F69: 24123.36 | G69: 0 | H69: 0
B70: =IF(ISBLANK(dms_E2_Projects_04),"",dms_E2_Projects_04) -> Maitland 2kPa Rehabilitation | D70: 0 | E70: 22125.9 | F70: 0 | G70: 0 | H70: 0
B71: =IF(ISBLANK(dms_E2_Projects_05),"",dms_E2_Projects_05) -> Matraville 2kPa and 7kPa Rehabilitation | D71: 0 | E71: 0 | F71: 0 | G71: 12089.72 | H71: 8285.41
B72: =IF(ISBLANK(dms_E2_Projects_06),"",dms_E2_Projects_06) -> Mittagong Rehabilitation | D72: 0 | E72: 0 | F72: 0 | G72: 1146.3 | H72: 0
B73: =IF(ISBLANK(dms_E2_Projects_07),"",dms_E2_Projects_07) -> Mt Druitt Steel Rehabilitation | D73: 92504.64 | E73: 0 | F73: 0 | G73: 0 | H73: 0
B74: =IF(ISBLANK(dms_E2_Projects_08),"",dms_E2_Projects_08) -> 
B75: =IF(ISBLANK(dms_E2_Projects_09),"",dms_E2_Projects_09) -> 
B76: =IF(ISBLANK(dms_E2_Projects_10),"",dms_E2_Projects_10) -> 
B77: =IF(ISBLANK(dms_E2_Projects_11),"",dms_E2_Projects_11) -> 
B78: =IF(ISBLANK(dms_E2_Projects_12),"",dms_E2_Projects_12) -> 
B79: =IF(ISBLANK(dms_E2_Projects_13),"",dms_E2_Projects_13) -> 
B80: =IF(ISBLANK(dms_E2_Projects_14),"",dms_E2_Projects_14) -> 
B81: =IF(ISBLANK(dms_E2_Projects_15),"",dms_E2_Projects_15) -> 
B82: =IF(ISBLANK(dms_E2_Projects_16),"",dms_E2_Projects_16) -> 
B83: =IF(ISBLANK(dms_E2_Projects_17),"",dms_E2_Projects_17) -> 
B84: =IF(ISBLANK(dms_E2_Projects_18),"",dms_E2_Projects_18) -> 
B85: =IF(ISBLANK(dms_E2_Projects_18),"",dms_E2_Projects_18) -> 
B86: =IF(ISBLANK(dms_E2_Projects_19),"",dms_E2_Projects_19) -> 
B87: =IF(ISBLANK(dms_E2_Projects_20),"",dms_E2_Projects_20) -> 
B88: =IF(ISBLANK(dms_E2_Projects_21),"",dms_E2_Projects_21) -> 
B89: =IF(ISBLANK(dms_E2_Projects_22),"",dms_E2_Projects_22) -> 
B90: =IF(ISBLANK(dms_E2_Projects_23),"",dms_E2_Projects_23) -> 
B91: =IF(ISBLANK(dms_E2_Projects_24),"",dms_E2_Projects_24) -> 
B92: =IF(ISBLANK(dms_E2_Projects_25),"",dms_E2_Projects_26) -> 
B93: =IF(ISBLANK(dms_E2_Projects_27),"",dms_E2_Projects_27) -> 
B94: =IF(ISBLANK(dms_E2_Projects_28),"",dms_E2_Projects_28) -> 
B95: =IF(ISBLANK(dms_E2_Projects_29),"",dms_E2_Projects_29) -> 
B96: =IF(ISBLANK(dms_E2_Projects_30),"",dms_E2_Projects_30) -> 
B97: =IF(ISBLANK(dms_E2_Projects_31),"",dms_E2_Projects_31) -> 
B98: =IF(ISBLANK(dms_E2_Projects_32),"",dms_E2_Projects_32) -> 
B99: =IF(ISBLANK(dms_E2_Projects_33),"",dms_E2_Projects_33) -> 
B100: =IF(ISBLANK(dms_E2_Projects_34),"",dms_E2_Projects_34) -> 
B101: =IF(ISBLANK(dms_E2_Projects_35),"",dms_E2_Projects_35) -> 
B102: =IF(ISBLANK(dms_E2_Projects_36),"",dms_E2_Projects_36) -> 
B103: =IF(ISBLANK(dms_E2_Projects_37),"",dms_E2_Projects_37) -> 
B104: =IF(ISBLANK(dms_E2_Projects_38),"",dms_E2_Projects_38) -> 
B105: =IF(ISBLANK(dms_E2_Projects_39),"",dms_E2_Projects_39) -> 
B106: =IF(ISBLANK(dms_E2_Projects_40),"",dms_E2_Projects_40) -> 
B107: =IF(ISBLANK(dms_E2_Projects_41),"",dms_E2_Projects_41) -> 
B108: =IF(ISBLANK(dms_E2_Projects_42),"",dms_E2_Projects_42) -> 
B109: =IF(ISBLANK(dms_E2_Projects_43),"",dms_E2_Projects_43) -> 
B110: =IF(ISBLANK(dms_E2_Projects_44),"",dms_E2_Projects_44) -> 
B111: =IF(ISBLANK(dms_E2_Projects_45),"",dms_E2_Projects_45) -> 
B112: =IF(ISBLANK(dms_E2_Projects_46),"",dms_E2_Projects_46) -> 
B113: =IF(ISBLANK(dms_E2_Projects_47),"",dms_E2_Projects_47) -> 
B114: =IF(ISBLANK(dms_E2_Projects_48),"",dms_E2_Projects_48) -> 
B115: =IF(ISBLANK(dms_E2_Projects_49),"",dms_E2_Projects_49) -> 
B116: =IF(ISBLANK(dms_E2_Projects_50),"",dms_E2_Projects_50) -> 
B117: Other projects or categories with expenditure of less than $500,000 | D117: 136519.63 | E117: 64648.15 | F117: 10234.15 | G117: 101314.08 | H117: 43684.23
C118: Total | D118: =SUM(D67:D117) -> 229024.27 | E118: =SUM(E67:E117) -> 114129.52 | F118: =SUM(F67:F117) -> 34357.51 | G118: =SUM(G67:G117) -> 114550.1 | H118: =SUM(H67:H117) -> 65955.81
B120: B. DIRECT CONTRACTOR EXPENDITURE
D121: EXPENDITURE
D122: $
D123: =dms_y1 -> 2018-19 | E123: =dms_y2 -> 2019-20 | F123: =dms_y3 -> 2020-21 | G123: =dms_y4 -> 2021-22 | H123: =dms_y5 -> 2022-23
B124: =IF(ISBLANK(dms_E2_Projects_01),"",dms_E2_Projects_01) -> Bidwell mains and service area renewal
B125: =IF(ISBLANK(dms_E2_Projects_02),"",dms_E2_Projects_02) -> Bombo Bridge Main Insertion
B126: =IF(ISBLANK(dms_E2_Projects_03),"",dms_E2_Projects_03) -> Kurri Kurri Rehabilitation 100kPa
B127: =IF(ISBLANK(dms_E2_Projects_04),"",dms_E2_Projects_04) -> Maitland 2kPa Rehabilitation
B128: =IF(ISBLANK(dms_E2_Projects_05),"",dms_E2_Projects_05) -> Matraville 2kPa and 7kPa Rehabilitation
B129: =IF(ISBLANK(dms_E2_Projects_06),"",dms_E2_Projects_06) -> Mittagong Rehabilitation
B130: =IF(ISBLANK(dms_E2_Projects_07),"",dms_E2_Projects_07) -> Mt Druitt Steel Rehabilitation
B131: =IF(ISBLANK(dms_E2_Projects_08),"",dms_E2_Projects_08) -> 
B132: =IF(ISBLANK(dms_E2_Projects_09),"",dms_E2_Projects_09) -> 
B133: =IF(ISBLANK(dms_E2_Projects_10),"",dms_E2_Projects_10) -> 
B134: =IF(ISBLANK(dms_E2_Projects_11),"",dms_E2_Projects_11) -> 
B135: =IF(ISBLANK(dms_E2_Projects_12),"",dms_E2_Projects_12) -> 
B136: =IF(ISBLANK(dms_E2_Projects_13),"",dms_E2_Projects_13) -> 
B137: =IF(ISBLANK(dms_E2_Projects_14),"",dms_E2_Projects_14) -> 
B138: =IF(ISBLANK(dms_E2_Projects_15),"",dms_E2_Projects_15) -> 
B139: =IF(ISBLANK(dms_E2_Projects_16),"",dms_E2_Projects_16) -> 
B140: =IF(ISBLANK(dms_E2_Projects_17),"",dms_E2_Projects_17) -> 
B141: =IF(ISBLANK(dms_E2_Projects_18),"",dms_E2_Projects_18) -> 
B142: =IF(ISBLANK(dms_E2_Projects_18),"",dms_E2_Projects_18) -> 
B143: =IF(ISBLANK(dms_E2_Projects_19),"",dms_E2_Projects_19) -> 
B144: =IF(ISBLANK(dms_E2_Projects_20),"",dms_E2_Projects_20) -> 
B145: =IF(ISBLANK(dms_E2_Projects_21),"",dms_E2_Projects_21) -> 
B146: =IF(ISBLANK(dms_E2_Projects_22),"",dms_E2_Projects_22) -> 
B147: =IF(ISBLANK(dms_E2_Projects_23),"",dms_E2_Projects_23) -> 
B148: =IF(ISBLANK(dms_E2_Projects_24),"",dms_E2_Projects_24) -> 
B149: =IF(ISBLANK(dms_E2_Projects_25),"",dms_E2_Projects_26) -> 
B150: =IF(ISBLANK(dms_E2_Projects_27),"",dms_E2_Projects_27) -> 
B151: =IF(ISBLANK(dms_E2_Projects_28),"",dms_E2_Projects_28) -> 
B152: =IF(ISBLANK(dms_E2_Projects_29),"",dms_E2_Projects_29) -> 
B153: =IF(ISBLANK(dms_E2_Projects_30),"",dms_E2_Projects_30) -> 
B154: =IF(ISBLANK(dms_E2_Projects_31),"",dms_E2_Projects_31) -> 
B155: =IF(ISBLANK(dms_E2_Projects_32),"",dms_E2_Projects_32) -> 
B156: =IF(ISBLANK(dms_E2_Projects_33),"",dms_E2_Projects_33) -> 
B157: =IF(ISBLANK(dms_E2_Projects_34),"",dms_E2_Projects_34) -> 
B158: =IF(ISBLANK(dms_E2_Projects_35),"",dms_E2_Projects_35) -> 
B159: =IF(ISBLANK(dms_E2_Projects_36),"",dms_E2_Projects_36) -> 
B160: =IF(ISBLANK(dms_E2_Projects_37),"",dms_E2_Projects_37) -> 
B161: =IF(ISBLANK(dms_E2_Projects_38),"",dms_E2_Projects_38) -> 
B162: =IF(ISBLANK(dms_E2_Projects_39),"",dms_E2_Projects_39) -> 
B163: =IF(ISBLANK(dms_E2_Projects_40),"",dms_E2_Projects_40) -> 
B164: =IF(ISBLANK(dms_E2_Projects_41),"",dms_E2_Projects_41) -> 
B165: =IF(ISBLANK(dms_E2_Projects_42),"",dms_E2_Projects_42) -> 
B166: =IF(ISBLANK(dms_E2_Projects_43),"",dms_E2_Projects_43) -> 
B167: =IF(ISBLANK(dms_E2_Projects_44),"",dms_E2_Projects_44) -> 
B168: =IF(ISBLANK(dms_E2_Projects_45),"",dms_E2_Projects_45) -> 
B169: =IF(ISBLANK(dms_E2_Projects_46),"",dms_E2_Projects_46) -> 
B170: =IF(ISBLANK(dms_E2_Projects_47),"",dms_E2_Projects_47) -> 
B171: =IF(ISBLANK(dms_E2_Projects_48),"",dms_E2_Projects_48) -> 
B172: =IF(ISBLANK(dms_E2_Projects_49),"",dms_E2_Projects_49) -> 
B173: =IF(ISBLANK(dms_E2_Projects_50),"",dms_E2_Projects_50) -> 
B174: Other projects or categories with expenditure of less than $500,000
C175: Total
B177: C. DIRECT MATERIAL EXPENDITURE
D178: EXPENDITURE
D179: $
D180: =dms_y1 -> 2018-19 | E180: =dms_y2 -> 2019-20 | F180: =dms_y3 -> 2020-21 | G180: =dms_y4 -> 2021-22 | H180: =dms_y5 -> 2022-23
B181: =IF(ISBLANK(dms_E2_Projects_01),"",dms_E2_Projects_01) -> Bidwell mains and service area renewal | D181: 0 | E181: 28517.28 | F181: 0 | G181: 0 | H181: 0
B182: =IF(ISBLANK(dms_E2_Projects_02),"",dms_E2_Projects_02) -> Bombo Bridge Main Insertion | D182: 0 | E182: 0 | F182: 0 | G182: 0 | H182: 0
B183: =IF(ISBLANK(dms_E2_Projects_03),"",dms_E2_Projects_03) -> Kurri Kurri Rehabilitation 100kPa | D183: 0 | E183: 0 | F183: 50631.64 | G183: 0 | H183: 0
B184: =IF(ISBLANK(dms_E2_Projects_04),"",dms_E2_Projects_04) -> Maitland 2kPa Rehabilitation | D184: 0 | E184: 204253.45 | F184: 0 | G184: 0 | H184: 0
B185: =IF(ISBLANK(dms_E2_Projects_05),"",dms_E2_Projects_05) -> Matraville 2kPa and 7kPa Rehabilitation | D185: 0 | E185: 0 | F185: 0 | G185: 0 | H185: 0
B186: =IF(ISBLANK(dms_E2_Projects_06),"",dms_E2_Projects_06) -> Mittagong Rehabilitation | D186: 0 | E186: 0 | F186: 0 | G186: 261.44 | H186: 0
B187: =IF(ISBLANK(dms_E2_Projects_07),"",dms_E2_Projects_07) -> Mt Druitt Steel Rehabilitation | D187: 0 | E187: 0 | F187: 0 | G187: 0 | H187: 0
B188: =IF(ISBLANK(dms_E2_Projects_08),"",dms_E2_Projects_08) -> 
B189: =IF(ISBLANK(dms_E2_Projects_09),"",dms_E2_Projects_09) -> 
B190: =IF(ISBLANK(dms_E2_Projects_10),"",dms_E2_Projects_10) -> 
B191: =IF(ISBLANK(dms_E2_Projects_11),"",dms_E2_Projects_11) -> 
B192: =IF(ISBLANK(dms_E2_Projects_12),"",dms_E2_Projects_12) -> 
B193: =IF(ISBLANK(dms_E2_Projects_13),"",dms_E2_Projects_13) -> 
B194: =IF(ISBLANK(dms_E2_Projects_14),"",dms_E2_Projects_14) -> 
B195: =IF(ISBLANK(dms_E2_Projects_15),"",dms_E2_Projects_15) -> 
B196: =IF(ISBLANK(dms_E2_Projects_16),"",dms_E2_Projects_16) -> 
B197: =IF(ISBLANK(dms_E2_Projects_17),"",dms_E2_Projects_17) -> 
B198: =IF(ISBLANK(dms_E2_Projects_18),"",dms_E2_Projects_18) -> 
B199: =IF(ISBLANK(dms_E2_Projects_18),"",dms_E2_Projects_18) -> 
B200: =IF(ISBLANK(dms_E2_Projects_19),"",dms_E2_Projects_19) -> 
B201: =IF(ISBLANK(dms_E2_Projects_20),"",dms_E2_Projects_20) -> 
B202: =IF(ISBLANK(dms_E2_Projects_21),"",dms_E2_Projects_21) -> 
B203: =IF(ISBLANK(dms_E2_Projects_22),"",dms_E2_Projects_22) -> 
B204: =IF(ISBLANK(dms_E2_Projects_23),"",dms_E2_Projects_23) -> 
B205: =IF(ISBLANK(dms_E2_Projects_24),"",dms_E2_Projects_24) -> 
B206: =IF(ISBLANK(dms_E2_Projects_25),"",dms_E2_Projects_26) -> 
B207: =IF(ISBLANK(dms_E2_Projects_27),"",dms_E2_Projects_27) -> 
B208: =IF(ISBLANK(dms_E2_Projects_28),"",dms_E2_Projects_28) -> 
B209: =IF(ISBLANK(dms_E2_Projects_29),"",dms_E2_Projects_29) -> 
B210: =IF(ISBLANK(dms_E2_Projects_30),"",dms_E2_Projects_30) -> 
B211: =IF(ISBLANK(dms_E2_Projects_31),"",dms_E2_Projects_31) -> 
B212: =IF(ISBLANK(dms_E2_Projects_32),"",dms_E2_Projects_32) -> 
B213: =IF(ISBLANK(dms_E2_Projects_33),"",dms_E2_Projects_33) -> 
B214: =IF(ISBLANK(dms_E2_Projects_34),"",dms_E2_Projects_34) -> 
B215: =IF(ISBLANK(dms_E2_Projects_35),"",dms_E2_Projects_35) -> 
B216: =IF(ISBLANK(dms_E2_Projects_36),"",dms_E2_Projects_36) -> 
B217: =IF(ISBLANK(dms_E2_Projects_37),"",dms_E2_Projects_37) -> 
B218: =IF(ISBLANK(dms_E2_Projects_38),"",dms_E2_Projects_38) -> 
B219: =IF(ISBLANK(dms_E2_Projects_39),"",dms_E2_Projects_39) -> 
B220: =IF(ISBLANK(dms_E2_Projects_40),"",dms_E2_Projects_40) -> 
B221: =IF(ISBLANK(dms_E2_Projects_41),"",dms_E2_Projects_41) -> 
B222: =IF(ISBLANK(dms_E2_Projects_42),"",dms_E2_Projects_42) -> 
B223: =IF(ISBLANK(dms_E2_Projects_43),"",dms_E2_Projects_43) -> 
B224: =IF(ISBLANK(dms_E2_Projects_44),"",dms_E2_Projects_44) -> 
B225: =IF(ISBLANK(dms_E2_Projects_45),"",dms_E2_Projects_45) -> 
B226: =IF(ISBLANK(dms_E2_Projects_46),"",dms_E2_Projects_46) -> 
B227: =IF(ISBLANK(dms_E2_Projects_47),"",dms_E2_Projects_47) -> 
B228: =IF(ISBLANK(dms_E2_Projects_48),"",dms_E2_Projects_48) -> 
B229: =IF(ISBLANK(dms_E2_Projects_49),"",dms_E2_Projects_49) -> 
B230: =IF(ISBLANK(dms_E2_Projects_50),"",dms_E2_Projects_50) -> 
B231: Other projects or categories with expenditure of less than $500,000 | D231: 346.56 | E231: 0 | F231: 18115.89 | G231: 0 | H231: 0
C232: Total | D232: =SUM(D181:D231) -> 346.56 | E232: =SUM(E181:E231) -> 232770.73 | F232: =SUM(F181:F231) -> 68747.53 | G232: =SUM(G181:G231) -> 261.44 | H232: =SUM(H181:H231) -> 0
B234: D. OTHER DIRECT EXPENDITURE
D235: EXPENDITURE
D236: $
D237: =dms_y1 -> 2018-19 | E237: =dms_y2 -> 2019-20 | F237: =dms_y3 -> 2020-21 | G237: =dms_y4 -> 2021-22 | H237: =dms_y5 -> 2022-23
B238: =IF(ISBLANK(dms_E2_Projects_01),"",dms_E2_Projects_01) -> Bidwell mains and service area renewal | D238: 0 | E238: 399.26 | F238: 0 | G238: 0 | H238: 0
B239: =IF(ISBLANK(dms_E2_Projects_02),"",dms_E2_Projects_02) -> Bombo Bridge Main Insertion | D239: 0 | E239: 0 | F239: 0 | G239: 0 | H239: 0
B240: =IF(ISBLANK(dms_E2_Projects_03),"",dms_E2_Projects_03) -> Kurri Kurri Rehabilitation 100kPa | D240: 0 | E240: 0 | F240: 0 | G240: 0 | H240: 0
B241: =IF(ISBLANK(dms_E2_Projects_04),"",dms_E2_Projects_04) -> Maitland 2kPa Rehabilitation | D241: 0 | E241: 45.45 | F241: 0 | G241: 0 | H241: 0
B242: =IF(ISBLANK(dms_E2_Projects_05),"",dms_E2_Projects_05) -> Matraville 2kPa and 7kPa Rehabilitation | D242: 0 | E242: 0 | F242: 0 | G242: 0 | H242: 0
B243: =IF(ISBLANK(dms_E2_Projects_06),"",dms_E2_Projects_06) -> Mittagong Rehabilitation | D243: 0 | E243: 0 | F243: 0 | G243: 51.54 | H243: 0
B244: =IF(ISBLANK(dms_E2_Projects_07),"",dms_E2_Projects_07) -> Mt Druitt Steel Rehabilitation | D244: 37028.48 | E244: 0 | F244: 0 | G244: 0 | H244: 0
B245: =IF(ISBLANK(dms_E2_Projects_08),"",dms_E2_Projects_08) -> 
B246: =IF(ISBLANK(dms_E2_Projects_09),"",dms_E2_Projects_09) -> 
B247: =IF(ISBLANK(dms_E2_Projects_10),"",dms_E2_Projects_10) -> 
B248: =IF(ISBLANK(dms_E2_Projects_11),"",dms_E2_Projects_11) -> 
B249: =IF(ISBLANK(dms_E2_Projects_12),"",dms_E2_Projects_12) -> 
B250: =IF(ISBLANK(dms_E2_Projects_13),"",dms_E2_Projects_13) -> 
... 480 more rows

Sheet E3. Mains Augex
B1: =INDEX(dms_Worksheet_List,MATCH(dms_Model,dms_Model_List)) -> REGULATORY REPORTING - HISTORICAL DATA
B2: =dms_TradingNameFull -> Jemena Gas Networks (NSW) Ltd
B3: =dms_Header_Span -> 2018-19 to 2022-23
B4: E3. MAINS AUGMENTATION
B5: FINAL RIN TEMPLATE - FEBRUARY 2024
B8: Please list all projects or categories here:
B9: NGSF AGL Hexham
B10: Malabar Biomethane JGN Secondary Ext CTS
B11: Parramatta square - Walker Corp Dvlpmnt
B12: QVMH Development - Thirmere
B13: Cecil Park CDP-Elizabeth Dr
B14: 2021 Routine Mains Upgrade Projects
B15: Northern Primary Main
B16: Rouse Hill CDPs
B61: E3.1 - CAPEX BY PROJECT
B62: A. DIRECT INTERNAL LABOUR EXPENDITURE
C63: EXPENDITURE
C64: $
C65: =dms_y1 -> 2018-19 | D65: =dms_y2 -> 2019-20 | E65: =dms_y3 -> 2020-21 | F65: =dms_y4 -> 2021-22 | G65: =dms_y5 -> 2022-23
B66: =IF(ISBLANK(dms_E3_Projects_01),"",dms_E3_Projects_01) -> NGSF AGL Hexham | C66: 212003.56 | D66: 0 | E66: 0 | F66: 0 | G66: 0
B67: =IF(ISBLANK(dms_E3_Projects_02),"",dms_E3_Projects_02) -> Malabar Biomethane JGN Secondary Ext CTS | C67: 0 | D67: 14279.53 | E67: 37856.66 | F67: 48547.69 | G67: 0
B68: =IF(ISBLANK(dms_E3_Projects_03),"",dms_E3_Projects_03) -> Parramatta square - Walker Corp Dvlpmnt | C68: 125748.16 | D68: 3287.8 | E68: 0 | F68: 0 | G68: 0
B69: =IF(ISBLANK(dms_E3_Projects_04),"",dms_E3_Projects_04) -> QVMH Development - Thirmere | C69: 0 | D69: 0 | E69: 0 | F69: 0 | G69: 0
B70: =IF(ISBLANK(dms_E3_Projects_05),"",dms_E3_Projects_05) -> Cecil Park CDP-Elizabeth Dr | C70: 0 | D70: 1706.2 | E70: 17294.11 | F70: 83595.05 | G70: 11408.43
B71: =IF(ISBLANK(dms_E3_Projects_06),"",dms_E3_Projects_06) -> 2021 Routine Mains Upgrade Projects | C71: 0 | D71: 0 | E71: 1279.65 | F71: 0 | G71: 12708.86
B72: =IF(ISBLANK(dms_E3_Projects_07),"",dms_E3_Projects_07) -> Northern Primary Main | C72: 852.6 | D72: 0 | E72: 0 | F72: 0 | G72: 0
B73: =IF(ISBLANK(dms_E3_Projects_08),"",dms_E3_Projects_08) -> Rouse Hill CDPs | C73: 1592.22 | D73: 0 | E73: 0 | F73: 0 | G73: 0
B74: =IF(ISBLANK(dms_E3_Projects_09),"",dms_E3_Projects_09) ->  | C74: 0 | D74: 0 | E74: 0 | F74: 0 | G74: 0
B75: =IF(ISBLANK(dms_E3_Projects_10),"",dms_E3_Projects_10) ->  | C75: 0 | D75: 0 | E75: 0 | F75: 0 | G75: 0
B76: =IF(ISBLANK(dms_E3_Projects_11),"",dms_E3_Projects_11) -> 
B77: =IF(ISBLANK(dms_E3_Projects_12),"",dms_E3_Projects_12) -> 
B78: =IF(ISBLANK(dms_E3_Projects_13),"",dms_E3_Projects_13) -> 
B79: =IF(ISBLANK(dms_E3_Projects_14),"",dms_E3_Projects_14) -> 
B80: =IF(ISBLANK(dms_E3_Projects_15),"",dms_E3_Projects_15) -> 
B81: =IF(ISBLANK(dms_E3_Projects_16),"",dms_E3_Projects_16) -> 
B82: =IF(ISBLANK(dms_E3_Projects_17),"",dms_E3_Projects_17) -> 
B83: =IF(ISBLANK(dms_E3_Projects_18),"",dms_E3_Projects_18) -> 
B84: =IF(ISBLANK(dms_E3_Projects_18),"",dms_E3_Projects_18) -> 
B85: =IF(ISBLANK(dms_E3_Projects_19),"",dms_E3_Projects_19) -> 
B86: =IF(ISBLANK(dms_E3_Projects_20),"",dms_E3_Projects_20) -> 
B87: =IF(ISBLANK(dms_E3_Projects_21),"",dms_E3_Projects_21) -> 
B88: =IF(ISBLANK(dms_E3_Projects_22),"",dms_E3_Projects_22) -> 
B89: =IF(ISBLANK(dms_E3_Projects_23),"",dms_E3_Projects_23) -> 
B90: =IF(ISBLANK(dms_E3_Projects_24),"",dms_E3_Projects_24) -> 
B91: =IF(ISBLANK(dms_E3_Projects_25),"",dms_E3_Projects_26) -> 
B92: =IF(ISBLANK(dms_E3_Projects_27),"",dms_E3_Projects_27) -> 
B93: =IF(ISBLANK(dms_E3_Projects_28),"",dms_E3_Projects_28) -> 
B94: =IF(ISBLANK(dms_E3_Projects_29),"",dms_E3_Projects_29) -> 
B95: =IF(ISBLANK(dms_E3_Projects_30),"",dms_E3_Projects_30) -> 
B96: =IF(ISBLANK(dms_E3_Projects_31),"",dms_E3_Projects_31) -> 
B97: =IF(ISBLANK(dms_E3_Projects_32),"",dms_E3_Projects_32) -> 
B98: =IF(ISBLANK(dms_E3_Projects_33),"",dms_E3_Projects_33) -> 
B99: =IF(ISBLANK(dms_E3_Projects_34),"",dms_E3_Projects_34) -> 
B100: =IF(ISBLANK(dms_E3_Projects_35),"",dms_E3_Projects_35) -> 
B101: =IF(ISBLANK(dms_E3_Projects_36),"",dms_E3_Projects_36) -> 
B102: =IF(ISBLANK(dms_E3_Projects_37),"",dms_E3_Projects_37) -> 
B103: =IF(ISBLANK(dms_E3_Projects_38),"",dms_E3_Projects_38) -> 
B104: =IF(ISBLANK(dms_E3_Projects_39),"",dms_E3_Projects_39) -> 
B105: =IF(ISBLANK(dms_E3_Projects_40),"",dms_E3_Projects_40) -> 
B106: =IF(ISBLANK(dms_E3_Projects_41),"",dms_E3_Projects_41) -> 
B107: =IF(ISBLANK(dms_E3_Projects_42),"",dms_E3_Projects_42) -> 
B108: =IF(ISBLANK(dms_E3_Projects_43),"",dms_E3_Projects_43) -> 
B109: =IF(ISBLANK(dms_E3_Projects_44),"",dms_E3_Projects_44) -> 
B110: =IF(ISBLANK(dms_E3_Projects_45),"",dms_E3_Projects_45) -> 
B111: =IF(ISBLANK(dms_E3_Projects_46),"",dms_E3_Projects_46) -> 
B112: =IF(ISBLANK(dms_E3_Projects_47),"",dms_E3_Projects_47) -> 
B113: =IF(ISBLANK(dms_E3_Projects_48),"",dms_E3_Projects_48) -> 
B114: =IF(ISBLANK(dms_E3_Projects_49),"",dms_E3_Projects_49) -> 
B115: =IF(ISBLANK(dms_E3_Projects_50),"",dms_E3_Projects_50) -> 
B116: Aggregate of other projects or categories with total expenditure of less than $500,000 | C116: 119257.14 | D116: 106680.35 | E116: 7496.16 | F116: 26478.98 | G116: 3657.32
B117: Total | C117: =SUM(C66:C116) -> 459453.68 | D117: =SUM(D66:D116) -> 125953.88 | E117: =SUM(E66:E116) -> 63926.58 | F117: =SUM(F66:F116) -> 158621.72 | G117: =SUM(G66:G116) -> 27774.61
B119: B. DIRECT CONTRACTOR EXPENDITURE
C120: EXPENDITURE
C121: $
C122: =dms_y1 -> 2018-19 | D122: =dms_y2 -> 2019-20 | E122: =dms_y3 -> 2020-21 | F122: =dms_y4 -> 2021-22 | G122: =dms_y5 -> 2022-23
B123: =IF(ISBLANK(dms_E3_Projects_01),"",dms_E3_Projects_01) -> NGSF AGL Hexham
B124: =IF(ISBLANK(dms_E3_Projects_02),"",dms_E3_Projects_02) -> Malabar Biomethane JGN Secondary Ext CTS
B125: =IF(ISBLANK(dms_E3_Projects_03),"",dms_E3_Projects_03) -> Parramatta square - Walker Corp Dvlpmnt
B126: =IF(ISBLANK(dms_E3_Projects_04),"",dms_E3_Projects_04) -> QVMH Development - Thirmere
B127: =IF(ISBLANK(dms_E3_Projects_05),"",dms_E3_Projects_05) -> Cecil Park CDP-Elizabeth Dr
B128: =IF(ISBLANK(dms_E3_Projects_06),"",dms_E3_Projects_06) -> 2021 Routine Mains Upgrade Projects
B129: =IF(ISBLANK(dms_E3_Projects_07),"",dms_E3_Projects_07) -> Northern Primary Main
B130: =IF(ISBLANK(dms_E3_Projects_08),"",dms_E3_Projects_08) -> Rouse Hill CDPs
B131: =IF(ISBLANK(dms_E3_Projects_09),"",dms_E3_Projects_09) -> 
B132: =IF(ISBLANK(dms_E3_Projects_10),"",dms_E3_Projects_10) -> 
B133: =IF(ISBLANK(dms_E3_Projects_11),"",dms_E3_Projects_11) -> 
B134: =IF(ISBLANK(dms_E3_Projects_12),"",dms_E3_Projects_12) -> 
B135: =IF(ISBLANK(dms_E3_Projects_13),"",dms_E3_Projects_13) -> 
B136: =IF(ISBLANK(dms_E3_Projects_14),"",dms_E3_Projects_14) -> 
B137: =IF(ISBLANK(dms_E3_Projects_15),"",dms_E3_Projects_15) -> 
B138: =IF(ISBLANK(dms_E3_Projects_16),"",dms_E3_Projects_16) -> 
B139: =IF(ISBLANK(dms_E3_Projects_17),"",dms_E3_Projects_17) -> 
B140: =IF(ISBLANK(dms_E3_Projects_18),"",dms_E3_Projects_18) -> 
B141: =IF(ISBLANK(dms_E3_Projects_18),"",dms_E3_Projects_18) -> 
B142: =IF(ISBLANK(dms_E3_Projects_19),"",dms_E3_Projects_19) -> 
B143: =IF(ISBLANK(dms_E3_Projects_20),"",dms_E3_Projects_20) -> 
B144: =IF(ISBLANK(dms_E3_Projects_21),"",dms_E3_Projects_21) -> 
B145: =IF(ISBLANK(dms_E3_Projects_22),"",dms_E3_Projects_22) -> 
B146: =IF(ISBLANK(dms_E3_Projects_23),"",dms_E3_Projects_23) -> 
B147: =IF(ISBLANK(dms_E3_Projects_24),"",dms_E3_Projects_24) -> 
B148: =IF(ISBLANK(dms_E3_Projects_25),"",dms_E3_Projects_26) -> 
B149: =IF(ISBLANK(dms_E3_Projects_27),"",dms_E3_Projects_27) -> 
B150: =IF(ISBLANK(dms_E3_Projects_28),"",dms_E3_Projects_28) -> 
B151: =IF(ISBLANK(dms_E3_Projects_29),"",dms_E3_Projects_29) -> 
B152: =IF(ISBLANK(dms_E3_Projects_30),"",dms_E3_Projects_30) -> 
B153: =IF(ISBLANK(dms_E3_Projects_31),"",dms_E3_Projects_31) -> 
B154: =IF(ISBLANK(dms_E3_Projects_32),"",dms_E3_Projects_32) -> 
B155: =IF(ISBLANK(dms_E3_Projects_33),"",dms_E3_Projects_33) -> 
B156: =IF(ISBLANK(dms_E3_Projects_34),"",dms_E3_Projects_34) -> 
B157: =IF(ISBLANK(dms_E3_Projects_35),"",dms_E3_Projects_35) -> 
B158: =IF(ISBLANK(dms_E3_Projects_36),"",dms_E3_Projects_36) -> 
B159: =IF(ISBLANK(dms_E3_Projects_37),"",dms_E3_Projects_37) -> 
B160: =IF(ISBLANK(dms_E3_Projects_38),"",dms_E3_Projects_38) -> 
B161: =IF(ISBLANK(dms_E3_Projects_39),"",dms_E3_Projects_39) -> 
B162: =IF(ISBLANK(dms_E3_Projects_40),"",dms_E3_Projects_40) -> 
B163: =IF(ISBLANK(dms_E3_Projects_41),"",dms_E3_Projects_41) -> 
B164: =IF(ISBLANK(dms_E3_Projects_42),"",dms_E3_Projects_42) -> 
B165: =IF(ISBLANK(dms_E3_Projects_43),"",dms_E3_Projects_43) -> 
B166: =IF(ISBLANK(dms_E3_Projects_44),"",dms_E3_Projects_44) -> 
B167: =IF(ISBLANK(dms_E3_Projects_45),"",dms_E3_Projects_45) -> 
B168: =IF(ISBLANK(dms_E3_Projects_46),"",dms_E3_Projects_46) -> 
B169: =IF(ISBLANK(dms_E3_Projects_47),"",dms_E3_Projects_47) -> 
B170: =IF(ISBLANK(dms_E3_Projects_48),"",dms_E3_Projects_48) -> 
B171: =IF(ISBLANK(dms_E3_Projects_49),"",dms_E3_Projects_49) -> 
B172: =IF(ISBLANK(dms_E3_Projects_50),"",dms_E3_Projects_50) -> 
B173: Aggregate of other projects or categories with total expenditure of less than $500,000
B174: Total
B176: C. DIRECT MATERIAL EXPENDITURE
C177: EXPENDITURE
C178: $
C179: =dms_y1 -> 2018-19 | D179: =dms_y2 -> 2019-20 | E179: =dms_y3 -> 2020-21 | F179: =dms_y4 -> 2021-22 | G179: =dms_y5 -> 2022-23
B180: =IF(ISBLANK(dms_E3_Projects_01),"",dms_E3_Projects_01) -> NGSF AGL Hexham | C180: 122224.45 | D180: 0 | E180: 0 | F180: 0 | G180: 0
B181: =IF(ISBLANK(dms_E3_Projects_02),"",dms_E3_Projects_02) -> Malabar Biomethane JGN Secondary Ext CTS | C181: 0 | D181: 0 | E181: 90.11 | F181: 0 | G181: 0
B182: =IF(ISBLANK(dms_E3_Projects_03),"",dms_E3_Projects_03) -> Parramatta square - Walker Corp Dvlpmnt | C182: 34600.56 | D182: 0 | E182: 0 | F182: 0 | G182: 0
B183: =IF(ISBLANK(dms_E3_Projects_04),"",dms_E3_Projects_04) -> QVMH Development - Thirmere | C183: 0 | D183: 0 | E183: 0 | F183: 0 | G183: 0
B184: =IF(ISBLANK(dms_E3_Projects_05),"",dms_E3_Projects_05) -> Cecil Park CDP-Elizabeth Dr | C184: 0 | D184: 0 | E184: 0 | F184: 0 | G184: 0
B185: =IF(ISBLANK(dms_E3_Projects_06),"",dms_E3_Projects_06) -> 2021 Routine Mains Upgrade Projects | C185: 0 | D185: 0 | E185: 120 | F185: 0 | G185: 0
B186: =IF(ISBLANK(dms_E3_Projects_07),"",dms_E3_Projects_07) -> Northern Primary Main | C186: 0 | D186: 0 | E186: 0 | F186: 0 | G186: 0
B187: =IF(ISBLANK(dms_E3_Projects_08),"",dms_E3_Projects_08) -> Rouse Hill CDPs | C187: 0 | D187: 0 | E187: 0 | F187: 0 | G187: 0
B188: =IF(ISBLANK(dms_E3_Projects_09),"",dms_E3_Projects_09) ->  | C188: 0 | D188: 0 | E188: 0 | F188: 0 | G188: 0
B189: =IF(ISBLANK(dms_E3_Projects_10),"",dms_E3_Projects_10) ->  | C189: 0 | D189: 0 | E189: 0 | F189: 0 | G189: 0
B190: =IF(ISBLANK(dms_E3_Projects_11),"",dms_E3_Projects_11) -> 
B191: =IF(ISBLANK(dms_E3_Projects_12),"",dms_E3_Projects_12) -> 
B192: =IF(ISBLANK(dms_E3_Projects_13),"",dms_E3_Projects_13) -> 
B193: =IF(ISBLANK(dms_E3_Projects_14),"",dms_E3_Projects_14) -> 
B194: =IF(ISBLANK(dms_E3_Projects_15),"",dms_E3_Projects_15) -> 
B195: =IF(ISBLANK(dms_E3_Projects_16),"",dms_E3_Projects_16) -> 
B196: =IF(ISBLANK(dms_E3_Projects_17),"",dms_E3_Projects_17) -> 
B197: =IF(ISBLANK(dms_E3_Projects_18),"",dms_E3_Projects_18) -> 
B198: =IF(ISBLANK(dms_E3_Projects_18),"",dms_E3_Projects_18) -> 
B199: =IF(ISBLANK(dms_E3_Projects_19),"",dms_E3_Projects_19) -> 
B200: =IF(ISBLANK(dms_E3_Projects_20),"",dms_E3_Projects_20) -> 
B201: =IF(ISBLANK(dms_E3_Projects_21),"",dms_E3_Projects_21) -> 
B202: =IF(ISBLANK(dms_E3_Projects_22),"",dms_E3_Projects_22) -> 
B203: =IF(ISBLANK(dms_E3_Projects_23),"",dms_E3_Projects_23) -> 
B204: =IF(ISBLANK(dms_E3_Projects_24),"",dms_E3_Projects_24) -> 
B205: =IF(ISBLANK(dms_E3_Projects_25),"",dms_E3_Projects_26) -> 
B206: =IF(ISBLANK(dms_E3_Projects_27),"",dms_E3_Projects_27) -> 
B207: =IF(ISBLANK(dms_E3_Projects_28),"",dms_E3_Projects_28) -> 
B208: =IF(ISBLANK(dms_E3_Projects_29),"",dms_E3_Projects_29) -> 
B209: =IF(ISBLANK(dms_E3_Projects_30),"",dms_E3_Projects_30) -> 
B210: =IF(ISBLANK(dms_E3_Projects_31),"",dms_E3_Projects_31) -> 
B211: =IF(ISBLANK(dms_E3_Projects_32),"",dms_E3_Projects_32) -> 
B212: =IF(ISBLANK(dms_E3_Projects_33),"",dms_E3_Projects_33) -> 
B213: =IF(ISBLANK(dms_E3_Projects_34),"",dms_E3_Projects_34) -> 
B214: =IF(ISBLANK(dms_E3_Projects_35),"",dms_E3_Projects_35) -> 
B215: =IF(ISBLANK(dms_E3_Projects_36),"",dms_E3_Projects_36) -> 
B216: =IF(ISBLANK(dms_E3_Projects_37),"",dms_E3_Projects_37) -> 
B217: =IF(ISBLANK(dms_E3_Projects_38),"",dms_E3_Projects_38) -> 
B218: =IF(ISBLANK(dms_E3_Projects_39),"",dms_E3_Projects_39) -> 
B219: =IF(ISBLANK(dms_E3_Projects_40),"",dms_E3_Projects_40) -> 
B220: =IF(ISBLANK(dms_E3_Projects_41),"",dms_E3_Projects_41) -> 
B221: =IF(ISBLANK(dms_E3_Projects_42),"",dms_E3_Projects_42) -> 
B222: =IF(ISBLANK(dms_E3_Projects_43),"",dms_E3_Projects_43) -> 
B223: =IF(ISBLANK(dms_E3_Projects_44),"",dms_E3_Projects_44) -> 
B224: =IF(ISBLANK(dms_E3_Projects_45),"",dms_E3_Projects_45) -> 
B225: =IF(ISBLANK(dms_E3_Projects_46),"",dms_E3_Projects_46) -> 
B226: =IF(ISBLANK(dms_E3_Projects_47),"",dms_E3_Projects_47) -> 
B227: =IF(ISBLANK(dms_E3_Projects_48),"",dms_E3_Projects_48) -> 
B228: =IF(ISBLANK(dms_E3_Projects_49),"",dms_E3_Projects_49) -> 
B229: =IF(ISBLANK(dms_E3_Projects_50),"",dms_E3_Projects_50) -> 
B230: Aggregate of other projects or categories with total expenditure of less than $500,000 | C230: 35656.95 | D230: 5450.12 | E230: 441.84 | F230: 0 | G230: 0
B231: Total | C231: =SUM(C180:C230) -> 192481.96 | D231: =SUM(D180:D230) -> 5450.12 | E231: =SUM(E180:E230) -> 651.95 | F231: =SUM(F180:F230) -> 0 | G231: =SUM(G180:G230) -> 0
B233: D. OTHER DIRECT EXPENDITURE
C234: EXPENDITURE
C235: $
C236: =dms_y1 -> 2018-19 | D236: =dms_y2 -> 2019-20 | E236: =dms_y3 -> 2020-21 | F236: =dms_y4 -> 2021-22 | G236: =dms_y5 -> 2022-23
B237: =IF(ISBLANK(dms_E3_Projects_01),"",dms_E3_Projects_01) -> NGSF AGL Hexham | C237: 111644.51 | D237: 0 | E237: 0 | F237: 0 | G237: 0
B238: =IF(ISBLANK(dms_E3_Projects_02),"",dms_E3_Projects_02) -> Malabar Biomethane JGN Secondary Ext CTS | C238: 0 | D238: 0 | E238: 0 | F238: 0 | G238: 0
B239: =IF(ISBLANK(dms_E3_Projects_03),"",dms_E3_Projects_03) -> Parramatta square - Walker Corp Dvlpmnt | C239: 156846.69 | D239: 249.67 | E239: 0 | F239: 0 | G239: 0
B240: =IF(ISBLANK(dms_E3_Projects_04),"",dms_E3_Projects_04) -> QVMH Development - Thirmere | C240: 0 | D240: 0 | E240: 0 | F240: 0 | G240: 0
B241: =IF(ISBLANK(dms_E3_Projects_05),"",dms_E3_Projects_05) -> Cecil Park CDP-Elizabeth Dr | C241: 0 | D241: 0 | E241: 0 | F241: 0 | G241: 0
B242: =IF(ISBLANK(dms_E3_Projects_06),"",dms_E3_Projects_06) -> 2021 Routine Mains Upgrade Projects | C242: 0 | D242: 0 | E242: 0 | F242: 0 | G242: 0
B243: =IF(ISBLANK(dms_E3_Projects_07),"",dms_E3_Projects_07) -> Northern Primary Main | C243: 0 | D243: 0 | E243: 0 | F243: 0 | G243: 0
B244: =IF(ISBLANK(dms_E3_Projects_08),"",dms_E3_Projects_08) -> Rouse Hill CDPs | C244: 103.02 | D244: 0 | E244: 0 | F244: 0 | G244: 0
B245: =IF(ISBLANK(dms_E3_Projects_09),"",dms_E3_Projects_09) ->  | C245: 0 | D245: 0 | E245: 0 | F245: 0 | G245: 0
B246: =IF(ISBLANK(dms_E3_Projects_10),"",dms_E3_Projects_10) ->  | C246: 0 | D246: 0 | E246: 0 | F246: 0 | G246: 0
B247: =IF(ISBLANK(dms_E3_Projects_11),"",dms_E3_Projects_11) -> 
B248: =IF(ISBLANK(dms_E3_Projects_12),"",dms_E3_Projects_12) -> 
B249: =IF(ISBLANK(dms_E3_Projects_13),"",dms_E3_Projects_13) -> 
... 438 more rows

Sheet E4. Meter replacement
B1: =INDEX(dms_Worksheet_List,MATCH(dms_Model,dms_Model_List)) -> REGULATORY REPORTING - HISTORICAL DATA
B2: =dms_TradingNameFull -> Jemena Gas Networks (NSW) Ltd
B3: =dms_Header_Span -> 2018-19 to 2022-23
B4: E4. METER REPLACEMENT
B5: FINAL RIN TEMPLATE - FEBRUARY 2024
B7: E4.1 - CAPEX
B8: E4.1.1 - NEW METERS ACQUIRED
C9: EXPENDITURE
C10: $
C11: =dms_y1 -> 2018-19 | D11: =dms_y2 -> 2019-20 | E11: =dms_y3 -> 2020-21 | F11: =dms_y4 -> 2021-22 | G11: =dms_y5 -> 2022-23
B12: A. DIRECT INTERNAL LABOUR EXPENDITURE
B13: Residential | C13: 0 | D13: 0 | E13: 0 | F13: 0 | G13: 0
B14: Industrial and Commercial | C14: 0 | D14: 0 | E14: 0 | F14: 0 | G14: 0
B15: Other | C15: 0 | D15: 0 | E15: 0 | F15: 0 | G15: 0
B16: Total | C16: =SUM(C13:C15) -> 0 | D16: =SUM(D13:D15) -> 0 | E16: =SUM(E13:E15) -> 0 | F16: =SUM(F13:F15) -> 0 | G16: =SUM(G13:G15) -> 0
B17: B. DIRECT CONTRACTOR EXPENDITURE
B18: Residential
B19: Industrial and Commercial
B20: Other
B21: Total
B22: C. DIRECT MATERIAL EXPENDITURE
B23: Residential
B24: Industrial and Commercial
B25: Other
B26: Total
B27: D. OTHER DIRECT EXPENDITURE
B28: Residential | C28: 3383545 | D28: 2120068.95 | E28: 0 | F28: 0 | G28: 0
B29: Industrial and Commercial | C29: 678795.61 | D29: 774224.27 | E29: 0 | F29: 0 | G29: 0
B30: Other | C30: 3854829.71 | D30: 3377544.46 | E30: 0 | F30: 0 | G30: 0
B31: Total | C31: =SUM(C28:C30) -> 7917170.32 | D31: =SUM(D28:D30) -> 6271837.68 | E31: =SUM(E28:E30) -> 0 | F31: =SUM(F28:F30) -> 0 | G31: =SUM(G28:G30) -> 0
B32: E. RELATED PARTY MARGIN EXPENDITURE
B33: Residential
B34: Industrial and Commercial
B35: Other
B36: Total
B37: F. CAPITAL CONTRIBUTIONS included in the above
B38: Residential | C38: 0 | D38: 0 | E38: 0 | F38: 0 | G38: 0
B39: Industrial and Commercial | C39: 0 | D39: 0 | E39: 0 | F39: 0 | G39: 0
B40: Other | C40: 0 | D40: 0 | E40: 0 | F40: 0 | G40: 0
B41: Total | C41: =SUM(C38:C40) -> 0 | D41: =SUM(D38:D40) -> 0 | E41: =SUM(E38:E40) -> 0 | F41: =SUM(F38:F40) -> 0 | G41: =SUM(G38:G40) -> 0
B42: TOTAL | C42: =SUM(C16,C21,C26,C31,C36,C41) -> 7917170.32 | D42: =SUM(D16,D21,D26,D31,D36,D41) -> 6271837.68 | E42: =SUM(E16,E21,E26,E31,E36,E41) -> 0 | F42: =SUM(F16,F21,F26,F31,F36,F41) -> 0 | G42: =SUM(G16,G21,G26,G31,G36,G41) -> 0
B44: E4.1.2 - METER REFURBISHMENT
C45: EXPENDITURE
C46: $
C47: =dms_y1 -> 2018-19 | D47: =dms_y2 -> 2019-20 | E47: =dms_y3 -> 2020-21 | F47: =dms_y4 -> 2021-22 | G47: =dms_y5 -> 2022-23
B48: A. DIRECT INTERNAL LABOUR EXPENDITURE
B49: Residential | C49: 0 | D49: 0 | E49: 0 | F49: 0 | G49: 0
B50: Industrial and Commercial | C50: 0 | D50: 0 | E50: 0 | F50: 0 | G50: 0
B51: Other | C51: 0 | D51: 0 | E51: 0 | F51: 0 | G51: 0
B52: Total | C52: =SUM(C49:C51) -> 0 | D52: =SUM(D49:D51) -> 0 | E52: =SUM(E49:E51) -> 0 | F52: =SUM(F49:F51) -> 0 | G52: =SUM(G49:G51) -> 0
B53: B. DIRECT CONTRACTOR EXPENDITURE
B54: Residential
B55: Industrial and Commercial
B56: Other
B57: Total
B58: C. DIRECT MATERIAL EXPENDITURE
B59: Residential
B60: Industrial and Commercial
B61: Other
B62: Total
B63: D. OTHER DIRECT EXPENDITURE
B64: Residential | C64: 0 | D64: 0 | E64: 0 | F64: 0 | G64: 0
B65: Industrial and Commercial | C65: 292668.98 | D65: 150152.44 | E65: 0 | F65: 0 | G65: 0
B66: Other | C66: 0 | D66: 0 | E66: 0 | F66: 0 | G66: 0
B67: Total | C67: =SUM(C64:C66) -> 292668.98 | D67: =SUM(D64:D66) -> 150152.44 | E67: =SUM(E64:E66) -> 0 | F67: =SUM(F64:F66) -> 0 | G67: =SUM(G64:G66) -> 0
B68: E. RELATED PARTY MARGIN EXPENDITURE
B69: Residential
B70: Industrial and Commercial
B71: Other
B72: Total
B73: F. CAPITAL CONTRIBUTIONS included in the above
B74: Residential | C74: 0 | D74: 0 | E74: 0 | F74: 0 | G74: 0
B75: Industrial and Commercial | C75: 0 | D75: 0 | E75: 0 | F75: 0 | G75: 0
B76: Other | C76: 0 | D76: 0 | E76: 0 | F76: 0 | G76: 0
B77: Total | C77: =SUM(C74:C76) -> 0 | D77: =SUM(D74:D76) -> 0 | E77: =SUM(E74:E76) -> 0 | F77: =SUM(F74:F76) -> 0 | G77: =SUM(G74:G76) -> 0
B78: TOTAL | C78: =SUM(C52,C57,C62,C67,C72,C77) -> 292668.98 | D78: =SUM(D52,D57,D62,D67,D72,D77) -> 150152.44 | E78: =SUM(E52,E57,E62,E67,E72,E77) -> 0 | F78: =SUM(F52,F57,F62,F67,F72,F77) -> 0 | G78: =SUM(G52,G57,G62,G67,G72,G77) -> 0
B80: E4.1.3 - METER INSTALLATION
C81: EXPENDITURE
C82: $
C83: =dms_y1 -> 2018-19 | D83: =dms_y2 -> 2019-20 | E83: =dms_y3 -> 2020-21 | F83: =dms_y4 -> 2021-22 | G83: =dms_y5 -> 2022-23
B84: A. DIRECT INTERNAL LABOUR EXPENDITURE
B85: Residential | C85: 1984004.466 | D85: 430870.1 | E85: 0 | F85: 0 | G85: 0
B86: Industrial and Commercial | C86: 822789.42 | D86: 139229.14 | E86: 0 | F86: 0 | G86: 0
B87: Other | C87: 41345.7062 | D87: 6320.9 | E87: 0 | F87: 0 | G87: 0
B88: Total | C88: =SUM(C85:C87) -> 2848139.592 | D88: =SUM(D85:D87) -> 576420.14 | E88: =SUM(E85:E87) -> 0 | F88: =SUM(F85:F87) -> 0 | G88: =SUM(G85:G87) -> 0
B89: B. DIRECT CONTRACTOR EXPENDITURE
B90: Residential
B91: Industrial and Commercial
B92: Other
B93: Total
B94: C. DIRECT MATERIAL EXPENDITURE
B95: Residential | C95: 0 | D95: 0 | E95: 0 | F95: 0 | G95: 0
B96: Industrial and Commercial | C96: 0 | D96: 0 | E96: 0 | F96: 0 | G96: 0
B97: Other | C97: 0 | D97: 0 | E97: 0 | F97: 0 | G97: 0
B98: Total | C98: =SUM(C95:C97) -> 0 | D98: =SUM(D95:D97) -> 0 | E98: =SUM(E95:E97) -> 0 | F98: =SUM(F95:F97) -> 0 | G98: =SUM(G95:G97) -> 0
B99: D. OTHER DIRECT EXPENDITURE
B100: Residential | C100: 0 | D100: 0 | E100: 0
B101: Industrial and Commercial | C101: 0 | D101: 0 | E101: 0
B102: Other | C102: 0 | D102: 0 | E102: 0
B103: Total | C103: =SUM(C100:C102) -> 0 | D103: =SUM(D100:D102) -> 0 | E103: =SUM(E100:E102) -> 0 | F103: =SUM(F100:F102) -> 0 | G103: =SUM(G100:G102) -> 0
B104: E. RELATED PARTY MARGIN EXPENDITURE
B105: Residential
B106: Industrial and Commercial
B107: Other
B108: Total
B109: F. CAPITAL CONTRIBUTIONS included in the above
B110: Residential | C110: 0 | D110: 0 | E110: 0 | F110: 0 | G110: 0
B111: Industrial and Commercial | C111: 0 | D111: 0 | E111: 0 | F111: 0 | G111: 0
B112: Other | C112: 0 | D112: 0 | E112: 0 | F112: 0 | G112: 0
B113: Total | C113: =SUM(C110:C112) -> 0 | D113: =SUM(D110:D112) -> 0 | E113: =SUM(E110:E112) -> 0 | F113: =SUM(F110:F112) -> 0 | G113: =SUM(G110:G112) -> 0
B114: TOTAL | C114: =SUM(C88,C93,C98,C103,C108,C113) -> 2848139.592 | D114: =SUM(D88,D93,D98,D103,D108,D113) -> 576420.14 | E114: =SUM(E88,E93,E98,E103,E108,E113) -> 0 | F114: =SUM(F88,F93,F98,F103,F108,F113) -> 0 | G114: =SUM(G88,G93,G98,G103,G108,G113) -> 0
B116: E4.1.4 - OTHER METER REPLACEMENT CAPEX
C117: EXPENDITURE
C118: $
C119: =dms_y1 -> 2018-19 | D119: =dms_y2 -> 2019-20 | E119: =dms_y3 -> 2020-21 | F119: =dms_y4 -> 2021-22 | G119: =dms_y5 -> 2022-23
B120: A. DIRECT INTERNAL LABOUR EXPENDITURE
B121: Residential | C121: 0 | D121: 0 | E121: 0 | F121: 0 | G121: 0
B122: Industrial and Commercial | C122: 0 | D122: 0 | E122: 0 | F122: 0 | G122: 0
B123: Other | C123: 668741.3582 | D123: 168630.34 | E123: 0 | F123: 0 | G123: 0
B124: Total | C124: =SUM(C121:C123) -> 668741.3582 | D124: =SUM(D121:D123) -> 168630.34 | E124: =SUM(E121:E123) -> 0 | F124: =SUM(F121:F123) -> 0 | G124: =SUM(G121:G123) -> 0
B125: B. DIRECT CONTRACTOR EXPENDITURE
B126: Residential
B127: Industrial and Commercial
B128: Other
B129: Total
B130: C. DIRECT MATERIAL EXPENDITURE
B131: Residential
B132: Industrial and Commercial
B133: Other
B134: Total
B135: D. OTHER DIRECT EXPENDITURE
B136: Residential | C136: 381642.3088 | D136: 246866.47 | E136: 0 | F136: 0 | G136: 0
B137: Industrial and Commercial | C137: 804059.38 | D137: 689978.51 | E137: 0 | F137: 0 | G137: 0
B138: Other | C138: 2364132.671 | D138: 1186375.81 | E138: 0 | F138: 0 | G138: 0
B139: Total | C139: =SUM(C136:C138) -> 3549834.36 | D139: =SUM(D136:D138) -> 2123220.79 | E139: =SUM(E136:E138) -> 0 | F139: =SUM(F136:F138) -> 0 | G139: =SUM(G136:G138) -> 0
B140: E. RELATED PARTY MARGIN EXPENDITURE
B141: Residential
B142: Industrial and Commercial
B143: Other
B144: Total
B145: F. CAPITAL CONTRIBUTIONS included in the above
B146: Residential | C146: 0 | D146: 0 | E146: 0 | F146: 0 | G146: 0
B147: Industrial and Commercial | C147: 0 | D147: 11757.66 | E147: 2792.24 | F147: 13449.79 | G147: 5226.34
B148: Other | C148: 0 | D148: 0 | E148: 0 | F148: 0 | G148: 0
B149: Total | C149: =SUM(C146:C148) -> 0 | D149: =SUM(D146:D148) -> 11757.66 | E149: =SUM(E146:E148) -> 2792.24 | F149: =SUM(F146:F148) -> 13449.79 | G149: =SUM(G146:G148) -> 5226.34
B150: TOTAL | C150: =SUM(C124,C129,C134,C139,C144,C149) -> 4218575.718 | D150: =SUM(D124,D129,D134,D139,D144,D149) -> 2303608.79 | E150: =SUM(E124,E129,E134,E139,E144,E149) -> 2792.24 | F150: =SUM(F124,F129,F134,F139,F144,F149) -> 13449.79 | G150: =SUM(G124,G129,G134,G139,G144,G149) -> 5226.34
B153: E4.2 - VOLUMES
B154: E4.2.1 - NUMBER OF NEW METERS ACQUIRED
C155: NUMBER OF ASSETS
C156: =dms_y1 -> 2018-19 | D156: =dms_y2 -> 2019-20 | E156: =dms_y3 -> 2020-21 | F156: =dms_y4 -> 2021-22 | G156: =dms_y5 -> 2022-23
B157: Residential
B158: Industrial and commercial
B159: Other
B160: Total
B163: E4.2.2 - NUMBER OF METERS REFURBISHED
C164: NUMBER OF ASSETS
C165: =dms_y1 -> 2018-19 | D165: =dms_y2 -> 2019-20 | E165: =dms_y3 -> 2020-21 | F165: =dms_y4 -> 2021-22 | G165: =dms_y5 -> 2022-23
B166: A. REFURBISHABLE METERS REMOVED
B167: Residential
B168: Industrial and commercial
B169: Other
B170: Total
B171: B. METERS DECOMMISSIONED
B172: Residential
B173: Industrial and commercial
B174: Other meters
B175: Total
B176: TOTAL
B179: E4.2.3 - NUMBER OF METERS INSTALLED
C180: NUMBER OF ASSETS
C181: =dms_y1 -> 2018-19 | D181: =dms_y2 -> 2019-20 | E181: =dms_y3 -> 2020-21 | F181: =dms_y4 -> 2021-22 | G181: =dms_y5 -> 2022-23
B182: Residential
B183: Industrial and commercial
B184: Other
B185: Total
B188: E4.2.4 - NUMBER OF METERS REMOVED / DECOMMISSIONED
C189: NUMBER OF ASSETS
C190: =dms_y1 -> 2018-19 | D190: =dms_y2 -> 2019-20 | E190: =dms_y3 -> 2020-21 | F190: =dms_y4 -> 2021-22 | G190: =dms_y5 -> 2022-23
B191: Residential
B192: Industrial and commercial
B193: Other
B194: Total
B197: E4.2.5 - OTHER METER REPLACEMENT VOLUMES
C198: NUMBER OF ASSETS
C199: =dms_y1 -> 2018-19 | D199: =dms_y2 -> 2019-20 | E199: =dms_y3 -> 2020-21 | F199: =dms_y4 -> 2021-22 | G199: =dms_y5 -> 2022-23
B200: Residential | C200: 0 | D200: 0 | E200: 0 | F200: 0 | G200: 0
B201: Industrial and commercial | C201: 0 | D201: 0 | E201: 0 | F201: 0 | G201: 0
B202: Other | C202: 0 | D202: 0 | E202: 0 | F202: 0 | G202: 0
B203: Total | C203: =SUM(C200:C202) -> 0 | D203: =SUM(D200:D202) -> 0 | E203: =SUM(E200:E202) -> 0 | F203: =SUM(F200:F202) -> 0 | G203: =SUM(G200:G202) -> 0

Sheet E5. Connections (gas)
B1: =INDEX(dms_Worksheet_List,MATCH(dms_Model,dms_Model_List)) -> REGULATORY REPORTING - HISTORICAL DATA
B2: =dms_TradingNameFull -> Jemena Gas Networks (NSW) Ltd
B3: =dms_Header_Span -> 2018-19 to 2022-23
B4: E5. CONNECTIONS (GAS)
B5: FINAL RIN TEMPLATE - FEBRUARY 2024
B7: E5.1 - EXPENDITURE
B8: E5.1.1 - CAPEX - BY CONNECTION TYPE
B9: A. DIRECT INTERNAL LABOUR EXPENDITURE
D10: EXPENDITURE
D11: $
D12: =dms_y1 -> 2018-19 | E12: =dms_y2 -> 2019-20 | F12: =dms_y3 -> 2020-21 | G12: =dms_y4 -> 2021-22 | H12: =dms_y5 -> 2022-23
B13: (i) ELECTRICITY TO GAS
B14: Distribution mains | D14: 91718.7 | E14: 19491.86 | F14: 99717.34 | G14: 117723.62 | H14: 98873.79
B15: Inlet service pipes | D15: 447358.81 | E15: 122969.62 | F15: 0 | G15: 0 | H15: 112742.55
B16: Meters (gas) | D16: 3585.27 | E16: 918.92 | F16: 0 | G16: 0 | H16: 8167.38
C17: Total | D17: =SUM(D14:D16) -> 542662.78 | E17: =SUM(E14:E16) -> 143380.4 | F17: 99717.34 | G17: 117723.62 | H17: 219783.72
B18: (ii) NEW HOMES
B19: Distribution mains | D19: 431241.15 | E19: 103219.42 | F19: 189665.77 | G19: 202375.77 | H19: 197432.34
B20: Inlet service pipes | D20: 603158.89 | E20: 56963.84 | F20: 0 | G20: 0 | H20: 260789.31
B21: Meters (gas) | D21: 8784.9 | E21: 952.46 | F21: 0 | G21: 0 | H21: 22568.17
C22: Total | D22: =SUM(D19:D21) -> 1043184.94 | E22: =SUM(E19:E21) -> 161135.72 | F22: =SUM(F19:F21) -> 189665.77 | G22: =SUM(G19:G21) -> 202375.77 | H22: =SUM(H19:H21) -> 480789.82
B23: (iii) NEW MEDIUM DENSITY / HIGH RISE
B24: Distribution mains | D24: 184816.85 | E24: 11487.1 | F24: 67402.59 | G24: 180.26 | H24: 19742.09
B25: Inlet service pipes | D25: 51207.56 | E25: 5386.93 | F25: 142.53 | G25: 0 | H25: 20196.08
B26: Meters (gas) | D26: 42206.52 | E26: 8468.47 | F26: 0 | G26: 0 | H26: 27925.06
C27: Total | D27: =SUM(D24:D26) -> 278230.93 | E27: =SUM(E24:E26) -> 25342.5 | F27: =SUM(F24:F26) -> 67545.12 | G27: =SUM(G24:G26) -> 180.26 | H27: =SUM(H24:H26) -> 67863.23
B28: (iv) INDUSTRIAL & COMMERCIAL TARIFF
B29: Distribution mains | D29: 117660.16 | E29: 21386.27 | F29: 97489.57 | G29: 482.7 | H29: 46047.17
B30: Inlet service pipes | D30: 67675.8 | E30: 12555.6 | F30: 0 | G30: 0 | H30: 21869.36
B31: Meters (gas) | D31: 3032.28 | E31: 0 | F31: 0 | G31: 0 | H31: 16378.25
C32: Total | D32: =SUM(D29:D31) -> 188368.24 | E32: =SUM(E29:E31) -> 33941.87 | F32: =SUM(F29:F31) -> 97489.57 | G32: =SUM(G29:G31) -> 482.7 | H32: =SUM(H29:H31) -> 84294.78
B33: (v) INDUSTRIAL & COMMERCIAL CONTRACT
B34: Distribution mains | D34: 94779.28 | E34: 59129.52 | F34: 175675.21 | G34: 67143.6 | H34: 12027.53
B35: Inlet service pipes | D35: 195483.97 | E35: 19868.54 | F35: 0 | G35: 0 | H35: 8397.1
B36: Meters (gas) | D36: 12767.96 | E36: 6605.1 | F36: 0 | G36: 0 | H36: 1718.3
C37: Total | D37: =SUM(D34:D36) -> 303031.21 | E37: =SUM(E34:E36) -> 85603.16 | F37: =SUM(F34:F36) -> 175675.21 | G37: =SUM(G34:G36) -> 67143.6 | H37: =SUM(H34:H36) -> 22142.93
B38: (vi) GAS SUPPLIERS
B39: Distribution mains | D39: 0 | E39: 0 | F39: 0 | G39: 0 | H39: 46536.79
B40: Inlet service pipes | D40: 0 | E40: 0 | F40: 0 | G40: 0 | H40: 0
B41: Meters (gas) | D41: 0 | E41: 0 | F41: 0 | G41: 0 | H41: 0
C42: Total | D42: =SUM(D39:D41) -> 0 | E42: =SUM(E39:E41) -> 0 | F42: =SUM(F39:F41) -> 0 | G42: =SUM(G39:G41) -> 0 | H42: =SUM(H39:H41) -> 46536.79
C43: TOTAL | D43: =SUM(D37,D32,D27,D22,D17,D42) -> 2355478.1 | E43: =SUM(E37,E32,E27,E22,E17,E42) -> 449403.65 | F43: 630093.01 | G43: 387905.95 | H43: 921411.27
B45: B. DIRECT CONTRACTOR EXPENDITURE
D46: EXPENDITURE
D47: $
D48: =dms_y1 -> 2018-19 | E48: =dms_y2 -> 2019-20 | F48: =dms_y3 -> 2020-21 | G48: =dms_y4 -> 2021-22 | H48: =dms_y5 -> 2022-23
B49: (i) ELECTRICITY TO GAS
B50: Distribution mains
B51: Inlet service pipes
B52: Meters (gas)
C53: Total
B54: (ii) NEW HOMES
B55: Distribution mains
B56: Inlet service pipes
B57: Meters (gas)
C58: Total
B59: (iii) NEW MEDIUM DENSITY / HIGH RISE
B60: Distribution mains
B61: Inlet service pipes
B62: Meters (gas)
C63: Total
B64: (iv) INDUSTRIAL & COMMERCIAL TARIFF
B65: Distribution mains
B66: Inlet service pipes
B67: Meters (gas)
C68: Total
B69: (v) INDUSTRIAL & COMMERCIAL CONTRACT
B70: Distribution mains
B71: Inlet service pipes
B72: Meters (gas)
C73: Total
B74: (vi) GAS SUPPLIERS
B75: Distribution mains
B76: Inlet service pipes
B77: Meters (gas)
C78: Total
C79: TOTAL
B81: C. DIRECT MATERIAL EXPENDITURE
D82: EXPENDITURE
D83: $
D84: =dms_y1 -> 2018-19 | E84: =dms_y2 -> 2019-20 | F84: =dms_y3 -> 2020-21 | G84: =dms_y4 -> 2021-22 | H84: =dms_y5 -> 2022-23
B85: (i) ELECTRICITY TO GAS
B86: Distribution mains | D86: 1563.49 | E86: 184215.5 | F86: 112662.42 | G86: 0 | H86: 0
B87: Inlet service pipes | D87: 4641.92 | E87: 774299.98 | F87: 702113.03 | G87: 0 | H87: 0
B88: Meters (gas) | D88: 586497.12 | E88: 831168.98 | F88: 489408.34 | G88: 325 | H88: 0
C89: Total | D89: =SUM(D86:D88) -> 592702.53 | E89: =SUM(E86:E88) -> 1789684.46 | F89: =SUM(F86:F88) -> 1304183.79 | G89: =SUM(G86:G88) -> 325 | H89: =SUM(H86:H88) -> 0
B90: (ii) NEW HOMES
B91: Distribution mains | D91: 7854.51 | E91: 949180.95 | F91: 212374.04 | G91: 1052.25 | H91: 0
B92: Inlet service pipes | D92: 23018.92 | E92: 2636301.35 | F92: 2211785.58 | G92: 28296.06 | H92: 0
B93: Meters (gas) | D93: 1485549.49 | E93: 1668681.88 | F93: 1245757.9 | G93: 4538.85 | H93: 0
C94: Total | D94: =SUM(D91:D93) -> 1516422.92 | E94: =SUM(E91:E93) -> 5254164.18 | F94: =SUM(F91:F93) -> 3669917.52 | G94: =SUM(G91:G93) -> 33887.16 | H94: =SUM(H91:H93) -> 0
B95: (iii) NEW MEDIUM DENSITY / HIGH RISE
B96: Distribution mains | D96: 158628.04 | E96: 20060.22 | F96: 148393.05 | G96: 28296.05 | H96: 0
B97: Inlet service pipes | D97: 5365.79 | E97: 105897.55 | F97: 108497.23 | G97: 372.09 | H97: 0
B98: Meters (gas) | D98: 8773146.91 | E98: 5151532.56 | F98: 2444791.88 | G98: 19125.31 | H98: 0
C99: Total | D99: =SUM(D96:D98) -> 8937140.74 | E99: =SUM(E96:E98) -> 5277490.33 | F99: =SUM(F96:F98) -> 2701682.16 | G99: =SUM(G96:G98) -> 47793.45 | H99: =SUM(H96:H98) -> 0
B100: (iv) INDUSTRIAL & COMMERCIAL TARIFF
B101: Distribution mains | D101: 16669.8 | E101: 94092.94 | F101: 29230.09 | G101: 66070.57 | H101: 0
B102: Inlet service pipes | D102: 15669.71 | E102: 70421.83 | F102: 60224.88 | G102: 0 | H102: 0
B103: Meters (gas) | D103: 1222304.21 | E103: 1206977.07 | F103: 1024937.6 | G103: 0 | H103: 0
C104: Total | D104: =SUM(D101:D103) -> 1254643.72 | E104: =SUM(E101:E103) -> 1371491.84 | F104: =SUM(F101:F103) -> 1114392.57 | G104: =SUM(G101:G103) -> 66070.57 | H104: =SUM(H101:H103) -> 0
B105: (v) INDUSTRIAL & COMMERCIAL CONTRACT
B106: Distribution mains | D106: 7275.22 | E106: 89076.08 | F106: 57140.24 | G106: 26900 | H106: 0
B107: Inlet service pipes | D107: 68096.63 | E107: 43296.43 | F107: 41395.11 | G107: 0 | H107: 0
B108: Meters (gas) | D108: 276175.26 | E108: 343355.26 | F108: 170715.23 | G108: 0 | H108: 0
C109: Total | D109: =SUM(D106:D108) -> 351547.11 | E109: =SUM(E106:E108) -> 475727.77 | F109: =SUM(F106:F108) -> 269250.58 | G109: =SUM(G106:G108) -> 26900 | H109: =SUM(H106:H108) -> 0
B110: (vi) GAS SUPPLIERS
B111: Distribution mains | D111: 0 | E111: 0 | F111: 0 | G111: 0 | H111: 0
B112: Inlet service pipes | D112: 0 | E112: 0 | F112: 0 | G112: 0 | H112: 0
B113: Meters (gas) | D113: 0 | E113: 0 | F113: 0 | G113: 0 | H113: 0
C114: Total | D114: =SUM(D111:D113) -> 0 | E114: =SUM(E111:E113) -> 0 | F114: =SUM(F111:F113) -> 0 | G114: =SUM(G111:G113) -> 0 | H114: =SUM(H111:H113) -> 0
C115: TOTAL | D115: =SUM(D109,D104,D99,D94,D89,D114) -> 12652457.02 | E115: =SUM(E109,E104,E99,E94,E89,E114) -> 14168558.58 | F115: =SUM(F109,F104,F99,F94,F89,F114) -> 9059426.62 | G115: =SUM(G109,G104,G99,G94,G89,G114) -> 174976.18 | H115: =SUM(H109,H104,H99,H94,H89,H114) -> 0
B117: D. OTHER DIRECT EXPENDITURE
D118: EXPENDITURE
D119: $
D120: =dms_y1 -> 2018-19 | E120: =dms_y2 -> 2019-20 | F120: =dms_y3 -> 2020-21 | G120: =dms_y4 -> 2021-22 | H120: =dms_y5 -> 2022-23
B121: (i) ELECTRICITY TO GAS
B122: Distribution mains | D122: 2817.93 | E122: 17395.29 | F122: 0 | G122: 0 | H122: 0
B123: Inlet service pipes | D123: 128795.15 | E123: 66807.97 | F123: 0 | G123: 0 | H123: 0
B124: Meters (gas) | D124: 28.51 | E124: 0 | F124: 0 | G124: 0 | H124: 0
C125: Total | D125: =SUM(D122:D124) -> 131641.59 | E125: =SUM(E122:E124) -> 84203.26 | F125: =SUM(F122:F124) -> 0 | G125: =SUM(G122:G124) -> 0 | H125: =SUM(H122:H124) -> 0
B126: (ii) NEW HOMES
B127: Distribution mains | D127: 12757.21 | E127: 2881.95 | F127: 0 | G127: 0 | H127: 0
B128: Inlet service pipes | D128: 22024.81 | E128: 1835.41 | F128: 0 | G128: 0 | H128: 0
B129: Meters (gas) | D129: 28.45 | E129: 0 | F129: 0 | G129: 0 | H129: 0
C130: Total | D130: =SUM(D127:D129) -> 34810.47 | E130: =SUM(E127:E129) -> 4717.36 | F130: =SUM(F127:F129) -> 0 | G130: =SUM(G127:G129) -> 0 | H130: =SUM(H127:H129) -> 0
B131: (iii) NEW MEDIUM DENSITY / HIGH RISE
B132: Distribution mains | D132: 7724.65 | E132: 254.52 | F132: 64000 | G132: 48296.05 | H132: 0
B133: Inlet service pipes | D133: 4738.46 | E133: 33394.66 | F133: 0 | G133: 0 | H133: 0
B134: Meters (gas) | D134: 0 | E134: 86.58 | F134: 0 | G134: 0 | H134: 0
C135: Total | D135: =SUM(D132:D134) -> 12463.11 | E135: =SUM(E132:E134) -> 33735.76 | F135: =SUM(F132:F134) -> 64000 | G135: =SUM(G132:G134) -> 48296.05 | H135: =SUM(H132:H134) -> 0
B136: (iv) INDUSTRIAL & COMMERCIAL TARIFF
B137: Distribution mains | D137: 28839.68 | E137: 101355.22 | F137: 8095.5 | G137: 0 | H137: 0
B138: Inlet service pipes | D138: 5742.64 | E138: 384.34 | F138: 0 | G138: 0 | H138: 0
B139: Meters (gas) | D139: 85.31 | E139: 0 | F139: 0 | G139: 0 | H139: 0
C140: Total | D140: =SUM(D137:D139) -> 34667.63 | E140: =SUM(E137:E139) -> 101739.56 | F140: =SUM(F137:F139) -> 8095.5 | G140: =SUM(G137:G139) -> 0 | H140: =SUM(H137:H139) -> 0
B141: (v) INDUSTRIAL & COMMERCIAL CONTRACT
B142: Distribution mains | D142: 103645.26 | E142: -927830.15 | F142: 122979.64 | G142: 2000 | H142: 0
B143: Inlet service pipes | D143: 59731.53 | E143: 1133.01 | F143: 0 | G143: 0 | H143: 0
B144: Meters (gas) | D144: 813.81 | E144: 417 | F144: 0 | G144: 0 | H144: 0
C145: Total | D145: =SUM(D142:D144) -> 164190.6 | E145: =SUM(E142:E144) -> -926280.14 | F145: =SUM(F142:F144) -> 122979.64 | G145: =SUM(G142:G144) -> 2000 | H145: =SUM(H142:H144) -> 0
B146: (vi) GAS SUPPLIERS
B147: Distribution mains | D147: 0 | E147: 0 | F147: 0 | G147: 0 | H147: 0
B148: Inlet service pipes | D148: 0 | E148: 0 | F148: 0 | G148: 0 | H148: 0
B149: Meters (gas) | D149: 0 | E149: 0 | F149: 0 | G149: 0 | H149: 0
C150: Total | D150: =SUM(D147:D149) -> 0 | E150: =SUM(E147:E149) -> 0 | F150: =SUM(F147:F149) -> 0 | G150: =SUM(G147:G149) -> 0 | H150: =SUM(H147:H149) -> 0
C151: TOTAL | D151: =SUM(D145,D140,D135,D130,D125,D150) -> 377773.4 | E151: =SUM(E145,E140,E135,E130,E125,E150) -> -701884.2 | F151: =SUM(F145,F140,F135,F130,F125,F150) -> 195075.14 | G151: =SUM(G145,G140,G135,G130,G125,G150) -> 50296.05 | H151: =SUM(H145,H140,H135,H130,H125,H150) -> 0
B153: E. RELATED PARTY MARGIN EXPENDITURE
D154: EXPENDITURE
D155: $
D156: =dms_y1 -> 2018-19 | E156: =dms_y2 -> 2019-20 | F156: =dms_y3 -> 2020-21 | G156: =dms_y4 -> 2021-22 | H156: =dms_y5 -> 2022-23
B157: (i) ELECTRICITY TO GAS
B158: Distribution mains
B159: Inlet service pipes
B160: Meters (gas)
C161: Total
B162: (ii) NEW HOMES
B163: Distribution mains
B164: Inlet service pipes
B165: Meters (gas)
C166: Total
B167: (iii) NEW MEDIUM DENSITY / HIGH RISE
B168: Distribution mains
B169: Inlet service pipes
B170: Meters (gas)
C171: Total
B172: (iv) INDUSTRIAL & COMMERCIAL TARIFF
B173: Distribution mains
B174: Inlet service pipes
B175: Meters (gas)
C176: Total
B177: (v) INDUSTRIAL & COMMERCIAL CONTRACT
B178: Distribution mains
B179: Inlet service pipes
B180: Meters (gas)
C181: Total
B182: (vi) GAS SUPPLIERS
B183: Distribution mains
B184: Inlet service pipes
B185: Meters (gas)
C186: Total
C187: TOTAL
B189: F. CAPITAL CONTRIBUTIONS included in the above
D190: EXPENDITURE
D191: $
D192: =dms_y1 -> 2018-19 | E192: =dms_y2 -> 2019-20 | F192: =dms_y3 -> 2020-21 | G192: =dms_y4 -> 2021-22 | H192: =dms_y5 -> 2022-23
B193: (i) ELECTRICITY TO GAS
B194: Distribution mains | D194: 478521.26 | E194: 131687.29 | F194: 24107.28 | G194: 9427 | H194: 0
B195: Inlet service pipes | D195: 452199.85 | E195: 337812.13 | F195: 499776.55 | G195: 535808.63 | H195: 428074.34
B196: Meters (gas) | D196: 0 | E196: 0 | F196: 0 | G196: 0 | H196: 0
C197: Total | D197: =SUM(D194:D196) -> 930721.11 | E197: =SUM(E194:E196) -> 469499.42 | F197: =SUM(F194:F196) -> 523883.83 | G197: =SUM(G194:G196) -> 545235.63 | H197: =SUM(H194:H196) -> 428074.34
B198: (ii) NEW HOMES
B199: Distribution mains | D199: 44407 | E199: 24553.51 | F199: 951779.24 | G199: 1766028.99 | H199: 17446463.51
B200: Inlet service pipes | D200: 928259.08 | E200: 901335.74 | F200: 1000664.65 | G200: 925074.01 | H200: 1466871.13
B201: Meters (gas) | D201: 0 | E201: 0 | F201: 0 | G201: 0 | H201: 0
C202: Total | D202: =SUM(D199:D201) -> 972666.08 | E202: =SUM(E199:E201) -> 925889.25 | F202: =SUM(F199:F201) -> 1952443.89 | G202: =SUM(G199:G201) -> 2691103 | H202: =SUM(H199:H201) -> 18913334.64
B203: (iii) NEW MEDIUM DENSITY / HIGH RISE
B204: Distribution mains | D204: 128486 | E204: 0 | F204: -148179.37 | G204: 85087 | H204: 38912
B205: Inlet service pipes | D205: 47969 | E205: 166371.04 | F205: 332394.5 | G205: 353251.28 | H205: 488616.08
B206: Meters (gas) | D206: 0 | E206: 0 | F206: 0 | G206: 0
... 106 more rows

Sheet E6. Telemetry
B1: =INDEX(dms_Worksheet_List,MATCH(dms_Model,dms_Model_List)) -> REGULATORY REPORTING - HISTORICAL DATA
B2: =dms_TradingNameFull -> Jemena Gas Networks (NSW) Ltd
B3: =dms_Header_Span -> 2018-19 to 2022-23
B4: E6. NON-NETWORK EXPENDITURE
B5: FINAL RIN TEMPLATE - FEBRUARY 2024
B7: E6.5 - TELEMETRY
B9: Please list all projects or categories here:
B10: JEM-PR-0960 CY22 JGN RTU Lifecycle
B27: E6.5.1 - CAPEX - BY PROJECT
B28: A. DIRECT INTERNAL LABOUR EXPENDITURE
C29: EXPENDITURE
C30: $
C31: =dms_y1 -> 2018-19 | D31: =dms_y2 -> 2019-20 | E31: =dms_y3 -> 2020-21 | F31: =dms_y4 -> 2021-22 | G31: =dms_y5 -> 2022-23
B32: =IF(ISBLANK(dms_E65_Projects_01),"",dms_E65_Projects_01) -> JEM-PR-0960 CY22 JGN RTU Lifecycle | C32: 0 | D32: 0 | E32: 0 | F32: 0 | G32: 159612.1
B33: =IF(ISBLANK(dms_E65_Projects_02),"",dms_E65_Projects_02) -> 
B34: =IF(ISBLANK(dms_E65_Projects_03),"",dms_E65_Projects_03) -> 
B35: =IF(ISBLANK(dms_E65_Projects_04),"",dms_E65_Projects_04) -> 
B36: =IF(ISBLANK(dms_E65_Projects_05),"",dms_E65_Projects_05) -> 
B37: =IF(ISBLANK(dms_E65_Projects_06),"",dms_E65_Projects_06) -> 
B38: =IF(ISBLANK(dms_E65_Projects_07),"",dms_E65_Projects_07) -> 
B39: =IF(ISBLANK(dms_E65_Projects_08),"",dms_E65_Projects_08) -> 
B40: =IF(ISBLANK(dms_E65_Projects_09),"",dms_E65_Projects_09) -> 
B41: =IF(ISBLANK(dms_E65_Projects_10),"",dms_E65_Projects_10) -> 
B42: =IF(ISBLANK(dms_E65_Projects_11),"",dms_E65_Projects_11) -> 
B43: =IF(ISBLANK(dms_E65_Projects_12),"",dms_E65_Projects_12) -> 
B44: =IF(ISBLANK(dms_E65_Projects_13),"",dms_E65_Projects_13) -> 
B45: =IF(ISBLANK(dms_E65_Projects_14),"",dms_E65_Projects_14) -> 
B46: =IF(ISBLANK(dms_E65_Projects_15),"",dms_E65_Projects_15) -> 
B47: Aggregate of other projects or categories with total expenditure of less than $500,000 | C47: 436089.46 | D47: 26463.95 | E47: 17029.33 | F47: 98126.8 | G47: 56093.19
B48: Total | C48: =SUM(C32:C47) -> 436089.46 | D48: =SUM(D32:D47) -> 26463.95 | E48: =SUM(E32:E47) -> 17029.33 | F48: =SUM(F32:F47) -> 98126.8 | G48: =SUM(G32:G47) -> 215705.29
B50: B. DIRECT CONTRACTOR EXPENDITURE
B51: =IF(ISBLANK(dms_E65_Projects_01),"",dms_E65_Projects_01) -> JEM-PR-0960 CY22 JGN RTU Lifecycle | C51: 0 | D51: 0 | E51: 0 | F51: 0 | G51: 0
B52: =IF(ISBLANK(dms_E65_Projects_02),"",dms_E65_Projects_02) -> 
B53: =IF(ISBLANK(dms_E65_Projects_03),"",dms_E65_Projects_03) -> 
B54: =IF(ISBLANK(dms_E65_Projects_04),"",dms_E65_Projects_04) -> 
B55: =IF(ISBLANK(dms_E65_Projects_05),"",dms_E65_Projects_05) -> 
B56: =IF(ISBLANK(dms_E65_Projects_06),"",dms_E65_Projects_06) -> 
B57: =IF(ISBLANK(dms_E65_Projects_07),"",dms_E65_Projects_07) -> 
B58: =IF(ISBLANK(dms_E65_Projects_08),"",dms_E65_Projects_08) -> 
B59: =IF(ISBLANK(dms_E65_Projects_09),"",dms_E65_Projects_09) -> 
B60: =IF(ISBLANK(dms_E65_Projects_10),"",dms_E65_Projects_10) -> 
B61: =IF(ISBLANK(dms_E65_Projects_11),"",dms_E65_Projects_11) -> 
B62: =IF(ISBLANK(dms_E65_Projects_12),"",dms_E65_Projects_12) -> 
B63: =IF(ISBLANK(dms_E65_Projects_13),"",dms_E65_Projects_13) -> 
B64: =IF(ISBLANK(dms_E65_Projects_14),"",dms_E65_Projects_14) -> 
B65: =IF(ISBLANK(dms_E65_Projects_15),"",dms_E65_Projects_15) -> 
B66: Aggregate of other projects or categories with total expenditure of less than $500,000 | C66: 11475.83 | D66: 2999.39 | E66: 33190.47767 | F66: 18753.73 | G66: -63740.95
B67: Total | C67: =SUM(C51:C66) -> 11475.83 | D67: =SUM(D51:D66) -> 2999.39 | E67: =SUM(E51:E66) -> 33190.47767 | F67: =SUM(F51:F66) -> 18753.73 | G67: =SUM(G51:G66) -> -63740.95
B69: C. DIRECT MATERIAL EXPENDITURE
B70: =IF(ISBLANK(dms_E65_Projects_01),"",dms_E65_Projects_01) -> JEM-PR-0960 CY22 JGN RTU Lifecycle | C70: 0 | D70: 0 | E70: 0 | F70: 0 | G70: 387752.26
B71: =IF(ISBLANK(dms_E65_Projects_02),"",dms_E65_Projects_02) -> 
B72: =IF(ISBLANK(dms_E65_Projects_03),"",dms_E65_Projects_03) -> 
B73: =IF(ISBLANK(dms_E65_Projects_04),"",dms_E65_Projects_04) -> 
B74: =IF(ISBLANK(dms_E65_Projects_05),"",dms_E65_Projects_05) -> 
B75: =IF(ISBLANK(dms_E65_Projects_06),"",dms_E65_Projects_06) -> 
B76: =IF(ISBLANK(dms_E65_Projects_07),"",dms_E65_Projects_07) -> 
B77: =IF(ISBLANK(dms_E65_Projects_08),"",dms_E65_Projects_08) -> 
B78: =IF(ISBLANK(dms_E65_Projects_09),"",dms_E65_Projects_09) -> 
B79: =IF(ISBLANK(dms_E65_Projects_10),"",dms_E65_Projects_10) -> 
B80: =IF(ISBLANK(dms_E65_Projects_11),"",dms_E65_Projects_11) -> 
B81: =IF(ISBLANK(dms_E65_Projects_12),"",dms_E65_Projects_12) -> 
B82: =IF(ISBLANK(dms_E65_Projects_13),"",dms_E65_Projects_13) -> 
B83: =IF(ISBLANK(dms_E65_Projects_14),"",dms_E65_Projects_14) -> 
B84: =IF(ISBLANK(dms_E65_Projects_15),"",dms_E65_Projects_15) -> 
B85: Aggregate of other projects or categories with total expenditure of less than $500,000 | C85: 42357.42 | D85: 40027 | E85: 15921.54 | F85: 288821.63 | G85: 161703.15
B86: Total | C86: =SUM(C70:C85) -> 42357.42 | D86: =SUM(D70:D85) -> 40027 | E86: =SUM(E70:E85) -> 15921.54 | F86: =SUM(F70:F85) -> 288821.63 | G86: =SUM(G70:G85) -> 549455.41
B88: D. OTHER DIRECT EXPENDITURE
B89: =IF(ISBLANK(dms_E65_Projects_01),"",dms_E65_Projects_01) -> JEM-PR-0960 CY22 JGN RTU Lifecycle | C89: 0 | D89: 0 | E89: 0 | F89: 0 | G89: 0
B90: =IF(ISBLANK(dms_E65_Projects_02),"",dms_E65_Projects_02) -> 
B91: =IF(ISBLANK(dms_E65_Projects_03),"",dms_E65_Projects_03) -> 
B92: =IF(ISBLANK(dms_E65_Projects_04),"",dms_E65_Projects_04) -> 
B93: =IF(ISBLANK(dms_E65_Projects_05),"",dms_E65_Projects_05) -> 
B94: =IF(ISBLANK(dms_E65_Projects_06),"",dms_E65_Projects_06) -> 
B95: =IF(ISBLANK(dms_E65_Projects_07),"",dms_E65_Projects_07) -> 
B96: =IF(ISBLANK(dms_E65_Projects_08),"",dms_E65_Projects_08) -> 
B97: =IF(ISBLANK(dms_E65_Projects_09),"",dms_E65_Projects_09) -> 
B98: =IF(ISBLANK(dms_E65_Projects_10),"",dms_E65_Projects_10) -> 
B99: =IF(ISBLANK(dms_E65_Projects_11),"",dms_E65_Projects_11) -> 
B100: =IF(ISBLANK(dms_E65_Projects_12),"",dms_E65_Projects_12) -> 
B101: =IF(ISBLANK(dms_E65_Projects_13),"",dms_E65_Projects_13) -> 
B102: =IF(ISBLANK(dms_E65_Projects_14),"",dms_E65_Projects_14) -> 
B103: =IF(ISBLANK(dms_E65_Projects_15),"",dms_E65_Projects_15) -> 
B104: Aggregate of other projects or categories with total expenditure of less than $500,000 | C104: 212391.94 | D104: 52394.85 | E104: 170062.59 | F104: 0 | G104: 0
B105: Total | C105: =SUM(C89:C104) -> 212391.94 | D105: =SUM(D89:D104) -> 52394.85 | E105: =SUM(E89:E104) -> 170062.59 | F105: =SUM(F89:F104) -> 0 | G105: =SUM(G89:G104) -> 0
B107: E. RELATED PARTY MARGIN EXPENDITURE
B108: Total | C108: 0 | D108: 0 | E108: 6338.872328 | F108: 0 | G108: 0
B109: Total | C109: =SUM(C108:C108) -> 0 | D109: =SUM(D108:D108) -> 0 | E109: =SUM(E108:E108) -> 6338.872328 | F109: =SUM(F108:F108) -> 0 | G109: =SUM(G108:G108) -> 0
B111: F. CAPITAL CONTRIBUTIONS included in the above
B112: =IF(ISBLANK(dms_E65_Projects_01),"",dms_E65_Projects_01) -> JEM-PR-0960 CY22 JGN RTU Lifecycle | C112: 0 | D112: 0 | E112: 0 | F112: 0 | G112: 0
B113: =IF(ISBLANK(dms_E65_Projects_02),"",dms_E65_Projects_02) -> 
B114: =IF(ISBLANK(dms_E65_Projects_03),"",dms_E65_Projects_03) -> 
B115: =IF(ISBLANK(dms_E65_Projects_04),"",dms_E65_Projects_04) -> 
B116: =IF(ISBLANK(dms_E65_Projects_05),"",dms_E65_Projects_05) -> 
B117: =IF(ISBLANK(dms_E65_Projects_06),"",dms_E65_Projects_06) -> 
B118: =IF(ISBLANK(dms_E65_Projects_07),"",dms_E65_Projects_07) -> 
B119: =IF(ISBLANK(dms_E65_Projects_08),"",dms_E65_Projects_08) -> 
B120: =IF(ISBLANK(dms_E65_Projects_09),"",dms_E65_Projects_09) -> 
B121: =IF(ISBLANK(dms_E65_Projects_10),"",dms_E65_Projects_10) -> 
B122: =IF(ISBLANK(dms_E65_Projects_11),"",dms_E65_Projects_11) -> 
B123: =IF(ISBLANK(dms_E65_Projects_12),"",dms_E65_Projects_12) -> 
B124: =IF(ISBLANK(dms_E65_Projects_13),"",dms_E65_Projects_13) -> 
B125: =IF(ISBLANK(dms_E65_Projects_14),"",dms_E65_Projects_14) -> 
B126: =IF(ISBLANK(dms_E65_Projects_15),"",dms_E65_Projects_15) -> 
B127: Aggregate of other projects or categories with total expenditure of less than $500,000 | C127: 0 | D127: 0 | E127: 0 | F127: 0 | G127: 0
B128: Total | C128: =SUM(C112:C127) -> 0 | D128: =SUM(D112:D127) -> 0 | E128: =SUM(E112:E127) -> 0 | F128: =SUM(F112:F127) -> 0 | G128: =SUM(G112:G127) -> 0
B133: E6.5.2 - EXPENDITURE BY PURPOSE
C134: EXPENDITURE
C135: $
C136: =dms_y1 -> 2018-19 | D136: =dms_y2 -> 2019-20 | E136: =dms_y3 -> 2020-21 | F136: =dms_y4 -> 2021-22 | G136: =dms_y5 -> 2022-23
B137: OPEX
B138: Recurrent expenditure | C138: 1567484.67 | D138: 1270438.32 | E138: 2032322.93 | F138: 1934326.66 | G138: 1448471.72
B139: Non-recurrent expenditure | C139: 0 | D139: 0 | E139: 0 | F139: 0 | G139: 0
B140: Total | C140: =SUM(C138:C139) -> 1567484.67 | D140: =SUM(D138:D139) -> 1270438.32 | E140: 2032322.93 | F140: 1934326.66 | G140: 1448471.72
B141: CAPEX
B142: Recurrent expenditure | C142: 172374.22 | D142: 106894.55 | E142: 242542.81 | F142: 405702.16 | G142: 701419.75
B143: Non-recurrent expenditure | C143: 529940.43 | D143: 14990.64 | E143: 0 | F143: 0 | G143: 0
B144: Total | C144: =SUM(C142:C143) -> 702314.65 | D144: =SUM(D142:D143) -> 121885.19 | E144: =SUM(E142:E143) -> 242542.81 | F144: =SUM(F142:F143) -> 405702.16 | G144: =SUM(G142:G143) -> 701419.75

Sheet E10. Overheads
B1: =INDEX(dms_Worksheet_List,MATCH(dms_Model,dms_Model_List)) -> REGULATORY REPORTING - HISTORICAL DATA
B2: =dms_TradingNameFull -> Jemena Gas Networks (NSW) Ltd
B3: =dms_Header_Span -> 2018-19 to 2022-23
B4: E10. OVERHEADS EXPENDITURE
B5: FINAL RIN TEMPLATE - FEBRUARY 2024
B7: E10.1 - NETWORK
C8: EXPENDITURE
C9: $
C10: =dms_y1 -> 2018-19 | D10: =dms_y2 -> 2019-20 | E10: =dms_y3 -> 2020-21 | F10: =dms_y4 -> 2021-22 | G10: =dms_y5 -> 2022-23
B11: E10.1.1 - OPEX
B12: Reference services | C12: 67607516.64 | D12: 49599124.58 | E12: 44388920.99 | F12: 31454601.76 | G12: 38725266.44
B13: Non-reference services | C13: 0 | D13: 0 | E13: 0 | F13: 88127.52323 | G13: 0
B14: Total | C14: =SUM(C12:C13) -> 67607516.64 | D14: =SUM(D12:D13) -> 49599124.58 | E14: =SUM(E12:E13) -> 44388920.99 | F14: =SUM(F12:F13) -> 31542729.28 | G14: =SUM(G12:G13) -> 38725266.44
B15: E10.1.2 - CAPEX
B16: Reference services | C16: 14426342.25 | D16: 2530056.77 | E16: 3210610.25 | F16: 4236576.81 | G16: 4369760.77
B17: Non-reference services | C17: 0 | D17: 0 | E17: 1326.43 | F17: 31870.12 | G17: 91453.95
B18: Total | C18: =SUM(C16:C17) -> 14426342.25 | D18: =SUM(D16:D17) -> 2530056.77 | E18: =SUM(E16:E17) -> 3211936.68 | F18: =SUM(F16:F17) -> 4268446.93 | G18: =SUM(G16:G17) -> 4461214.72
B22: E10.2 - CORPORATE
C23: EXPENDITURE
C24: $
C25: =dms_y1 -> 2018-19 | D25: =dms_y2 -> 2019-20 | E25: =dms_y3 -> 2020-21 | F25: =dms_y4 -> 2021-22 | G25: =dms_y5 -> 2022-23
B26: E10.2.1 - OPEX
B27: Reference services | C27: 18819130.13 | D27: 38862787.17 | E27: 32944612.64 | F27: 50972838.18 | G27: 60414766.39
B28: Non-reference services | C28: 0 | D28: 0 | E28: 0 | F28: 0 | G28: 0
B29: Total | C29: =SUM(C27:C28) -> 18819130.13 | D29: =SUM(D27:D28) -> 38862787.17 | E29: =SUM(E27:E28) -> 32944612.64 | F29: =SUM(F27:F28) -> 50972838.18 | G29: =SUM(G27:G28) -> 60414766.39
B30: E10.2.2 - CAPEX
B31: Reference services | C31: 15826654.97 | D31: 15725395.18 | E31: 8066971.74 | F31: 0.44 | G31: 2.842170943e-14
B32: Non-reference services | C32: 0 | D32: 0 | E32: 2517.2 | F32: 0 | G32: 0
B33: Total | C33: =SUM(C31:C32) -> 15826654.97 | D33: =SUM(D31:D32) -> 15725395.18 | E33: =SUM(E31:E32) -> 8069488.94 | F33: =SUM(F31:F32) -> 0.44 | G33: =SUM(G31:G32) -> 2.842170943e-14

Sheet E12. ICT
B1: =INDEX(dms_Worksheet_List,MATCH(dms_Model,dms_Model_List)) -> REGULATORY REPORTING - HISTORICAL DATA
B2: =dms_TradingNameFull -> Jemena Gas Networks (NSW) Ltd
B3: =dms_Header_Span -> 2018-19 to 2022-23
B4: E12. INFORMATION AND COMMUNICATION TECHNOLOGY
B5: FINAL RIN TEMPLATE - FEBRUARY 2024
B7: Please list all projects or categories here:
B8: Asset Management & Geospatial Systems
B9: Corporate Systems/SAP ERP
B10: Customer Experience
B11: Cyber-Security
B12: Data Warehouse & Reporting
B13: Document & Content Management
B14: Enabling Platforms & Networking
B15: End-User Services & Support
B16: Market Interactions & Regulatory Compliance
B17: Metering
B18: Mobility
B19: Real Time Systems/SCADA
B24: E12.1 - CAPEX - BY PROJECT
B25: A. DIRECT INTERNAL LABOUR EXPENDITURE
C26: EXPENDITURE
C27: $
C28: =dms_y1 -> 2018-19 | D28: =dms_y2 -> 2019-20 | E28: =dms_y3 -> 2020-21 | F28: =dms_y4 -> 2021-22 | G28: =dms_y5 -> 2022-23
B29: =IF(ISBLANK(dms_E12_Projects_01),"",dms_E12_Projects_01) -> Asset Management & Geospatial Systems | C29: 813843.24 | D29: 798225.47 | E29: 1897471.5 | F29: 1485118.7 | G29: 1569180.84
B30: =IF(ISBLANK(dms_E12_Projects_02),"",dms_E12_Projects_02) -> Corporate Systems/SAP ERP | C30: 1802454.49 | D30: 1050829.41 | E30: 849522.57 | F30: 538840.51 | G30: 635912.49
B31: =IF(ISBLANK(dms_E12_Projects_03),"",dms_E12_Projects_03) -> Customer Experience | C31: 38507.01 | D31: 138777.5 | E31: 1027880.32 | F31: 933646.67 | G31: 1448953.63
B32: =IF(ISBLANK(dms_E12_Projects_04),"",dms_E12_Projects_04) -> Cyber-Security | C32: 244838.8 | D32: 257002.39 | E32: 407011.61 | F32: 466722.66 | G32: 583175.62
B33: =IF(ISBLANK(dms_E12_Projects_05),"",dms_E12_Projects_05) -> Data Warehouse & Reporting | C33: 104129.62 | D33: 80792.89 | E33: 1436334.74 | F33: 187423.38 | G33: 0
B34: =IF(ISBLANK(dms_E12_Projects_06),"",dms_E12_Projects_06) -> Document & Content Management | C34: 65325.06 | D34: 0 | E34: 0 | F34: 0 | G34: 0
B35: =IF(ISBLANK(dms_E12_Projects_07),"",dms_E12_Projects_07) -> Enabling Platforms & Networking | C35: 928654.25 | D35: 1429846.39 | E35: 2754906.23 | F35: 1082174.95 | G35: 1839335.84
B36: =IF(ISBLANK(dms_E12_Projects_08),"",dms_E12_Projects_08) -> End-User Services & Support | C36: 144173.46 | D36: 130241.44 | E36: 512142.44 | F36: 248018.59 | G36: 270054.84
B37: =IF(ISBLANK(dms_E12_Projects_09),"",dms_E12_Projects_09) -> Market Interactions & Regulatory Compliance | C37: 787277.89 | D37: 370792.09 | E37: 405874.27 | F37: 392947.71 | G37: 253205.49
B38: =IF(ISBLANK(dms_E12_Projects_10),"",dms_E12_Projects_10) -> Metering | C38: 26315.5 | D38: 245930.54 | E38: 589389.71 | F38: 286514.59 | G38: 207876.83
B39: =IF(ISBLANK(dms_E12_Projects_11),"",dms_E12_Projects_11) -> Mobility | C39: 33584.16 | D39: 772604.07 | E39: 723609.56 | F39: 0 | G39: 0
B40: =IF(ISBLANK(dms_E12_Projects_12),"",dms_E12_Projects_12) -> Real Time Systems/SCADA | C40: 2365796.6 | D40: 699867.03 | E40: 4377.6 | F40: 158652.72 | G40: 63565.45
B41: =IF(ISBLANK(dms_E12_Projects_13),"",dms_E12_Projects_13) ->  | D41: 0 | E41: 0 | F41: 0 | G41: 0
B42: =IF(ISBLANK(dms_E12_Projects_14),"",dms_E12_Projects_14) -> 
B43: =IF(ISBLANK(dms_E12_Projects_15),"",dms_E12_Projects_15) -> 
B44: Aggregate of other projects or categories with total expenditure of less than $500,000
B45: Total | C45: =SUM(C29:C44) -> 7354900.08 | D45: =SUM(D29:D44) -> 5974909.22 | E45: =SUM(E29:E44) -> 10608520.55 | F45: =SUM(F29:F44) -> 5780060.48 | G45: =SUM(G29:G44) -> 6871261.03
B47: B. DIRECT CONTRACTOR EXPENDITURE
B48: =IF(ISBLANK(dms_E12_Projects_01),"",dms_E12_Projects_01) -> Asset Management & Geospatial Systems | C48: 706230.08 | D48: 411036.7 | E48: 606494.61 | F48: 934627.81 | G48: 1860591.59
B49: =IF(ISBLANK(dms_E12_Projects_02),"",dms_E12_Projects_02) -> Corporate Systems/SAP ERP | C49: 199671.68 | D49: 112291.01 | E49: 872552.73 | F49: -3364800.315 | G49: 348942.91
B50: =IF(ISBLANK(dms_E12_Projects_03),"",dms_E12_Projects_03) -> Customer Experience | C50: 0 | D50: 0 | E50: 196890 | F50: 172287.67 | G50: 993476.15
B51: =IF(ISBLANK(dms_E12_Projects_04),"",dms_E12_Projects_04) -> Cyber-Security | C51: 36630.92 | D51: 31555.02 | E51: 309777.09 | F51: 412921.81 | G51: 370513.15
B52: =IF(ISBLANK(dms_E12_Projects_05),"",dms_E12_Projects_05) -> Data Warehouse & Reporting | C52: 0 | D52: 0 | E52: 143364 | F52: -473863.7273 | G52: 0
B53: =IF(ISBLANK(dms_E12_Projects_06),"",dms_E12_Projects_06) -> Document & Content Management | C53: 4429 | D53: 0 | E53: 0 | F53: 0 | G53: 0
B54: =IF(ISBLANK(dms_E12_Projects_07),"",dms_E12_Projects_07) -> Enabling Platforms & Networking | C54: 122796.62 | D54: 215387.97 | E54: 388772.15 | F54: -497281.7581 | G54: 1425088.04
B55: =IF(ISBLANK(dms_E12_Projects_08),"",dms_E12_Projects_08) -> End-User Services & Support | C55: 81139.55 | D55: 0 | E55: 84042.06 | F55: -659403.3004 | G55: 61885.48
B56: =IF(ISBLANK(dms_E12_Projects_09),"",dms_E12_Projects_09) -> Market Interactions & Regulatory Compliance | C56: 0 | D56: 62773.2 | E56: 328510 | F56: 1144570 | G56: 440625.8
B57: =IF(ISBLANK(dms_E12_Projects_10),"",dms_E12_Projects_10) -> Metering | C57: 0 | D57: 0 | E57: 51037.19 | F57: 129344.999 | G57: 557139.29
B58: =IF(ISBLANK(dms_E12_Projects_11),"",dms_E12_Projects_11) -> Mobility | C58: 0 | D58: 1145957.8 | E58: 1556590.48 | F58: 0 | G58: 0
B59: =IF(ISBLANK(dms_E12_Projects_12),"",dms_E12_Projects_12) -> Real Time Systems/SCADA | C59: 908247.28 | D59: -216710.28 | E59: 0 | F59: 225537.2 | G59: 133955.26
B60: =IF(ISBLANK(dms_E12_Projects_13),"",dms_E12_Projects_13) -> 
B61: =IF(ISBLANK(dms_E12_Projects_14),"",dms_E12_Projects_14) -> 
B62: =IF(ISBLANK(dms_E12_Projects_15),"",dms_E12_Projects_15) -> 
B63: Aggregate of other projects or categories with total expenditure of less than $500,000
B64: Total | C64: =SUM(C48:C63) -> 2059145.13 | D64: =SUM(D48:D63) -> 1762291.42 | E64: =SUM(E48:E63) -> 4538030.31 | F64: =SUM(F48:F63) -> -1976059.612 | G64: =SUM(G48:G63) -> 6192217.67
B66: C. DIRECT MATERIAL EXPENDITURE
B67: =IF(ISBLANK(dms_E12_Projects_01),"",dms_E12_Projects_01) -> Asset Management & Geospatial Systems | C67: 0 | D67: 0 | E67: 0 | F67: 0 | G67: 0
B68: =IF(ISBLANK(dms_E12_Projects_02),"",dms_E12_Projects_02) -> Corporate Systems/SAP ERP | C68: 0 | D68: 0 | E68: 0 | F68: 0 | G68: 0
B69: =IF(ISBLANK(dms_E12_Projects_03),"",dms_E12_Projects_03) -> Customer Experience | C69: 0 | D69: 0 | E69: 0 | F69: 0 | G69: 0
B70: =IF(ISBLANK(dms_E12_Projects_04),"",dms_E12_Projects_04) -> Cyber-Security | C70: 0 | D70: 0 | E70: 0 | F70: 0 | G70: 0
B71: =IF(ISBLANK(dms_E12_Projects_05),"",dms_E12_Projects_05) -> Data Warehouse & Reporting | C71: 0 | D71: 0 | E71: 0 | F71: 0 | G71: 0
B72: =IF(ISBLANK(dms_E12_Projects_06),"",dms_E12_Projects_06) -> Document & Content Management | C72: 0 | D72: 0 | E72: 0 | F72: 0 | G72: 0
B73: =IF(ISBLANK(dms_E12_Projects_07),"",dms_E12_Projects_07) -> Enabling Platforms & Networking | C73: 0 | D73: 344.21 | E73: 405.29 | F73: 0 | G73: 0
B74: =IF(ISBLANK(dms_E12_Projects_08),"",dms_E12_Projects_08) -> End-User Services & Support | C74: 0 | D74: 0 | E74: 0 | F74: 0 | G74: 0
B75: =IF(ISBLANK(dms_E12_Projects_09),"",dms_E12_Projects_09) -> Market Interactions & Regulatory Compliance | C75: 0 | D75: 0 | E75: 0 | F75: 0 | G75: 0
B76: =IF(ISBLANK(dms_E12_Projects_10),"",dms_E12_Projects_10) -> Metering | C76: 0 | D76: 0 | E76: 0 | F76: 0 | G76: 19010
B77: =IF(ISBLANK(dms_E12_Projects_11),"",dms_E12_Projects_11) -> Mobility | C77: 0 | D77: 0 | E77: 0 | F77: 0 | G77: 0
B78: =IF(ISBLANK(dms_E12_Projects_12),"",dms_E12_Projects_12) -> Real Time Systems/SCADA | C78: 766754.32 | D78: 2107154.9 | E78: 0 | F78: 0 | G78: 0
B79: =IF(ISBLANK(dms_E12_Projects_13),"",dms_E12_Projects_13) -> 
B80: =IF(ISBLANK(dms_E12_Projects_14),"",dms_E12_Projects_14) -> 
B81: =IF(ISBLANK(dms_E12_Projects_15),"",dms_E12_Projects_15) -> 
B82: Aggregate of other projects or categories with total expenditure of less than $500,000
B83: Total | C83: =SUM(C67:C82) -> 766754.32 | D83: =SUM(D67:D82) -> 2107499.11 | E83: =SUM(E67:E82) -> 405.29 | F83: =SUM(F67:F82) -> 0 | G83: =SUM(G67:G82) -> 19010
B85: D. OTHER DIRECT EXPENDITURE
B86: =IF(ISBLANK(dms_E12_Projects_01),"",dms_E12_Projects_01) -> Asset Management & Geospatial Systems | C86: 65160.32 | D86: 116887.5 | E86: 148522.51 | F86: 28303.42 | G86: 770.2
B87: =IF(ISBLANK(dms_E12_Projects_02),"",dms_E12_Projects_02) -> Corporate Systems/SAP ERP | C87: 621308.55 | D87: 571245.88 | E87: -61853.56 | F87: 0 | G87: 282597.94
B88: =IF(ISBLANK(dms_E12_Projects_03),"",dms_E12_Projects_03) -> Customer Experience | C88: 0 | D88: 738.54 | E88: 49960 | F88: 567768.45 | G88: 0
B89: =IF(ISBLANK(dms_E12_Projects_04),"",dms_E12_Projects_04) -> Cyber-Security | C89: 59990.56 | D89: 289411.76 | E89: 116140.48 | F89: 0 | G89: 215849.78
B90: =IF(ISBLANK(dms_E12_Projects_05),"",dms_E12_Projects_05) -> Data Warehouse & Reporting | C90: 5280.89 | D90: 0 | E90: 0 | F90: 0 | G90: 0
B91: =IF(ISBLANK(dms_E12_Projects_06),"",dms_E12_Projects_06) -> Document & Content Management | C91: 51903.63 | D91: 0 | E91: 0 | F91: 0 | G91: 0
B92: =IF(ISBLANK(dms_E12_Projects_07),"",dms_E12_Projects_07) -> Enabling Platforms & Networking | C92: 587591.22 | D92: 1016276.5 | E92: 190493.06 | F92: 424061.51 | G92: 595559.33
B93: =IF(ISBLANK(dms_E12_Projects_08),"",dms_E12_Projects_08) -> End-User Services & Support | C93: 130379.1 | D93: 575372.29 | E93: 633990.02 | F93: 224965.64 | G93: 951135.17
B94: =IF(ISBLANK(dms_E12_Projects_09),"",dms_E12_Projects_09) -> Market Interactions & Regulatory Compliance | C94: 67375.11 | D94: 0 | E94: 0 | F94: 35933.73 | G94: 0
B95: =IF(ISBLANK(dms_E12_Projects_10),"",dms_E12_Projects_10) -> Metering | C95: 0 | D95: 78.04 | E95: -5827.5 | F95: 0 | G95: 4545.45
B96: =IF(ISBLANK(dms_E12_Projects_11),"",dms_E12_Projects_11) -> Mobility | C96: 0 | D96: 96730.9 | E96: 66325.48 | F96: 0 | G96: 0
B97: =IF(ISBLANK(dms_E12_Projects_12),"",dms_E12_Projects_12) -> Real Time Systems/SCADA | C97: 330624.57 | D97: 181638.01 | E97: 0 | F97: 103827.6 | G97: 17535.63
B98: =IF(ISBLANK(dms_E12_Projects_13),"",dms_E12_Projects_13) -> 
B99: =IF(ISBLANK(dms_E12_Projects_14),"",dms_E12_Projects_14) -> 
B100: =IF(ISBLANK(dms_E12_Projects_15),"",dms_E12_Projects_15) -> 
B101: Aggregate of other projects or categories with total expenditure of less than $500,000
B102: Total | C102: =SUM(C86:C101) -> 1919613.95 | D102: =SUM(D86:D101) -> 2848379.42 | E102: =SUM(E86:E101) -> 1137750.49 | F102: =SUM(F86:F101) -> 1384860.35 | G102: =SUM(G86:G101) -> 2067993.5
B104: E. RELATED PARTY MARGIN EXPENDITURE
B105: Total | C105: 0 | D105: 0 | E105: 0 | F105: 0 | G105: 0
B106: Total | C106: =SUM(C105:C105) -> 0 | D106: =SUM(D105:D105) -> 0 | E106: =SUM(E105:E105) -> 0 | F106: =SUM(F105:F105) -> 0 | G106: =SUM(G105:G105) -> 0
B108: F. CAPITAL CONTRIBUTIONS included in the above
B109: =IF(ISBLANK(dms_E12_Projects_01),"",dms_E12_Projects_01) -> Asset Management & Geospatial Systems | C109: 0 | D109: 0 | E109: 0 | F109: 0 | G109: 0
B110: =IF(ISBLANK(dms_E12_Projects_02),"",dms_E12_Projects_02) -> Corporate Systems/SAP ERP | C110: 0 | D110: 0 | E110: 0 | F110: 0 | G110: 0
B111: =IF(ISBLANK(dms_E12_Projects_03),"",dms_E12_Projects_03) -> Customer Experience | C111: 0 | D111: 0 | E111: 0 | F111: 0 | G111: 0
B112: =IF(ISBLANK(dms_E12_Projects_04),"",dms_E12_Projects_04) -> Cyber-Security | C112: 0 | D112: 0 | E112: 0 | F112: 0 | G112: 0
B113: =IF(ISBLANK(dms_E12_Projects_05),"",dms_E12_Projects_05) -> Data Warehouse & Reporting | C113: 0 | D113: 0 | E113: 0 | F113: 0 | G113: 0
B114: =IF(ISBLANK(dms_E12_Projects_06),"",dms_E12_Projects_06) -> Document & Content Management | C114: 0 | D114: 0 | E114: 0 | F114: 0 | G114: 0
B115: =IF(ISBLANK(dms_E12_Projects_07),"",dms_E12_Projects_07) -> Enabling Platforms & Networking | C115: 0 | D115: 0 | E115: 0 | F115: 0 | G115: 0
B116: =IF(ISBLANK(dms_E12_Projects_08),"",dms_E12_Projects_08) -> End-User Services & Support | C116: 0 | D116: 0 | E116: 0 | F116: 0 | G116: 0
B117: =IF(ISBLANK(dms_E12_Projects_09),"",dms_E12_Projects_09) -> Market Interactions & Regulatory Compliance | C117: 0 | D117: 0 | E117: 0 | F117: 0 | G117: 0
B118: =IF(ISBLANK(dms_E12_Projects_10),"",dms_E12_Projects_10) -> Metering | C118: 0 | D118: 0 | E118: 0 | F118: 0 | G118: 0
B119: =IF(ISBLANK(dms_E12_Projects_11),"",dms_E12_Projects_11) -> Mobility | C119: 0 | D119: 0 | E119: 0 | F119: 0 | G119: 0
B120: =IF(ISBLANK(dms_E12_Projects_12),"",dms_E12_Projects_12) -> Real Time Systems/SCADA | C120: 0 | D120: 0 | E120: 0 | F120: 0 | G120: 0
B121: =IF(ISBLANK(dms_E12_Projects_13),"",dms_E12_Projects_13) -> 
B122: =IF(ISBLANK(dms_E12_Projects_14),"",dms_E12_Projects_14) -> 
B123: =IF(ISBLANK(dms_E12_Projects_15),"",dms_E12_Projects_15) -> 
B124: Aggregate of other projects or categories with total expenditure of less than $500,000
B125: Total | C125: =SUM(C109:C124) -> 0 | D125: =SUM(D109:D124) -> 0 | E125: =SUM(E109:E124) -> 0 | F125: =SUM(F109:F124) -> 0 | G125: =SUM(G109:G124) -> 0
B129: E12.2 - EXPENDITURE BY PURPOSE
C130: EXPENDITURE
C131: $
C132: =dms_y1 -> 2018-19 | D132: =dms_y2 -> 2019-20 | E132: =dms_y3 -> 2020-21 | F132: =dms_y4 -> 2021-22 | G132: =dms_y5 -> 2022-23
B133: OPEX
B134: Recurrent expenditure | C134: 9746660.73 | D134: 10741537.39 | E134: 13178515.3 | F134: 24826861.32 | G134: 31590113.49
B135: Non-recurrent expenditure | C135: 1123586.64 | D135: 379767.27 | E135: 571916.11 | F135: 6944867.81 | G135: 5566451.16
B136: Total | C136: =SUM(C134:C135) -> 10870247.37 | D136: =SUM(D134:D135) -> 11121304.66 | E136: 13750431.41 | F136: 31771729.13 | G136: 37156564.65
B137: CAPEX
B138: Recurrent expenditure | C138: 4760608.29 | D138: 4084501.48 | E138: 3970191.54 | F138: 2876799.378 | G138: 5218140.34
B139: Non-recurrent expenditure | C139: 7339805.19 | D139: 8608577.69 | E139: 12314515.1 | F139: 2312061.84 | G139: 9932341.87
B140: Total | C140: =SUM(C138:C139) -> 12100413.48 | D140: =SUM(D138:D139) -> 12693079.17 | E140: 16284706.64 | F140: 5188861.218 | G140: 15150482.21

Sheet E13. Other capex
B1: =INDEX(dms_Worksheet_List,MATCH(dms_Model,dms_Model_List)) -> REGULATORY REPORTING - HISTORICAL DATA
B2: =dms_TradingNameFull -> Jemena Gas Networks (NSW) Ltd
B3: =dms_Header_Span -> 2018-19 to 2022-23
B4: E13. OTHER CAPITAL EXPENDITURE
B5: FINAL RIN TEMPLATE - FEBRUARY 2024
B7: Please list all projects or categories here:
B8: ALBV replacement projects
B9: Facilities projects allocation
B10: Facility upgrade projects - POTS
B11: Facility upgrade projects - PRS
B12: Facility upgrade projects - TRS
B13: Mains relocation projects
B14: Mine subsidence projects
B15: Networks projects allocation
B16: Networks upgrade projects
B17: Non Network General - Plant & Equipt
B18: Non Network General - Property
B19: Non Network General - Vehicles
B20: Pigging & Validation digs
B21: Pigging facilities projects
B22: Pipes projects allocation
B23: Pipes upgrade projects
B24: Pipes washaway projects
B25: Primary mains integrity projects - SPM
B26: SRS replacement projects
B49: E13.1 - CAPEX - BY PROJECT
C50: EXPENDITURE
C51: $
C52: =dms_y1 -> 2018-19 | D52: =dms_y2 -> 2019-20 | E52: =dms_y3 -> 2020-21 | F52: =dms_y4 -> 2021-22 | G52: =dms_y5 -> 2022-23
B53: A. DIRECT INTERNAL LABOUR EXPENDITURE
B54: =IF(ISBLANK(dms_E13_Projects_01),"",dms_E13_Projects_01) -> ALBV replacement projects | C54: 33517.76 | D54: 1393.75 | E54: 1466.3 | F54: 0 | G54: 3432.86
B55: =IF(ISBLANK(dms_E13_Projects_02),"",dms_E13_Projects_02) -> Facilities projects allocation | C55: 11142.79 | D55: 10962.45 | E55: 0 | F55: 23251.08 | G55: 36174.25
B56: =IF(ISBLANK(dms_E13_Projects_03),"",dms_E13_Projects_03) -> Facility upgrade projects - POTS | C56: 9073.36 | D56: 8526.41 | E56: 346.7 | F56: 57296.49 | G56: 31050.82
B57: =IF(ISBLANK(dms_E13_Projects_04),"",dms_E13_Projects_04) -> Facility upgrade projects - PRS | C57: 682735.65 | D57: 396320.72 | E57: 282363.42 | F57: 474743.43 | G57: 40849.71
B58: =IF(ISBLANK(dms_E13_Projects_05),"",dms_E13_Projects_05) -> Facility upgrade projects - TRS | C58: 335566.03 | D58: 271630.69 | E58: 206982.25 | F58: 5164.81 | G58: 102111.9
B59: =IF(ISBLANK(dms_E13_Projects_06),"",dms_E13_Projects_06) -> Mains relocation projects | C59: 74774.76 | D59: 844.87 | E59: 1358.88 | F59: 1062.25 | G59: 12578.34
B60: =IF(ISBLANK(dms_E13_Projects_07),"",dms_E13_Projects_07) -> Mine subsidence projects | C60: 0 | D60: 0 | E60: 0 | F60: 0 | G60: 0
B61: =IF(ISBLANK(dms_E13_Projects_08),"",dms_E13_Projects_08) -> Networks projects allocation | C61: 38904.76 | D61: 16695.27 | E61: 285.06 | F61: 0 | G61: 16666.13
B62: =IF(ISBLANK(dms_E13_Projects_09),"",dms_E13_Projects_09) -> Networks upgrade projects | C62: 14927.85 | D62: 45901.68 | E62: 69130.04 | F62: 158412.63 | G62: 155294.27
B63: =IF(ISBLANK(dms_E13_Projects_10),"",dms_E13_Projects_10) -> Non Network General - Plant & Equipt | C63: 0 | D63: 0 | E63: 0 | F63: 0 | G63: 0
B64: =IF(ISBLANK(dms_E13_Projects_11),"",dms_E13_Projects_11) -> Non Network General - Property | C64: 3603.68 | D64: 1504.82 | E64: 3000 | F64: 44699.28 | G64: 54172.29
B65: =IF(ISBLANK(dms_E13_Projects_12),"",dms_E13_Projects_12) -> Non Network General - Vehicles | C65: 0 | D65: 0 | E65: 0 | F65: 0 | G65: 0
B66: =IF(ISBLANK(dms_E13_Projects_13),"",dms_E13_Projects_13) -> Pigging & Validation digs | C66: 393191.51 | D66: 197289.86 | E66: 0 | F66: 0 | G66: 0
B67: =IF(ISBLANK(dms_E13_Projects_14),"",dms_E13_Projects_14) -> Pigging facilities projects | C67: 307543.13 | D67: 93495.45 | E67: 19688.38 | F67: 10701.18 | G67: 60896.79
B68: =IF(ISBLANK(dms_E13_Projects_15),"",dms_E13_Projects_15) -> Pipes projects allocation | C68: 10371.92 | D68: 10442.53 | E68: 2232.97 | F68: 182.35 | G68: 1513.33
B69: =IF(ISBLANK(dms_E13_Projects_16),"",dms_E13_Projects_16) -> Pipes upgrade projects | C69: 51895.39 | D69: 70307.99 | E69: 8233.67 | F69: 1461.28 | G69: 70994.24
B70: =IF(ISBLANK(dms_E13_Projects_17),"",dms_E13_Projects_17) -> Pipes washaway projects | C70: 4013.05 | D70: 21752.02 | E70: 9143.13 | F70: 51914.11 | G70: 24724.58
B71: =IF(ISBLANK(dms_E13_Projects_18),"",dms_E13_Projects_18) -> Primary mains integrity projects - SPM | C71: 20511.04 | D71: 105776.18 | E71: 321549.93 | F71: 97402.7 | G71: 65706.52
B72: =IF(ISBLANK(dms_E13_Projects_19),"",dms_E13_Projects_19) -> SRS replacement projects | C72: 25793.21 | D72: 3412.4 | E72: 0 | F72: 822.15 | G72: 0
B73: =IF(ISBLANK(dms_E13_Projects_20),"",dms_E13_Projects_20) -> 
B74: =IF(ISBLANK(dms_E13_Projects_21),"",dms_E13_Projects_21) -> 
B75: =IF(ISBLANK(dms_E13_Projects_22),"",dms_E13_Projects_22) -> 
B76: =IF(ISBLANK(dms_E13_Projects_23),"",dms_E13_Projects_23) -> 
B77: =IF(ISBLANK(dms_E13_Projects_24),"",dms_E13_Projects_24) -> 
B78: =IF(ISBLANK(dms_E13_Projects_25),"",dms_E13_Projects_25) -> 
B79: =IF(ISBLANK(dms_E13_Projects_26),"",dms_E13_Projects_26) -> 
B80: =IF(ISBLANK(dms_E13_Projects_27),"",dms_E13_Projects_27) -> 
B81: =IF(ISBLANK(dms_E13_Projects_28),"",dms_E13_Projects_28) -> 
B82: =IF(ISBLANK(dms_E13_Projects_29),"",dms_E13_Projects_29) -> 
B83: =IF(ISBLANK(dms_E13_Projects_30),"",dms_E13_Projects_30) -> 
B84: =IF(ISBLANK(dms_E13_Projects_31),"",dms_E13_Projects_31) -> 
B85: =IF(ISBLANK(dms_E13_Projects_32),"",dms_E13_Projects_32) -> 
B86: =IF(ISBLANK(dms_E13_Projects_33),"",dms_E13_Projects_33) -> 
B87: =IF(ISBLANK(dms_E13_Projects_34),"",dms_E13_Projects_34) -> 
B88: =IF(ISBLANK(dms_E13_Projects_35),"",dms_E13_Projects_35) -> 
B89: =IF(ISBLANK(dms_E13_Projects_36),"",dms_E13_Projects_36) -> 
B90: =IF(ISBLANK(dms_E13_Projects_37),"",dms_E13_Projects_37) -> 
B91: =IF(ISBLANK(dms_E13_Projects_38),"",dms_E13_Projects_38) -> 
B92: =IF(ISBLANK(dms_E13_Projects_39),"",dms_E13_Projects_39) -> 
B93: =IF(ISBLANK(dms_E13_Projects_40),"",dms_E13_Projects_40) -> 
B94: Aggregate of other projects or categories with total expenditure of less than $500,000
B95: Total | C95: =SUM(C54:C94) -> 2017565.89 | D95: =SUM(D54:D94) -> 1256257.09 | E95: =SUM(E54:E94) -> 925780.73 | F95: =SUM(F54:F94) -> 927113.74 | G95: =SUM(G54:G94) -> 676166.03
B97: B. DIRECT CONTRACTOR EXPENDITURE
B98: =IF(ISBLANK(dms_E13_Projects_01),"",dms_E13_Projects_01) -> ALBV replacement projects
B99: =IF(ISBLANK(dms_E13_Projects_02),"",dms_E13_Projects_02) -> Facilities projects allocation
B100: =IF(ISBLANK(dms_E13_Projects_03),"",dms_E13_Projects_03) -> Facility upgrade projects - POTS
B101: =IF(ISBLANK(dms_E13_Projects_04),"",dms_E13_Projects_04) -> Facility upgrade projects - PRS
B102: =IF(ISBLANK(dms_E13_Projects_05),"",dms_E13_Projects_05) -> Facility upgrade projects - TRS
B103: =IF(ISBLANK(dms_E13_Projects_06),"",dms_E13_Projects_06) -> Mains relocation projects
B104: =IF(ISBLANK(dms_E13_Projects_07),"",dms_E13_Projects_07) -> Mine subsidence projects
B105: =IF(ISBLANK(dms_E13_Projects_08),"",dms_E13_Projects_08) -> Networks projects allocation
B106: =IF(ISBLANK(dms_E13_Projects_09),"",dms_E13_Projects_09) -> Networks upgrade projects
B107: =IF(ISBLANK(dms_E13_Projects_10),"",dms_E13_Projects_10) -> Non Network General - Plant & Equipt
B108: =IF(ISBLANK(dms_E13_Projects_11),"",dms_E13_Projects_11) -> Non Network General - Property
B109: =IF(ISBLANK(dms_E13_Projects_12),"",dms_E13_Projects_12) -> Non Network General - Vehicles
B110: =IF(ISBLANK(dms_E13_Projects_13),"",dms_E13_Projects_13) -> Pigging & Validation digs
B111: =IF(ISBLANK(dms_E13_Projects_14),"",dms_E13_Projects_14) -> Pigging facilities projects
B112: =IF(ISBLANK(dms_E13_Projects_15),"",dms_E13_Projects_15) -> Pipes projects allocation
B113: =IF(ISBLANK(dms_E13_Projects_16),"",dms_E13_Projects_16) -> Pipes upgrade projects
B114: =IF(ISBLANK(dms_E13_Projects_17),"",dms_E13_Projects_17) -> Pipes washaway projects
B115: =IF(ISBLANK(dms_E13_Projects_18),"",dms_E13_Projects_18) -> Primary mains integrity projects - SPM
B116: =IF(ISBLANK(dms_E13_Projects_19),"",dms_E13_Projects_19) -> SRS replacement projects
B117: =IF(ISBLANK(dms_E13_Projects_20),"",dms_E13_Projects_20) -> 
B118: =IF(ISBLANK(dms_E13_Projects_21),"",dms_E13_Projects_21) -> 
B119: =IF(ISBLANK(dms_E13_Projects_22),"",dms_E13_Projects_22) -> 
B120: =IF(ISBLANK(dms_E13_Projects_23),"",dms_E13_Projects_23) -> 
B121: =IF(ISBLANK(dms_E13_Projects_24),"",dms_E13_Projects_24) -> 
B122: =IF(ISBLANK(dms_E13_Projects_25),"",dms_E13_Projects_25) -> 
B123: =IF(ISBLANK(dms_E13_Projects_26),"",dms_E13_Projects_26) -> 
B124: =IF(ISBLANK(dms_E13_Projects_27),"",dms_E13_Projects_27) -> 
B125: =IF(ISBLANK(dms_E13_Projects_28),"",dms_E13_Projects_28) -> 
B126: =IF(ISBLANK(dms_E13_Projects_29),"",dms_E13_Projects_29) -> 
B127: =IF(ISBLANK(dms_E13_Projects_30),"",dms_E13_Projects_30) -> 
B128: =IF(ISBLANK(dms_E13_Projects_31),"",dms_E13_Projects_31) -> 
B129: =IF(ISBLANK(dms_E13_Projects_32),"",dms_E13_Projects_32) -> 
B130: =IF(ISBLANK(dms_E13_Projects_33),"",dms_E13_Projects_33) -> 
B131: =IF(ISBLANK(dms_E13_Projects_34),"",dms_E13_Projects_34) -> 
B132: =IF(ISBLANK(dms_E13_Projects_35),"",dms_E13_Projects_35) -> 
B133: =IF(ISBLANK(dms_E13_Projects_36),"",dms_E13_Projects_36) -> 
B134: =IF(ISBLANK(dms_E13_Projects_37),"",dms_E13_Projects_37) -> 
B135: =IF(ISBLANK(dms_E13_Projects_38),"",dms_E13_Projects_38) -> 
B136: =IF(ISBLANK(dms_E13_Projects_39),"",dms_E13_Projects_39) -> 
B137: =IF(ISBLANK(dms_E13_Projects_40),"",dms_E13_Projects_40) -> 
B138: Aggregate of other projects or categories with total expenditure of less than $500,000
B139: Total | C139: =SUM(C98:C138) -> 0 | D139: =SUM(D98:D138) -> 0 | E139: =SUM(E98:E138) -> 0 | F139: =SUM(F98:F138) -> 0 | G139: =SUM(G98:G138) -> 0
B141: C. DIRECT MATERIAL EXPENDITURE
B142: =IF(ISBLANK(dms_E13_Projects_01),"",dms_E13_Projects_01) -> ALBV replacement projects | C142: 0 | D142: 3080 | E142: 319.83 | F142: 0 | G142: 0
B143: =IF(ISBLANK(dms_E13_Projects_02),"",dms_E13_Projects_02) -> Facilities projects allocation | C143: 474.21 | D143: 4837.76 | E143: 2723.32 | F143: 3633.6 | G143: 17373.37
B144: =IF(ISBLANK(dms_E13_Projects_03),"",dms_E13_Projects_03) -> Facility upgrade projects - POTS | C144: 0 | D144: 3893.61 | E144: 0 | F144: 63830 | G144: 34.45
B145: =IF(ISBLANK(dms_E13_Projects_04),"",dms_E13_Projects_04) -> Facility upgrade projects - PRS | C145: 5590.96 | D145: 246648.7 | E145: 125519.93 | F145: 0 | G145: 0
B146: =IF(ISBLANK(dms_E13_Projects_05),"",dms_E13_Projects_05) -> Facility upgrade projects - TRS | C146: 65791.97 | D146: 40251.85 | E146: 5722.65 | F146: 14350 | G146: 0
B147: =IF(ISBLANK(dms_E13_Projects_06),"",dms_E13_Projects_06) -> Mains relocation projects | C147: 973.17 | D147: 0 | E147: 8986.71 | F147: 0 | G147: 0
B148: =IF(ISBLANK(dms_E13_Projects_07),"",dms_E13_Projects_07) -> Mine subsidence projects | C148: 0 | D148: 0 | E148: 0 | F148: 0 | G148: 0
B149: =IF(ISBLANK(dms_E13_Projects_08),"",dms_E13_Projects_08) -> Networks projects allocation | C149: 66372.36 | D149: 38088.28 | E149: 18880.39 | F149: 0 | G149: 0
B150: =IF(ISBLANK(dms_E13_Projects_09),"",dms_E13_Projects_09) -> Networks upgrade projects | C150: 0 | D150: 0 | E150: 11195.32 | F150: 0 | G150: 0
B151: =IF(ISBLANK(dms_E13_Projects_10),"",dms_E13_Projects_10) -> Non Network General - Plant & Equipt | C151: 28200 | D151: 0 | E151: 992105.59 | F151: 88764.97 | G151: 23150
B152: =IF(ISBLANK(dms_E13_Projects_11),"",dms_E13_Projects_11) -> Non Network General - Property | C152: 127553.13 | D152: 596742.13 | E152: 163258.34 | F152: 30455.07 | G152: 350397.93
B153: =IF(ISBLANK(dms_E13_Projects_12),"",dms_E13_Projects_12) -> Non Network General - Vehicles | C153: 0 | D153: 0 | E153: 0 | F153: 365479.6 | G153: 3998052.26
B154: =IF(ISBLANK(dms_E13_Projects_13),"",dms_E13_Projects_13) -> Pigging & Validation digs | C154: 32810.68 | D154: 115403.22 | E154: 0 | F154: 0 | G154: 0
B155: =IF(ISBLANK(dms_E13_Projects_14),"",dms_E13_Projects_14) -> Pigging facilities projects | C155: 26830.43 | D155: 1143781.6 | E155: 29890.81 | F155: 0 | G155: 0
B156: =IF(ISBLANK(dms_E13_Projects_15),"",dms_E13_Projects_15) -> Pipes projects allocation | C156: 0 | D156: 5741.5 | E156: 2274.54 | F156: 0 | G156: 0
B157: =IF(ISBLANK(dms_E13_Projects_16),"",dms_E13_Projects_16) -> Pipes upgrade projects | C157: 0 | D157: 0 | E157: 0 | F157: 0 | G157: 0
B158: =IF(ISBLANK(dms_E13_Projects_17),"",dms_E13_Projects_17) -> Pipes washaway projects | C158: 0 | D158: 2865.08 | E158: 0 | F158: 9750 | G158: 0
B159: =IF(ISBLANK(dms_E13_Projects_18),"",dms_E13_Projects_18) -> Primary mains integrity projects - SPM | C159: 0 | D159: 114800 | E159: 89362.99 | F159: 0 | G159: 456.8
B160: =IF(ISBLANK(dms_E13_Projects_19),"",dms_E13_Projects_19) -> SRS replacement projects | C160: 0 | D160: 0 | E160: 8517.62 | F160: 0 | G160: 0
B161: =IF(ISBLANK(dms_E13_Projects_20),"",dms_E13_Projects_20) ->  | C161: 0 | D161: 0 | E161: 0 | F161: 0 | G161: 0
B162: =IF(ISBLANK(dms_E13_Projects_21),"",dms_E13_Projects_21) -> 
B163: =IF(ISBLANK(dms_E13_Projects_22),"",dms_E13_Projects_22) -> 
B164: =IF(ISBLANK(dms_E13_Projects_23),"",dms_E13_Projects_23) -> 
B165: =IF(ISBLANK(dms_E13_Projects_24),"",dms_E13_Projects_24) -> 
B166: =IF(ISBLANK(dms_E13_Projects_25),"",dms_E13_Projects_25) -> 
B167: =IF(ISBLANK(dms_E13_Projects_26),"",dms_E13_Projects_26) -> 
B168: =IF(ISBLANK(dms_E13_Projects_27),"",dms_E13_Projects_27) -> 
B169: =IF(ISBLANK(dms_E13_Projects_28),"",dms_E13_Projects_28) -> 
B170: =IF(ISBLANK(dms_E13_Projects_29),"",dms_E13_Projects_29) -> 
B171: =IF(ISBLANK(dms_E13_Projects_30),"",dms_E13_Projects_30) -> 
B172: =IF(ISBLANK(dms_E13_Projects_31),"",dms_E13_Projects_31) -> 
B173: =IF(ISBLANK(dms_E13_Projects_32),"",dms_E13_Projects_32) -> 
B174: =IF(ISBLANK(dms_E13_Projects_33),"",dms_E13_Projects_33) -> 
B175: =IF(ISBLANK(dms_E13_Projects_34),"",dms_E13_Projects_34) -> 
B176: =IF(ISBLANK(dms_E13_Projects_35),"",dms_E13_Projects_35) -> 
B177: =IF(ISBLANK(dms_E13_Projects_36),"",dms_E13_Projects_36) -> 
B178: =IF(ISBLANK(dms_E13_Projects_37),"",dms_E13_Projects_37) -> 
B179: =IF(ISBLANK(dms_E13_Projects_38),"",dms_E13_Projects_38) -> 
B180: =IF(ISBLANK(dms_E13_Projects_39),"",dms_E13_Projects_39) -> 
B181: =IF(ISBLANK(dms_E13_Projects_40),"",dms_E13_Projects_40) -> 
B182: Aggregate of other projects or categories with total expenditure of less than $500,000
B183: Total | C183: =SUM(C142:C182) -> 354596.91 | D183: =SUM(D142:D182) -> 2316133.73 | E183: =SUM(E142:E182) -> 1458758.04 | F183: =SUM(F142:F182) -> 576263.24 | G183: =SUM(G142:G182) -> 4389464.81
B185: D. OTHER DIRECT EXPENDITURE
B186: =IF(ISBLANK(dms_E13_Projects_01),"",dms_E13_Projects_01) -> ALBV replacement projects | C186: 323.22 | D186: 0 | E186: 0 | F186: 0 | G186: 0
B187: =IF(ISBLANK(dms_E13_Projects_02),"",dms_E13_Projects_02) -> Facilities projects allocation | C187: 633.27 | D187: 30420 | E187: 0 | F187: 1958 | G187: 120
B188: =IF(ISBLANK(dms_E13_Projects_03),"",dms_E13_Projects_03) -> Facility upgrade projects - POTS | C188: 0 | D188: 399.96 | E188: 0 | F188: 0 | G188: 0
B189: =IF(ISBLANK(dms_E13_Projects_04),"",dms_E13_Projects_04) -> Facility upgrade projects - PRS | C189: 66120.44 | D189: 15452.9 | E189: 262.76 | F189: 98572.19 | G189: 0
B190: =IF(ISBLANK(dms_E13_Projects_05),"",dms_E13_Projects_05) -> Facility upgrade projects - TRS | C190: 40523.97 | D190: 40257.92 | E190: 61126.49 | F190: -88963.19 | G190: 0
B191: =IF(ISBLANK(dms_E13_Projects_06),"",dms_E13_Projects_06) -> Mains relocation projects | C191: 20703.39 | D191: 45.45 | E191: 64843.27 | F191: 0 | G191: 0
B192: =IF(ISBLANK(dms_E13_Projects_07),"",dms_E13_Projects_07) -> Mine subsidence projects | C192: 0 | D192: 0 | E192: 0 | F192: 0 | G192: 0
B193: =IF(ISBLANK(dms_E13_Projects_08),"",dms_E13_Projects_08) -> Networks projects allocation | C193: 2068.67 | D193: 7822.58 | E193: 0 | F193: 0 | G193: 0
B194: =IF(ISBLANK(dms_E13_Projects_09),"",dms_E13_Projects_09) -> Networks upgrade projects | C194: 0 | D194: 0 | E194: 372.24 | F194: 0 | G194: 0
B195: =IF(ISBLANK(dms_E13_Projects_10),"",dms_E13_Projects_10) -> Non Network General - Plant & Equipt | C195: 386376.83 | D195: 1038064.05 | E195: 4788 | F195: 0 | G195: 3857005.55
B196: =IF(ISBLANK(dms_E13_Projects_11),"",dms_E13_Projects_11) -> Non Network General - Property | C196: 246002.14 | D196: 73253.36 | E196: 252564.01 | F196: 446677.32 | G196: 591036.79
B197: =IF(ISBLANK(dms_E13_Projects_12),"",dms_E13_Projects_12) -> Non Network General - Vehicles | C197: 2021081.39 | D197: 445195.34 | E197: 4397931.17 | F197: 2278666.53 | G197: 0
B198: =IF(ISBLANK(dms_E13_Projects_13),"",dms_E13_Projects_13) -> Pigging & Validation digs | C198: 35293.81 | D198: 28699.98 | E198: 0 | F198: 0 | G198: 0
B199: =IF(ISBLANK(dms_E13_Projects_14),"",dms_E13_Projects_14) -> Pigging facilities projects | C199: 56952.9 | D199: 2262.86 | E199: 0 | F199: 0 | G199: 0
B200: =IF(ISBLANK(dms_E13_Projects_15),"",dms_E13_Projects_15) -> Pipes projects allocation | C200: 2201.49 | D200: 14348.08 | E200: 0 | F200: 0 | G200: 0
B201: =IF(ISBLANK(dms_E13_Projects_16),"",dms_E13_Projects_16) -> Pipes upgrade projects | C201: 37731.48 | D201: 0 | E201: 0 | F201: 0 | G201: 0
B202: =IF(ISBLANK(dms_E13_Projects_17),"",dms_E13_Projects_17) -> Pipes washaway projects | C202: 251.49 | D202: 4898.11 | E202: 0 | F202: 0 | G202: 0
B203: =IF(ISBLANK(dms_E13_Projects_18),"",dms_E13_Projects_18) -> Primary mains integrity projects - SPM | C203: 12.12 | D203: 1836.23 | E203: 10198.8 | F203: 0 | G203: 0
B204: =IF(ISBLANK(dms_E13_Projects_19),"",dms_E13_Projects_19) -> SRS replacement projects | C204: 81.81 | D204: 0 | E204: 0 | F204: 0 | G204: 0
B205: =IF(ISBLANK(dms_E13_Projects_20),"",dms_E13_Projects_20) ->  | C205: 0 | D205: 0 | E205: 0 | F205: 0 | G205: 0
B206: =IF(ISBLANK(dms_E13_Projects_21),"",dms_E13_Projects_21) -> 
B207: =IF(ISBLANK(dms_E13_Projects_22),"",dms_E13_Projects_22) -> 
B208: =IF(ISBLANK(dms_E13_Projects_23),"",dms_E13_Projects_23) -> 
B209: =IF(ISBLANK(dms_E13_Projects_24),"",dms_E13_Projects_24) -> 
B210: =IF(ISBLANK(dms_E13_Projects_25),"",dms_E13_Projects_25) -> 
B211: =IF(ISBLANK(dms_E13_Projects_26),"",dms_E13_Projects_26) -> 
B212: =IF(ISBLANK(dms_E13_Projects_27),"",dms_E13_Projects_27) -> 
B213: =IF(ISBLANK(dms_E13_Projects_28),"",dms_E13_Projects_28) -> 
B214: =IF(ISBLANK(dms_E13_Projects_29),"",dms_E13_Projects_29) -> 
B215: =IF(ISBLANK(dms_E13_Projects_30),"",dms_E13_Projects_30) -> 
B216: =IF(ISBLANK(dms_E13_Projects_31),"",dms_E13_Projects_31) -> 
B217: =IF(ISBLANK(dms_E13_Projects_32),"",dms_E13_Projects_32) -> 
B218: =IF(ISBLANK(dms_E13_Projects_33),"",dms_E13_Projects_33) -> 
B219: =IF(ISBLANK(dms_E13_Projects_34),"",dms_E13_Projects_34) -> 
B220: =IF(ISBLANK(dms_E13_Projects_35),"",dms_E13_Projects_35) -> 
B221: =IF(ISBLANK(dms_E13_Projects_36),"",dms_E13_Projects_36) -> 
B222: =IF(ISBLANK(dms_E13_Projects_37),"",dms_E13_Projects_37) -> 
B223: =IF(ISBLANK(dms_E13_Projects_38),"",dms_E13_Projects_38) -> 
B224: =IF(ISBLANK(dms_E13_Projects_39),"",dms_E13_Projects_39) -> 
B225: =IF(ISBLANK(dms_E13_Projects_40),"",dms_E13_Projects_40) -> 
B226: Aggregate of other projects or categories with total expenditure of less than $500,000
... 47 more rows

Sheet S1. Cust. no.-by type
B1: =INDEX(dms_Worksheet_List,MATCH(dms_Model,dms_Model_List)) -> REGULATORY REPORTING - HISTORICAL DATA
B2: =dms_TradingNameFull -> Jemena Gas Networks (NSW) Ltd
B3: =dms_Header_Span -> 2018-19 to 2022-23
B4: S1. CUSTOMER NUMBERS
B5: FINAL RIN TEMPLATE - FEBRUARY 2024
B7: S1.1 - CUSTOMER NUMBERS - BY CUSTOMER (GAS) TYPE
C8: NUMBER OF CUSTOMERS
C9: =dms_y1 -> 2018-19 | D9: =dms_y2 -> 2019-20 | E9: =dms_y3 -> 2020-21 | F9: =dms_y4 -> 2021-22 | G9: =dms_y5 -> 2022-23
B10: A. RESIDENTIAL
B11: Customer numbers - beginning of year | C11: 1353974 | D11: 1398933 | E11: 1416611 | F11: 1441373 | G11: 1460146
B12: Customer numbers - end of year | C12: 1398933 | D12: 1416611 | E12: 1441373 | F12: 1458983 | G12: 1480263
B13: Total customer connections | C13: 47783 | D13: 49414.55147 | E13: 43721.63577 | F13: 38303.76 | G13: 39848
B14: Total customer disconnections | C14: 2824 | D14: 31736.55147 | E14: 18959.63577 | F14: 20693.76 | G14: 20301
B15: B. COMMERCIAL
B16: Customer numbers - beginning of year | C16: 35937 | D16: 36511 | E16: 34684 | F16: 34939 | G16: 34333
B17: Customer numbers - end of year | C17: 36511 | D17: 34684 | E17: 34939 | F17: 34964 | G17: 34172
B18: Total customer connections | C18: 843 | D18: 1342.448534 | E18: 1280.364233 | F18: 887.24 | G18: 999
B19: Total customer disconnections | C19: 269 | D19: 3169.448534 | E19: 1025.364233 | F19: 862.24 | G19: 931
B20: C. INDUSTRIAL
B21: Customer numbers - beginning of year | C21: 385.2451613 | D21: 380 | E21: 374 | F21: 374 | G21: 381
B22: Customer numbers - end of year | C22: 379.7 | D22: 374 | E22: 374 | F22: 381 | G22: 379
B23: Total customer connections | C23: 1 | D23: 9 | E23: 6 | F23: 12 | G23: 8
B24: Total customer disconnections | C24: 7 | D24: 15 | E24: 6 | F24: 5 | G24: 10
B28: S1.3 - CUSTOMER DISCONNECTIONS - BY CUSTOMER (GAS) TYPE
C29: NUMBER OF CUSTOMERS
C30: =dms_y1 -> 2018-19 | D30: =dms_y2 -> 2019-20 | E30: =dms_y3 -> 2020-21 | F30: =dms_y4 -> 2021-22 | G30: =dms_y5 -> 2022-23
B31: A. RESIDENTIAL
B32: Disconnection - meter not removed | C32: 0 | D32: 27840.55147 | E32: 15878.18564 | F32: 17004.14338 | G32: 16698
B33: Disconnection - meter removed | C33: 0 | D33: 0 | E33: 0 | F33: 0 | G33: 0
B34: Disconnection - other | C34: 0 | D34: 0 | E34: 0 | F34: 0 | G34: 0
B35: Abolishment | C35: 2824 | D35: 3896 | E35: 3081.450123 | F35: 3689.616625 | G35: 3603
B36: B. COMMERCIAL
B37: Disconnection - meter not removed | C37: 0 | D37: 2516.448534 | E37: 858.715001 | F37: 708.505974 | G37: 817
B38: Disconnection - meter removed | C38: 0 | D38: 0 | E38: 0 | F38: 0 | G38: 0
B39: Disconnection - other | C39: 0 | D39: 0 | E39: 0 | F39: 0 | G39: 0
B40: Abolishment | C40: 269 | D40: 653 | E40: 166.6492322 | F40: 153.734026 | G40: 114
B41: C. INDUSTRIAL
B42: Disconnection - meter not removed | C42: 0 | D42: 0 | E42: 0 | F42: 0 | G42: 0
B43: Disconnection - meter removed | C43: 0 | D43: 0 | E43: 0 | F43: 0 | G43: 0
B44: Disconnection - other | C44: 0 | D44: 0 | E44: 0 | F44: 0 | G44: 0
B45: Abolishment | C45: 7 | D45: 15 | E45: 6 | F45: 5 | G45: 10
B48: S1.4 - CONNECTION ACTIVITIES - BY CUSTOMER (GAS) TYPE
C49: NUMBER OF CONNECTIONS
C50: =dms_y1 -> 2018-19 | D50: =dms_y2 -> 2019-20 | E50: =dms_y3 -> 2020-21 | F50: =dms_y4 -> 2021-22 | G50: =dms_y5 -> 2022-23
B51: A. RESIDENTIAL
B52: New connections (no previous supply) | C52: 47783 | D52: 37646 | E52: 30486 | F52: 25886 | G52: 22978
B53: Reconnections (previous supply at the connection point) | C53: 0 | D53: 11768.55147 | E53: 13235.63577 | F53: 12417.76 | G53: 16948
B54: B. COMMERCIAL
B55: New connections (no previous supply) | C55: 843 | D55: 765 | E55: 804 | F55: 679 | G55: 435
B56: Reconnections (previous supply at the connection point) | C56: 0 | D56: 577.4485337 | E56: 476.3642331 | F56: 208.24 | G56: 564
B57: C. INDUSTRIAL
B58: New connections (no previous supply) | C58: 1 | D58: 9 | E58: 6 | F58: 12 | G58: 8
B59: Reconnections (previous supply at the connection point) | C59: 0 | D59: 0 | E59: 0 | F59: 0 | G59: 0
B62: S1.5 - DORMANT CONNECTIONS - BY CUSTOMER (GAS) TYPE
C63: NUMBER OF DORMANT CONNECTIONS
C64: =dms_y1 -> 2018-19 | D64: =dms_y2 -> 2019-20 | E64: =dms_y3 -> 2020-21 | F64: =dms_y4 -> 2021-22 | G64: =dms_y5 -> 2022-23
B65: A. RESIDENTIAL
B66: Dormant connection <= 12 months | C66: 28226 | D66: 24830 | E66: 22298 | F66: 21874 | G66: 21624
B67: Dormant connection > 12 months | C67: 23969 | D67: 26788 | E67: 29398 | F67: 29493 | G67: 29793
B68: B. COMMERCIAL
B69: Dormant connection <= 12 months | C69: 849 | D69: 957 | E69: 756 | F69: 819 | G69: 807
B70: Dormant connection > 12 months | C70: 1781 | D70: 2022 | E70: 2223 | F70: 2270 | G70: 2189
B71: C. INDUSTRIAL
B72: Dormant connection <= 12 months | C72: 0 | D72: 0 | E72: 0 | F72: 0 | G72: 0
B73: Dormant connection > 12 months | C73: 0 | D73: 0 | E73: 0 | F73: 0 | G73: 0

Sheet Additional disclosures

Sheet AER CF (hidden)
B1: AER CONDITIONAL FORMATTING
B4: CONDITIONAL FORMATTING MAP
F5: =INDEX(dms_CF_3.6.1, MATCH(dms_TradingName,dms_CF_TradingName))="Y" | G5: =INDEX(dms_CF_3.6.5, MATCH(dms_TradingName,dms_CF_TradingName))="Y" | H5: =INDEX(dms_CF_3.6.6, MATCH(dms_TradingName,dms_CF_TradingName))="Y" | I5: =INDEX(dms_CF_3.6.7.1, MATCH(dms_TradingName,dms_CF_TradingName))="Y" | J5: =INDEX(dms_CF_3.6.7.2, MATCH(dms_TradingName,dms_CF_TradingName))="Y" | K5: =INDEX(dms_CF_3.6.7.3, MATCH(dms_TradingName,dms_CF_TradingName))="Y" | L5: =INDEX(dms_CF_3.6.7.4, MATCH(dms_TradingName,dms_CF_TradingName))="Y" | M5: =INDEX(dms_CF_3.6.8, MATCH(dms_TradingName,dms_CF_TradingName))="Y" | N5: =INDEX(dms_CF_4.1, MATCH(dms_TradingName,dms_CF_TradingName))="Y" | O5: =INDEX(dms_CF_6.6.1, MATCH(dms_TradingName,dms_CF_TradingName))="Y" | P5: =INDEX(dms_CF_6.8, MATCH(dms_TradingName,dms_CF_TradingName))="Y" | Q5: =INDEX(dms_CF_7.12, MATCH(dms_TradingName,dms_CF_TradingName))="Y" | R5: =INDEX(dms_CF_8.1_A, MATCH(dms_TradingName,dms_CF_TradingName))="Y" | S5: =INDEX(dms_CF_8.1_B, MATCH(dms_TradingName,dms_CF_TradingName))="Y" | T5: =INDEX(dms_CF_8.1_Neg, MATCH(dms_TradingName,dms_CF_TradingName))="Y" | U5: =INDEX(dms_CF_4.4.1_Neg, MATCH(dms_TradingName,dms_CF_TradingName))="Y"
B6: dms_CF_TradingName | C6: JurisdictionList | D6: Sector | E6: Segment | F6: dms_CF_3.6.1 | G6: dms_CF_3.6.5 | H6: dms_CF_3.6.6 | I6: dms_CF_3.6.7.1 | J6: dms_CF_3.6.7.2 | K6: dms_CF_3.6.7.3 | L6: dms_CF_3.6.7.4 | M6: dms_CF_3.6.8 | N6: dms_CF_4.1 | O6: dms_CF_6.6.1 | P6: dms_CF_6.8 | Q6: dms_CF_7.12 | R6: dms_CF_8.1_A | S6: dms_CF_8.1_B | T6: dms_CF_8.1_Neg | U6: dms_CF_4.4.1 | V6: dms_CF_MAIFI_flag | W6: Spare1 | X6: Spare2
B7: ActewAGL Distribution | C7: ACT | D7: Electricity | E7: Distribution | G7: Y | I7: Y | J7: Y | K7: N | L7: Y | M7: N | N7: N | O7: N | P7: Y | Q7: Y | R7: N | S7: Y | T7: Y | U7: N | V7: N | W7: N | X7: N
B8: Ausgrid | C8: NSW | D8: Electricity | E8: Distribution | G8: Y | I8: N | J8: N | K8: N | L8: Y | M8: N | N8: N | O8: N | P8: Y | Q8: Y | R8: N | S8: Y | T8: Y | U8: N | V8: N | W8: N | X8: N
B9: AusNet (D) | C9: Vic | D9: Electricity | E9: Distribution | G9: N | I9: N | J9: N | K9: N | L9: N | M9: N | N9: Y | O9: N | P9: Y | Q9: N | R9: N | S9: N | T9: Y | U9: N | V9: N | W9: N | X9: N
B10: AusNet (T) | C10: Vic | D10: Electricity | E10: Transmission | G10: N | I10: N | J10: N | K10: N | L10: N | M10: N | N10: Y | O10: N | P10: Y | Q10: N | R10: N | S10: N | T10: Y | U10: N | V10: N | W10: N | X10: N
B11: CitiPower | C11: Vic | D11: Electricity | E11: Distribution | G11: N | I11: N | J11: N | K11: N | L11: N | M11: N | N11: Y | O11: N | P11: Y | Q11: N | R11: N | S11: N | T11: Y | U11: N | V11: N | W11: N | X11: N
B12: Directlink | C12: Qld | D12: Electricity | E12: Transmission | G12: N | I12: N | J12: N | K12: N | L12: N | M12: N | N12: Y | O12: N | P12: Y | Q12: N | R12: N | S12: Y | T12: Y | U12: N | V12: N | W12: N | X12: N
B13: ElectraNet | C13: SA | D13: Electricity | E13: Transmission | G13: N | I13: N | J13: N | K13: N | L13: N | M13: N | N13: Y | O13: N | P13: Y | Q13: N | R13: N | S13: Y | T13: Y | U13: N | V13: N | W13: N | X13: N
B14: Endeavour Energy | C14: NSW | D14: Electricity | E14: Distribution | G14: Y | I14: N | J14: N | K14: N | L14: Y | M14: N | N14: N | O14: N | P14: Y | Q14: Y | R14: N | S14: Y | T14: Y | U14: Y | V14: N | W14: N | X14: N
B15: Energex | C15: Qld | D15: Electricity | E15: Distribution | G15: Y | I15: N | J15: N | K15: N | L15: N | M15: N | N15: N | O15: N | P15: Y | Q15: Y | R15: N | S15: Y | T15: Y | U15: Y | V15: N | W15: N | X15: N
B16: Ergon Energy | C16: Qld | D16: Electricity | E16: Distribution | G16: Y | I16: N | J16: N | K16: N | L16: N | M16: N | N16: N | O16: N | P16: Y | Q16: Y | R16: N | S16: Y | T16: Y | U16: N | V16: N | W16: N | X16: N
B17: Essential Energy | C17: NSW | D17: Electricity | E17: Distribution | G17: Y | I17: N | J17: N | K17: N | L17: Y | M17: N | N17: N | O17: N | P17: Y | Q17: Y | R17: N | S17: Y | T17: Y | U17: N | V17: N | W17: N | X17: N
B18: Jemena Electricity | C18: Vic | D18: Electricity | E18: Distribution | G18: N | I18: N | J18: N | K18: N | L18: N | M18: N | N18: Y | O18: N | P18: Y | Q18: N | R18: N | S18: N | T18: Y | U18: N | V18: N | W18: N | X18: N
B19: Murraylink | C19: SA | D19: Electricity | E19: Transmission | G19: N | I19: N | J19: N | K19: N | L19: N | M19: N | N19: Y | O19: N | P19: Y | Q19: N | R19: N | S19: Y | T19: Y | U19: N | V19: N | W19: N | X19: N
B20: Power and Water | C20: NT | D20: Electricity | E20: Distribution | G20: N | I20: N | J20: Y | K20: N | L20: N | M20: Y | N20: Y | O20: Y | P20: Y | Q20: Y | R20: N | S20: Y | T20: Y | U20: N | V20: N | W20: N | X20: N
B21: Powercor Australia | C21: Vic | D21: Electricity | E21: Distribution | G21: N | I21: N | J21: N | K21: N | L21: N | M21: N | N21: Y | O21: N | P21: Y | Q21: N | R21: N | S21: N | T21: Y | U21: N | V21: N | W21: N | X21: N
B22: Powerlink | C22: Qld | D22: Electricity | E22: Transmission | G22: N | I22: N | J22: N | K22: N | L22: N | M22: N | N22: Y | O22: N | P22: Y | Q22: N | R22: N | S22: Y | T22: Y | U22: N | V22: N | W22: N | X22: N
B23: SA Power Networks | C23: SA | D23: Electricity | E23: Distribution | G23: Y | I23: N | J23: N | K23: N | L23: N | M23: N | N23: Y | O23: N | P23: Y | Q23: Y | R23: Y | S23: Y | T23: N | U23: N | V23: N | W23: N | X23: N
B24: TasNetworks (D) | C24: Tas | D24: Electricity | E24: Distribution | G24: Y | I24: N | J24: N | K24: N | L24: N | M24: N | N24: N | O24: N | P24: Y | Q24: Y | R24: N | S24: Y | T24: Y | U24: N | V24: N | W24: N | X24: N
B25: TasNetworks (T) | C25: Tas | D25: Electricity | E25: Transmission | G25: N | I25: N | J25: N | K25: N | L25: N | M25: N | N25: Y | O25: N | P25: Y | Q25: N | R25: N | S25: Y | T25: Y | U25: N | V25: N | W25: N | X25: N
B26: TransGrid | C26: NSW | D26: Electricity | E26: Transmission | G26: N | I26: N | J26: N | K26: N | L26: N | M26: N | N26: Y | O26: N | P26: Y | Q26: N | R26: N | S26: Y | T26: Y | U26: N | V26: N | W26: N | X26: N
B27: United Energy | C27: Vic | D27: Electricity | E27: Distribution | G27: N | I27: N | J27: N | K27: N | L27: N | M27: N | N27: Y | O27: N | P27: Y | Q27: N | R27: N | S27: N | T27: Y | U27: N | V27: N | W27: N | X27: N
B30: Confidential
B31: Amended
B33: Worksheet 6.2 STPIS reliability
B34: Formula | F34: Applied to:
B36: =INDEX(dms_CBD_flag,MATCH(dms_TradingName,dms_TradingName_List))="NO" | F36: $D$11,$D$17,$D$23,$D$33,$D$39,$D$45,$D$55,$D$61,$D$67,$D$77,$D$83,$D$89
B37: =INDEX(dms_Urban_flag,MATCH(dms_TradingName,dms_TradingName_List))="NO" | F37: $D$12,$D$18,$D$24,$D$56,$D$62,$D$78,$D$68,$D$84
B38: =INDEX(dms_ShortRural_flag,MATCH(dms_TradingName,dms_TradingName_List))="NO" | F38: $D$13,$D$19,$D$25,$D$57,$D$63,$D$69,$D$79,$D$85
B39: =INDEX(dms_LongRural_flag,MATCH(dms_TradingName,dms_TradingName_List))="NO" | F39: $D$14,$D$20,$D$26,$D$58,$D$64,$D$65,$D$70,$D$71,$D$80,$D$86
B40: =INDEX(dms_FeederType_5_flag,MATCH(dms_TradingName,dms_TradingName_List))="NO" | F40: $D$87,$D$81,$D$71,$D$65,$D$59,$D$49,$D$43,$D$37,$D$21,$D$15
B41: =dms_MAIFI_Flag="No" | F41: $D$55:$D$72
B44: Business & other details
B45: =(INDEX(dms_Model_Span,MATCH(dms_Model,dms_Model_List))>1)
B46: =(INDEX(dms_Model_Span,MATCH(dms_Model,dms_Model_List))=1)
B49: STYLES IN USE
C50: dms_1
C51: dms_2
C52: dms_3
C53: dms_4
C54: dms_5
C55: dms_NUM
C56: dms_NUM%
C57: dms_Row_Locked
C58: dms_Row1
C59: dms_Row2
C60: dms_T1
C61: dms_T2
C62: dms_BH
C63: dms_BY1
C64: dms_BY2
C65: dms_GH
C66: dms_GY1
C67: dms_GY2
C126: 0
C127: =IFERROR(IF(dms_Model="ARR",(MAX(0,dms_0608_LastRow-dms_0608_OffsetRows)),"not an ARR"),"0") -> 0

Sheet AER NRs (hidden)
B1: AER NAMED RANGES
B3: DROP DOWN SELECTORS USED IN WORKBOOKS
B5: COVER SHEET | C5: dms_DataQuality_List | D5: dms_Confid_status_List
C6: -- select -- | D6: -- select --
C7: Actual | D7: Public
C8: Estimate | D8: Confidential
C9: Consolidated
C12: For all files either AER or business needs to be able to specify the type of submission | D12: For PTRM & RFM templates we must provide a choice in case they change their form of control - otherwise it is drawn from the business specific lookup table above.
C13: dms_SourceList | D13: dms_FormControl_Choices
C14: -- select -- | D14: Revenue cap
C15: After appeal | D15: Revenue yield
C16: Draft decision | D16: Weighted average price cap
C17: Final decision
C18: PTRM update 1
C19: PTRM update 2
C20: PTRM update 3
C21: PTRM update 4
C22: PTRM update 5
C23: PTRM update 6
C24: PTRM update 7
C25: Regulatory proposal
C26: Reporting
C27: Revised regulatory proposal
K30: This is used to create an image to insert on 6.3 STPIS sheet - not for dropdown lists.
B31: CA & RESET RINS DNSP | C31: dms_DNSP_020301_SubstationType | D31: dms_DNSP_020301_ProjectType | E31: dms_DNSP_020301_ProjectTrigger | F31: dms_DNSP_020302_ProjectType | G31: dms_DNSP_020302_ProjectTrigger | H31: dms_STPIS_Exclusion_List | I31: dms_Reason_Interruption | J31: dms_Reason_Interruption_Detailed | K31: Reason for interruption | N31: dms_N0205_AssetType
C32: Subtransmission substation | D32: New substation establishment | E32: Demand growth | F32: New line on new route - single circuit | G32: Demand growth | H32: Weather | I32: Animal | J32: Animal impact | K32: Animal | L32: Animal impact | N32: Cast Iron
C33: Zone substation | D33: Substation upgrade - capacity | E33: Voltage issues | F33: New line on new route - dual circuit | G33: Voltage issues | H33: Equipment failure | I33: Asset failure | J33: Animal nesting/burrowing, etc and other | L33: Animal nesting/burrowing, etc and other | N33: PVC
C34: Switching station | D34: Substation upgrade - voltage | E34: Reactive power issue | F34: New line on new route - other | G34: Reactive power issue | H34: Operational error | I34: Other | J34: Other | L34: Other | N34: Polyamide
C35: Other | D35: Other | E35: Fault level issues | F35: Line rebuild over existing route - single circuit | G35: Fault level issues | H35: Vegetation | I35: Overloads | J35: LV | K35: Asset failure | L35: LV | N35: High density polyethylene (80)
E36: Safety | F36: Line rebuild over existing route - dual circuit | G36: Net market benefit | H36: Animals | I36: Planned | J36: Distribution substation | L36: Distribution substation | N36: High density polyethylene (100)
E37: Environment | F37: Reconductor - Single circuit | G37: Safety | H37: Third party impacts | I37: Network business | J37: HV | L37: HV | N37: High density polyethylene (250)
E38: Other | F38: Reconductor - Dual circuit | G38: Environment | H38: Transmission failure | I38: Third party | J38: Zone substation | L38: Zone substation | N38: High density polyethylene (575)
F39: Reconductor - Other | G39: Other | H39: Load shedding | I39: Unknown | J39: Subtransmission | L39: Subtransmission | N39: Medium density polyethylene
F40: Line upgrade - raising/retensoring | H40: Inter-distributor connection failure | I40: Vegetation | J40: insert description of 'other' | K40: Other | L40: insert description of 'other' | N40: Unprotected steel
F41: Line upgrade - voltage upgrade | H41: Other | I41: Weather | J41: Network error | K41: Overloads | N41: Protected steel
F42: Line upgrade - capacity | I42: 2 - STPIS Exclusion (3.3)(a) | J42: Switching and protection error | K42: Planned | N42: Other
F43: String spare circuit | I43: 3 - STPIS Exclusion (3.3)(a) | J43: Fire | K43: Network business | L43: Network error
F44: Other | I44: 4 - STPIS Exclusion (3.3)(a) | J44: Other | L44: Switching and protection error
I45: 5 - STPIS Exclusion (3.3)(a) | J45: Dig-in | K45: Third party | L45: Fire
I46: 6 - STPIS Exclusion (3.3)(a) | J46: Unauthorised access | L46: Other
I47: 7 - STPIS Exclusion (3.3)(a) | J47: Vehicle impact | L47: Dig-in
J48: Unknown | L48: Unauthorised access
J49: Blow-in/Fall-in - NSP responsibility | L49: Vehicle impact
J50: Grow-in - NSP responsibility | K50: Unknown | L50: Unknown
J51: Blow-in/Fall-in - Other responsible party | K51: Vegetation | L51: Blow-in/Fall-in - NSP responsibility
J52: Grow-in - Other responsible party | L52: Grow-in - NSP responsibility
L53: Blow-in/Fall-in - Other responsible party
L54: Grow-in - Other responsible party
K55: Weather
K56: 2 - STPIS Exclusion (3.3)(a)
K57: 3 - STPIS Exclusion (3.3)(a)
K58: 4 - STPIS Exclusion (3.3)(a)
K59: 5 - STPIS Exclusion (3.3)(a)
K60: 6 - STPIS Exclusion (3.3)(a)
K61: 7 - STPIS Exclusion (3.3)(a)
B64: CA & RESET RINS TNSP | C64: dms_TNSP_0203_SubstationType | D64: dms_TNSP_020301_ProjectType | E64: dms_TNSP_020301_ProjectTrigger | F64: dms_TNSP_020302_ProjectType | G64: dms_TNSP_0203_ProjectTrigger
C65: Terminal station | D65: New substation establishment | E65: Demand growth | F65: New line on new route - single circuit | G65: Demand growth
C66: Switching station | D66: Capacity upgrade | E66: Voltage issues | F66: New line on new route - dual circuit | G66: Voltage issues
C67: Transmission substation | D67: Voltage upgrade | E67: Reactive power issue | F67: New line on new route - other | G67: Reactive power issue
C68: Other | D68: Other | E68: Fault level issues | F68: Line rebuild over existing route - single circuit | G68: Fault level issues
E69: Net market benefit | F69: Line rebuild over existing route - dual circuit | G69: Net market benefit
E70: Safety | F70: Reconductor - Single circuit | G70: Safety
E71: Environment | F71: Reconductor - Dual circuit | G71: Environment
E72: Other | F72: Reconductor - Other | G72: Other
F73: Line upgrade - raising/retensoring
F74: Line upgrade - voltage upgrade
F75: Line upgrade - capacity
F76: String spare circuit
F77: Other
B81: NAMED RANGES USED IN ETL PROCESS
B83: CA & RESET RINS DNSP ONLY | C83: dms_020303_01_UOM | D83: dms_020501_01_UOM | E83: dms_020501_02_UOM | F83: dms_020501_03_UOM | G83: dms_020501_04_UOM | H83: dms_020701_01_UOM | I83: dms_020701_02_UOM | J83: dms_020701_01_Rows | K83: dms_040102_01_UOM | L83: dms_040102_04_UOM | M83: dms_E050201_UOM | N83: dms_E050302_UOM
C84: Circuit line length in km | D84: 0's | E84: 0's | F84: 0's | G84: 0's | H84: km | I84: km | J84: Route line length within zone | K84: 0's | L84: days | M84: per metre per connection | N84: metres per connection
C85: Circuit line length in km | D85: 0's | E85: 0's | F85: 0's | G85: 0's | H85: 0's | I85: 0's | J85: Number of maintenance spans | K85: 0's | L85: 0's | M85: per service per connection | N85: number per connection
C86: Circuit line length in km | D86: MVA added | E86: MVA added | F86: MVA added | G86: MVA added | H86: km | I86: km | J86: Total length of maintenance spans | K86: 0's | L86: $0s | M86: number per connection | N86: number per connection
C87: Circuit line length in km | D87: 0's | E87: 0's | F87: 0's | G87: 0's | H87: km | I87: km | J87: Length of vegetation corridors | K87: $0s | L87: 0's
C88: Number | D88: total spend $0s | E88: total spend $0s | F88: total spend $0s | G88: total spend $0s | H88: 0's | I88: 0's | J88: Average number of trees per maintenance span
C89: Number | D89: net circuit km added | E89: net circuit km added | F89: net circuit km added | G89: net circuit km added | H89: years | I89: years | J89: Average frequency of cutting cycle
C90: Number | D90: total spend $0s | E90: total spend $0s | F90: total spend $0s | G90: total spend $0s
D91: net circuit km added | E91: net circuit km added | F91: net circuit km added | G91: net circuit km added
D92: total spend $0s | E92: total spend $0s | F92: total spend $0s | G92: total spend $0s
D93: 0's | F93: $0s
D94: 0's
D95: 0's
D96: $0s
B99: CA & RESET RINS TNSP ONLY | C99: dms_020701_01_UOM
C100: km
C101: 0's
C102: km
C103: 0's
C104: km
C105: metres
C106: years
B109: CA & RESET RINS DNSP & TNSP | C109: dms_020603_01_UOM
C110: 0's
C111: 0's
C112: 0's
C113: 0's
C114: (per cent)
B117: EB & RESET RINS DNSP ONLY | C117: dms_030601_01_UOM | D117: dms_030601_02_UOM | E117: dms_030701_01_UOM | F117: dms_030702_01_UOM | G117: dms_030703_01_UOM
C118: minutes/customer | D118: minutes/customer | E118: Customer / km | F118: % | G118: km
C119: minutes/customer | D119: minutes/customer | E119: MWh/customer | F119: Number of spans
C120: interruptions/customer | D120: interruptions/customer | E120: kVA / customer | F120: Number of spans
C121: interruptions/customer | D121: interruptions/customer | F121: Number of spans
F122: Number of spans
F123: Years
F124: Years
F125: Trees
F126: Trees
F127: Defects
F128: Defects
F129: Spans
F130: km
F131: Spans
C133: WHEN INSERTING COVER SHEET INTO A TNSP FILE - APPLY THESE NAMED RANGES
B134: EB & RESET RINS TNSP ONLY | C134: dms_030601_01_UOM | E134: dms_030701_01_UOM | F134: dms_030702_01_UOM
C135: % | E135: Number of spans | F135: km
C136: number | E136: Years | F136: %
C137: number | E137: Trees | F137: km
C138: % | E138: Defects | F138: number
C139: number | E139: Number of spans
C140: number | E140: km
C141: % | E141: km
C142: number | E142: Number of spans
C143: number
C144: %
C145: number
C146: %
C147: number
C148: %
C149: number
B151: EB & RESET RINS DNSP & TNSP | C151: dms_EB_RAB_PIT
C152: Beginning of year
C153: End of year
C154: End of year
C155: End of year
C156: End of year
C157: End of year
B159: ARR DNSP ONLY | C159: dms_030605_UOM | D159: dms_03060703_UOM | E159: dms_E020202_UOM | F159: Spare
C160: number | D160: number | E160: Length of mains replaced
C161: number | D161: number | E161: Number of services replaced
C162: number | D162: number
C163: number | D163: number
C164: number | D164: (per cent)
C165: number
C166: number
C167: number
C168: number
C169: number
C170: number
C171: number
C172: (per cent)
C173: (per cent)
B175: RFM | C175: dms_Beg | D175: dms_Mid | E175: dms_End
C176: Beginning of year | D176: Mid year | E176: End of Year
B178: PTRM | C178: dms_PTRM_RAB_PIT | D178: dms_PTRM_TAB_PIT | E178: DMS_Xfactor
C179: Beginning of year | D179: Beginning of year | E179: x factors
C180: End of year | D180: End of year
C181: End of year | D181: End of year
C182: End of year | D182: End of year
C183: End of year
B186: STPIS & MIC NAMED RANGES
B188: These "row descriptions" are the column headings in the various templates but become row descriptions in the ETL process
B190: Table 6.3 sustained interruptions - row descriptions | C190: dms_060301_CustNo_Affected_Row | D190: dms_060301_Avg_Duration_Sustained_Int_Row | E190: dms_060301_Effect_unplanned_SAIDI_Row | F190: dms_060301_Effect_unplanned_SAIFI_Row
C191: Number of customers affected by the interruption | D191: Average duration of sustained customer interruption | E191: Effect on unplanned SAIDI | F191: Effect on unplanned SAIFI
B194: Table 6.1 telephone answering - row descriptions and start date | C194: dms_060101_Rows | D194: dms_060102_Rows | E194: dms_060101_StartDateTxt
C195: Total number of calls (after removing excluded events) | D195: Number of calls answered within 30 seconds (after excluding excluded events) | E195: =dms_060701_StartDateTxt -> 1-Jul-2018
B198: Table 6.8.1 - row descriptions | C198: dms_060801_01_Rows | D198: dms_060801_02_Rows | E198: dms_060801_03_Rows | F198: dms_060801_04_Rows
C199: Number of interruptions | D199: Duration of interruptions | E199: Total unplanned minutes off supply | F199: Effect on unplanned MAIFI
B202: Table 7.9.4 - market impact component - row descriptions | C202: dms_070904_01_Rows | D202: without exclusions | E202: with exclusions
B205: These headings (Lists) are determined from the INDEX/MATCH function on the NSP selected on the Business & other details sheet
B207: Table 6.7.1 - daily performance data - unplanned - MAIFI -- row descriptions and header named range values | C207: dms_060701_Feeder_Header_Lvl4 | D207: =INDEX(dms_FeederName_1,MATCH(dms_TradingName,dms_TradingName_List)) -> Urban | E207: =INDEX(dms_FeederName_1,MATCH(dms_TradingName,dms_TradingName_List)) -> Urban | F207: =INDEX(dms_FeederName_2,MATCH(dms_TradingName,dms_TradingName_List)) -> Short rural | G207: =INDEX(dms_FeederName_2,MATCH(dms_TradingName,dms_TradingName_List)) -> Short rural | H207: =INDEX(dms_FeederName_3,MATCH(dms_TradingName,dms_TradingName_List)) -> Long rural | I207: =INDEX(dms_FeederName_3,MATCH(dms_TradingName,dms_TradingName_List)) -> Long rural | J207: =INDEX(dms_FeederName_4,MATCH(dms_TradingName,dms_TradingName_List)) -> 0 | K207: =INDEX(dms_FeederName_4,MATCH(dms_TradingName,dms_TradingName_List)) -> 0 | L207: =IF((INDEX(dms_FeederName_5,MATCH(dms_TradingName,dms_TradingName_List))=0),"Network",(INDEX(dms_FeederName_5,MATCH(dms_TradingName,dms_TradingName_List)))) -> NO | M207: =IF((INDEX(dms_FeederName_5,MATCH(dms_TradingName,dms_TradingName_List))=0),"Network",(INDEX(dms_FeederName_5,MATCH(dms_TradingName,dms_TradingName_List)))) -> NO | N207: Network | O207: Network
C209: dms_060701_Rows | D209: All events | E209: After removing excluded events | F209: All events | G209: After removing excluded events | H209: All events | I209: After removing excluded events | J209: All events | K209: After removing excluded events | L209: All events | M209: After removing excluded events | N209: All events | O209: After removing excluded events
D210: the number of column headings changes from 10 to 12 depending on the number of feeder categories for the NSP
C212: dms_0603_FeederList | D212: =INDEX(dms_FeederName_1,MATCH(dms_TradingName,dms_TradingName_List)) -> Urban | E212: =INDEX(dms_FeederName_2,MATCH(dms_TradingName,dms_TradingName_List)) -> Short rural | F212: =INDEX(dms_FeederName_3,MATCH(dms_TradingName,dms_TradingName_List)) -> Long rural | G212: =INDEX(dms_FeederName_4,MATCH(dms_TradingName,dms_TradingName_List)) -> 0
B215: Use these to add to specific worksheets in existing files | C215: Use these to add to specific worksheets in existing files
B218: ARRs 6.7 STPIS daily performance | C218: dms_060101_Values | D218: dms_060102_Values | E218: dms_060701_Values
C219: dms_LeapYear
B222: ARR's 6.8 STPIS exclusions | C222: dms_060801_Event_Date | D222: dms_060801_OutageID | E222: dms_060801_FeederID | F222: dms_060801_FeederClass | G222: dms_060801_CauseID | H222: dms_060801_01_Values | I222: dms_060801_02_Values | J222: dms_060801_03_Values | K222: dms_060801_Excl_Cat | L222: dms_060801_04_Values
C223: dms_060801_StartCell
B226: CA 6.3 sustained interruptions | C226: dms_060301_Event_Date | D226: dms_060301_Event_Time | E226: dms_060301_AssetID | F226: dms_060301_FeederClass | G226: dms_060301_Reason | H226: dms_060301_DetailedReason | I226: dms_060301_CustNo_Affected_Values | J226: dms_060301_Avg_Duration_Sustained_Int_Values | K226: dms_060301_Effect_unplanned_SAIDI_Values | L226: dms_060301_Effect_unplanned_SAIFI_Values | M226: dms_060301_MED

Sheet AER lookups (hidden)
B1: AER LOOKUP TABLES
B3: Data in these columns used for data validation and database purposes.
B4: Date last modified: | C4: 2017-01-16 | D4: added (Albury and Victora) for AGN
C5: 2016-10-17 | D5: updated TransGrid's correct legal name, corrected TasNetworks (T) to June financial year
C6: 2017-02-01 | D6: inserted Power and Water, added NRs (dms_FeederCat_1 and dms_FeederCat_2)
C7: 2017-03-03 | D7: inserted AEMO as a business
C8: 2018-03-28 | D8: major changes to accommodate STPIS
C9: Template Version | D9: 5
AA12: Feeder Types | AE12: TasNetworks (D) | AF12: MAIFI flag | AG12: Feeder Names
B14: dms_TradingName_List | C14: dms_TradingNameFull_List | D14: dms_ABN_List | E14: dms_UniqueID_List | F14: dms_JurisdictionList | G14: dms_Sector_List | H14: dms_Segment_List | I14: dms_FormControl_List | J14: dms_RPT_List | K14: dms_RPTMonth_List | L14: dms_CRCPlength_List | M14: dms_FRCPlength_List | N14: dms_PRCPlength_List | O14: dms_663_List | P14: dms_DeterminationRef_List | Q14: dms_Addr1_List | R14: dms_Addr2_List | S14: dms_Suburb_List | T14: dms_State_List | U14: dms_PostCode_List | V14: dms_PAddr1_List | W14: dms_PAddr2_List | X14: dms_PSuburb_List | Y14: dms_PState_List | Z14: dms_PPostCode_List | AA14: dms_CBD_flag | AB14: dms_Urban_flag | AC14: dms_ShortRural_flag | AD14: dms_LongRural_flag | AE14: dms_FeederType_5_flag | AF14: dms_MAIFI_flag_List | AG14: dms_FeederName_1 | AH14: dms_FeederName_2 | AI14: dms_FeederName_3 | AJ14: dms_FeederName_4 | AK14: dms_FeederName_5 | AL14: dms_Public_Lighting_List | AM14: Name
B15: AGN (Albury and Victoria) | C15: Australian Gas Networks Limited (reporting data for Albury and Victoria) | D15: 19078551685 | E15: GDDVIC100 | F15: Vic | G15: Gas | H15: Distribution | I15: Tariff cap | J15: Financial | K15: June | L15: 5 | M15: 5 | N15: 5 | O15: x | Q15: Level 6 | R15: 400 King William Street | S15: ADELAIDE | T15: SA | U15: 5000 | V15: PO Box 6468 | W15: Halifax Street | X15: ADELAIDE | Y15: SA | Z15: 5000 | AA15: NO | AB15: NO | AC15: NO | AD15: NO | AE15: NO | AF15: CBD | AG15: Urban | AH15: Short rural | AI15: Long rural | AK15: NO | AL15: AGN (Albury and Victoria) | AM15: AGN (Albury and Victoria)
B16: AGN (Albury) | C16: Australian Gas Networks Limited (reporting data for Albury) | D16: 19078551685 | E16: GDDVIC200 | F16: Vic | G16: Gas | H16: Distribution | I16: Tariff cap | J16: Financial | K16: June | L16: 5 | M16: 5 | N16: 5 | O16: x | Q16: Level 6 | R16: 400 King William Street | S16: ADELAIDE | T16: SA | U16: 5000 | V16: PO Box 6468 | W16: Halifax Street | X16: ADELAIDE | Y16: SA | Z16: 5000 | AA16: NO | AB16: NO | AC16: NO | AD16: NO | AE16: NO | AF16: CBD | AG16: Urban | AH16: Short rural | AI16: Long rural | AK16: NO | AL16: AGN (Albury) | AM16: AGN (Albury)
B17: AGN (SA) | C17: Australian Gas Networks Limited (reporting data for SA) | D17: 19078551685 | E17: GDDSTH100 | F17: SA | G17: Gas | H17: Distribution | I17: Tariff cap | J17: Financial | K17: June | L17: 5 | M17: 5 | N17: 5 | O17: 5 | P17: distribution determination | Q17: Level 6 | R17: 400 King William Street | S17: ADELAIDE | T17: SA | U17: 5000 | V17: PO Box 6468 | W17: Halifax Street | X17: ADELAIDE | Y17: SA | Z17: 5000 | AA17: NO | AB17: NO | AC17: NO | AD17: NO | AE17: NO | AF17: CBD | AG17: Urban | AH17: Short rural | AI17: Long rural | AK17: NO | AL17: AGN (SA) | AM17: AGN (SA)
B18: AGN (Victoria) | C18: Australian Gas Networks Limited (reporting data for Victoria) | D18: 19078551685 | E18: GDDVIC300 | F18: Vic | G18: Gas | H18: Distribution | I18: Tariff cap | J18: Financial | K18: June | L18: 5 | M18: 5 | N18: 5 | O18: x | Q18: Level 6 | R18: 400 King William Street | S18: ADELAIDE | T18: SA | U18: 5000 | V18: PO Box 6468 | W18: Halifax Street | X18: ADELAIDE | Y18: SA | Z18: 5000 | AA18: NO | AB18: NO | AC18: NO | AD18: NO | AE18: NO | AF18: CBD | AG18: Urban | AH18: Short rural | AI18: Long rural | AK18: NO | AL18: AGN (Victoria) | AM18: AGN (Victoria)
B19: Amadeus | C19: APT Pipelines (NT) Pty Ltd | D19: 39009737393 | E19: GTTNTY100 | F19: NT | G19: Gas | H19: Transmission | I19: Tariff cap | J19: Financial | K19: June | L19: 5 | M19: 5 | N19: 5 | O19: x | P19: n/a | Q19: Level 19, HSBC Building | R19: 580 George Street | S19: SYDNEY | T19: NSW | U19: 2000 | V19: Level 19, HSBC Building | W19: 580 George Street | X19: SYDNEY | Y19: NSW | Z19: 2000 | AA19: NO | AB19: NO | AC19: NO | AD19: NO | AE19: NO | AF19: CBD | AG19: Urban | AH19: Short rural | AI19: Long rural | AK19: NO | AL19: Amadeus | AM19: Amadeus
B20: APA GasNet | C20: APA GasNet Australia (Operations) Pty Ltd | D20: 065083009 | E20: GNTNSW100 | F20: Vic | G20: Gas | H20: Transmission | I20: Weighted average price cap | J20: Financial | K20: June | L20: 5 | M20: 5 | N20: 5 | O20: x | Q20: Level 19, HSBC Building | R20: 580 George Street | S20: SYDNEY | T20: NSW | U20: 2000 | V20: PO Box R41 | X20: ROYAL EXCHANGE | Y20: NSW | Z20: 1225 | AA20: Alexandra Curran | AB20: 02 9275 0020 | AC20: alexandra.curran@apa.com.au | AD20: NO | AE20: NO | AF20: NO | AG20: NO | AH20: NO | AI20: - | AJ20: CBD | AK20: Urban | AL20: APA GasNet | AM20: APA GasNet
B21: APA VTS | C21: APA VTS Australia (Operations) Pty Ltd | D21: 65083009 | E21: GTTVIC100 | F21: Vic | G21: Gas | H21: Transmission | I21: Tariff cap | J21: Financial | K21: June | L21: 5 | M21: 5 | N21: 5 | O21: x | Q21: Level 19, HSBC Building | R21: 580 George Street | S21: SYDNEY | T21: NSW | U21: 2000 | V21: PO Box R41 | X21: ROYAL EXCHANGE | Y21: NSW | Z21: 1225 | AA21: NO | AB21: NO | AC21: NO | AD21: NO | AE21: NO | AF21: CBD | AG21: Urban | AH21: Short rural | AI21: Long rural | AK21: NO | AL21: APA VTS | AM21: APA VTS
B22: AusNet (Gas) | C22: AusNet Gas Services | D22: 086015036 | E22: GDDVIC400 | F22: Vic | G22: Gas | H22: Distribution | I22: Tariff cap | J22: Financial | K22: June | L22: 5 | M22: 5 | N22: 5 | O22: - | P22: - | Q22: Level 31 | R22: 2 Southbank Boulevard | S22: SOUTHBANK | T22: Vic | U22: 3008 | Y22: Vic | AA22: NO | AB22: NO | AC22: NO | AD22: NO | AE22: NO | AF22: CBD | AG22: Urban | AH22: Short rural | AI22: Long rural | AK22: NO | AL22: AusNet (Gas) | AM22: AusNet (Gas)
B23: Australian Distribution Co. (Gas) | C23: Australian Gas Distribution Co. | D23: 11222333444 | E23: GDXXX000 | F23: Vic | G23: Gas | H23: Distribution | I23: Tariff cap | J23: Financial | K23: June | L23: 5 | M23: 5 | N23: 5 | O23: - | P23: - | Q23: 123 Straight Street | S23: MELBOURNE | T23: Vic | U23: 3000 | V23: PO Box 123 | X23: MELBOURNE | Y23: Vic | Z23: 3000 | AA23: NO | AB23: NO | AC23: NO | AD23: NO | AE23: NO | AF23: CBD | AG23: Urban | AH23: Short rural | AI23: Long rural | AK23: NO | AL23: Australian Distribution Co. (Gas) | AM23: Australian Distribution Co. (Gas)
B24: Australian Transmission Co. (Gas) | C24: Australian Transmission Co. (Gas) | D24: 11222333444 | E24: GTXXX000 | F24: NSW | G24: Gas | H24: Transmission | I24: Tariff cap | J24: Financial | K24: June | L24: 5 | M24: 5 | N24: 5 | O24: 5 | P24: transmission determination | Q24: 123 Straight Street | S24: SYDNEY | T24: NSW | U24: 2000 | V24: PO Box 123 | X24: SYDNEY | Y24: NSW | Z24: 2000 | AA24: NO | AB24: NO | AC24: NO | AD24: NO | AE24: NO | AF24: CBD | AG24: Urban | AH24: Short rural | AI24: Long rural | AK24: NO | AL24: Australian Transmission Co. (Gas) | AM24: Australian Transmission Co. (Gas)
B25: Evoenergy Gas | C25: Icon Distribution Investments Limited (ABN 83 073 025 224) and Jemena Networks (ACT) Pty Ltd (ABN 24 008 552 663) | D25: 76670568688 | E25: GDDACT100 | F25: ACT | G25: Gas | H25: Distribution | I25: Tariff cap | J25: Financial | K25: June | L25: 5 | M25: 5 | N25: 5 | O25: x | Q25: 40 Bunda Street | S25: CANBERRA | T25: ACT | U25: 2600 | V25: GPO BOX 366 | X25: CANBERRA | Y25: ACT | Z25: 2601 | AA25: NO | AB25: NO | AC25: NO | AD25: NO | AE25: NO | AF25: CBD | AG25: Urban | AH25: Short rural | AI25: Long rural | AK25: NO | AL25: Evoenergy Gas | AM25: Evoenergy Gas
B26: JGN | C26: Jemena Gas Networks (NSW) Ltd | D26: 003 004 322 | E26: GDDNSW100 | F26: NSW | G26: Gas | H26: Distribution | I26: Tariff cap | J26: Financial | K26: June | L26: 5 | M26: 5 | N26: 5 | AA26: NO | AB26: NO | AC26: NO | AD26: NO | AE26: NO | AF26: CBD | AG26: Urban | AH26: Short rural | AI26: Long rural | AK26: NO | AL26: JGN | AM26: JGN
B27: Multinet Gas | C27: Multinet Gas (DB No.1) Pty Ltd (ACN 086 026 986), Multinet Gas (DB No.2) Pty Ltd (ACN 086 230 122) | D27: 086026986 | E27: GDDVIC500 | F27: Vic | G27: Gas | H27: Distribution | I27: Tariff cap | J27: Financial | K27: June | L27: 5 | M27: 5 | N27: 5 | O27: x | Q27: 43-45 Centreway | S27: MT WAVERLEY | T27: Vic | U27: 3149 | Y27: Vic | AA27: NO | AB27: NO | AC27: NO | AD27: NO | AE27: NO | AF27: CBD | AG27: Urban | AH27: Short rural | AI27: Long rural | AK27: NO | AL27: Multinet Gas | AM27: Multinet Gas
B28: Roma to Brisbane Pipeline | C28: APT Petroleum Pipelines Limited t/a Roma to Brisbane Pipeline | D28: 009 737 393 | E28: GTTQLD100 | F28: Qld | G28: Gas | H28: Transmission | I28: Tariff cap | J28: Financial | K28: June | L28: 5 | M28: 5 | N28: 5 | O28: x | P28: n/a | Q28: 580 George Street | S28: SYDNEY | T28: NSW | U28: 2000 | V28: PO Box R41 | X28: ROYAL EXCHANGE | Y28: NSW | Z28: 1225 | AA28: NO | AB28: NO | AC28: NO | AD28: NO | AE28: NO | AF28: CBD | AG28: Urban | AH28: Short rural | AI28: Long rural | AK28: NO | AL28: Roma to Brisbane Pipeline | AM28: Roma to Brisbane Pipeline
B33: The Reg Year Ending (dms_RYE) must be set to the last year of the regulatory period. For forecast data is is usually (FRCP_y5) for actual it is a single year (CRY). For historical actual data the RYE will need to be set manually in the business details sheet by setting the dms_Multiyear_flag to 1 and putting the correct value in 'dms_Specified_FinalYear. See cells C67:C68
B34: dms_Model_List | C34: dms_Model_Name_Format1 | D34: dms_Worksheet_List | E34: dms_Model_Span_List
B35: ARR | C35: Annual Reporting | D35: =IF(dms_MultiYear_ResponseFlag="yes","REGULATORY REPORTING - HISTORICAL DATA","ANNUAL REPORTING") -> REGULATORY REPORTING - HISTORICAL DATA | E35: 1
B36: CA | C36: Category Analysis | D36: =IF(dms_MultiYear_ResponseFlag="yes","NEW HISTORICAL CATEGORY ANALYSIS","CATEGORY ANALYSIS") -> NEW HISTORICAL CATEGORY ANALYSIS | E36: 1
B37: CESS | C37: Capitlal Expenditure | D37: CAPITLAL EXPENDITURE SHARING SCHEMING | E37: 5
B38: CPI | C38: CPI | D38: CPI | E38: 5
B39: EB | C39: Economic Benchmarking | D39: =IF(dms_MultiYear_ResponseFlag="yes","NEW HISTORICAL ECONOMIC BENCHMARKING","ECONOMIC BENCHMARKING") -> NEW HISTORICAL ECONOMIC BENCHMARKING | E39: 1
B40: Pricing | C40: Pricing Proposal | D40: PRICING PROPOSAL | E40: 5
B41: PTRM | C41: Post Tax Revenue Model | D41: POST TAX REVENUE MODEL | E41: 5
B42: Reset | C42: Regulatory Reporting (Reset) | D42: REGULATORY REPORTING STATEMENT | E42: 5
B43: RFM | C43: Roll Forward Model | D43: ROLL FORWARD MODEL | E43: 5
B44: WACC | C44: Weighted Average Cost of Capital | D44: WEIGHTED AVERAGE COST OF CAPITAL | E44: 1
B48: Financial | C48: Calendar | E48: PREVIOUS | G48: CURRENT | I48: FORTHCOMING
B49: 1987-88 | C49: 1988 | D49: PRCP_y1 | E49: =INDEX(INDIRECT(dms_RPT),dms_PRCP_start_row) -> 2008-09 | F49: CRCP_y1 | G49: =INDEX(INDIRECT(dms_RPT),dms_CRCP_start_row) -> 2013-14 | H49: =FRCP_y1 -> 2018-19 | I49: =INDEX(INDIRECT(dms_RPT),dms_FRCP_start_row) -> 2018-19
B50: 1988-89 | C50: 1989 | D50: PRCP_y2 | E50: =INDEX(INDIRECT(dms_RPT),dms_PRCP_start_row+1) -> 2009-10 | F50: CRCP_y2 | G50: =INDEX(INDIRECT(dms_RPT),dms_CRCP_start_row+1) -> 2014-15 | H50: FRCP_y2 | I50: =INDEX(INDIRECT(dms_RPT),dms_FRCP_start_row+1) -> 2019-20
B51: 1989-90 | C51: 1990 | D51: PRCP_y3 | E51: =INDEX(INDIRECT(dms_RPT),dms_PRCP_start_row+2) -> 2010-11 | F51: CRCP_y3 | G51: =INDEX(INDIRECT(dms_RPT),dms_CRCP_start_row+2) -> 2015-16 | H51: FRCP_y3 | I51: =INDEX(INDIRECT(dms_RPT),dms_FRCP_start_row+2) -> 2020-21
B52: 1990-91 | C52: 1991 | D52: PRCP_y4 | E52: =INDEX(INDIRECT(dms_RPT),dms_PRCP_start_row+3) -> 2011-12 | F52: CRCP_y4 | G52: =INDEX(INDIRECT(dms_RPT),dms_CRCP_start_row+3) -> 2016-17 | H52: FRCP_y4 | I52: =INDEX(INDIRECT(dms_RPT),dms_FRCP_start_row+3) -> 2021-22
B53: 1991-92 | C53: 1992 | D53: PRCP_y5 | E53: =INDEX(INDIRECT(dms_RPT),dms_PRCP_start_row+4) -> 2012-13 | F53: CRCP_y5 | G53: =INDEX(INDIRECT(dms_RPT),dms_CRCP_start_row+4) -> 2017-18 | H53: FRCP_y5 | I53: =INDEX(INDIRECT(dms_RPT),dms_FRCP_start_row+4) -> 2022-23
B54: 1992-93 | C54: 1993 | D54: PRCP_y6 | E54: =INDEX(INDIRECT(dms_RPT),dms_PRCP_start_row+5) -> 2013-14 | F54: CRCP_y6 | G54: =INDEX(INDIRECT(dms_RPT),dms_CRCP_start_row+5) -> 2018-19 | H54: FRCP_y6 | I54: =INDEX(INDIRECT(dms_RPT),dms_FRCP_start_row+5) -> 2023-24
B55: 1993-94 | C55: 1994 | D55: PRCP_y7 | E55: =INDEX(INDIRECT(dms_RPT),dms_PRCP_start_row+6) -> 2014-15 | F55: CRCP_y7 | G55: =INDEX(INDIRECT(dms_RPT),dms_CRCP_start_row+6) -> 2019-20 | H55: FRCP_y7 | I55: =INDEX(INDIRECT(dms_RPT),dms_FRCP_start_row+6) -> 2024-25
B56: 1994-95 | C56: 1995 | D56: PRCP_y8 | E56: =INDEX(INDIRECT(dms_RPT),dms_PRCP_start_row+7) -> 2015-16 | F56: CRCP_y8 | G56: =INDEX(INDIRECT(dms_RPT),dms_CRCP_start_row+7) -> 2020-21 | H56: FRCP_y8 | I56: =INDEX(INDIRECT(dms_RPT),dms_FRCP_start_row+7) -> 2025-26
B57: 1995-96 | C57: 1996 | D57: PRCP_y9 | E57: =INDEX(INDIRECT(dms_RPT),dms_PRCP_start_row+8) -> 2016-17 | F57: CRCP_y9 | G57: =INDEX(INDIRECT(dms_RPT),dms_CRCP_start_row+8) -> 2021-22 | H57: FRCP_y9 | I57: =INDEX(INDIRECT(dms_RPT),dms_FRCP_start_row+8) -> 2026-27
B58: 1996-97 | C58: 1997 | D58: PRCP_y10 | E58: =INDEX(INDIRECT(dms_RPT),dms_PRCP_start_row+9) -> 2017-18 | F58: CRCP_y10 | G58: =INDEX(INDIRECT(dms_RPT),dms_CRCP_start_row+9) -> 2022-23 | H58: FRCP_y10 | I58: =INDEX(INDIRECT(dms_RPT),dms_FRCP_start_row+9) -> 2027-28
B59: 1997-98 | C59: 1998 | D59: PRCP_y11 | E59: =INDEX(INDIRECT(dms_RPT),dms_PRCP_start_row+10) -> 2018-19 | F59: CRCP_y11 | G59: =INDEX(INDIRECT(dms_RPT),dms_CRCP_start_row+10) -> 2023-24 | H59: FRCP_y11 | I59: =INDEX(INDIRECT(dms_RPT),dms_FRCP_start_row+10) -> 2028-29
B60: 1998-99 | C60: 1999 | D60: PRCP_y12 | E60: =INDEX(INDIRECT(dms_RPT),dms_PRCP_start_row+11) -> 2019-20 | F60: CRCP_y12 | G60: =INDEX(INDIRECT(dms_RPT),dms_CRCP_start_row+11) -> 2024-25 | H60: FRCP_y12 | I60: =INDEX(INDIRECT(dms_RPT),dms_FRCP_start_row+11) -> 2029-30
B61: 1999-00 | C61: 2000 | D61: PRCP_y13 | E61: =INDEX(INDIRECT(dms_RPT),dms_PRCP_start_row+12) -> 2020-21 | F61: CRCP_y13 | G61: =INDEX(INDIRECT(dms_RPT),dms_CRCP_start_row+12) -> 2025-26 | H61: FRCP_y13 | I61: =INDEX(INDIRECT(dms_RPT),dms_FRCP_start_row+12) -> 2030-31
B62: 2000-01 | C62: 2001 | D62: PRCP_y14 | E62: =INDEX(INDIRECT(dms_RPT),dms_PRCP_start_row+13) -> 2021-22 | F62: CRCP_y14 | G62: =INDEX(INDIRECT(dms_RPT),dms_CRCP_start_row+13) -> 2026-27 | H62: FRCP_y14 | I62: =INDEX(INDIRECT(dms_RPT),dms_FRCP_start_row+13) -> 2031-32
B63: 2001-02 | C63: 2002 | D63: PRCP_y15 | E63: =INDEX(INDIRECT(dms_RPT),dms_PRCP_start_row+14) -> 2022-23 | F63: CRCP_y15 | G63: =INDEX(INDIRECT(dms_RPT),dms_CRCP_start_row+14) -> 2027-28 | H63: FRCP_y15 | I63: =INDEX(INDIRECT(dms_RPT),dms_FRCP_start_row+14) -> 2032-33
B64: 2002-03 | C64: 2003 | D64: PRCP_y16 | E64: =INDEX(INDIRECT(dms_RPT),dms_PRCP_start_row+15) -> 2023-24 | F64: CRCP_y16 | G64: =INDEX(INDIRECT(dms_RPT),dms_CRCP_start_row+15) -> 2028-29 | H64: FRCP_y16 | I64: =INDEX(INDIRECT(dms_RPT),dms_FRCP_start_row+15) -> 2033-34
B65: 2003-04 | C65: 2004
B66: 2004-05 | C66: 2005
B67: 2005-06 | C67: 2006 | E67: CRY - FRY
B68: 2006-07 | C68: 2007 | D68: dms_y1 | E68: =IFERROR(INDEX(INDIRECT(dms_RPT),dms_CRY_start_row),0) -> 2018-19
B69: 2007-08 | C69: 2008 | D69: dms_y2 | E69: =IFERROR(INDEX(INDIRECT(dms_RPT),dms_CRY_start_row+1),0) -> 2019-20
B70: 2008-09 | C70: 2009 | D70: dms_y3 | E70: =IFERROR(INDEX(INDIRECT(dms_RPT),dms_CRY_start_row+2),0) -> 2020-21
B71: 2009-10 | C71: 2010 | D71: dms_y4 | E71: =IFERROR(INDEX(INDIRECT(dms_RPT),dms_CRY_start_row+3),0) -> 2021-22
B72: 2010-11 | C72: 2011 | D72: dms_y5 | E72: =IFERROR(INDEX(INDIRECT(dms_RPT),dms_CRY_start_row+4),0) -> 2022-23
B73: 2011-12 | C73: 2012 | D73: dms_y6 | E73: =IFERROR(INDEX(INDIRECT(dms_RPT),dms_CRY_start_row+5),0) -> 2023-24
B74: 2012-13 | C74: 2013 | D74: dms_y7 | E74: =IFERROR(INDEX(INDIRECT(dms_RPT),dms_CRY_start_row+6),0) -> 2024-25
B75: 2013-14 | C75: 2014 | D75: dms_y8 | E75: =IFERROR(INDEX(INDIRECT(dms_RPT),dms_CRY_start_row+7),0) -> 2025-26
B76: 2014-15 | C76: 2015 | D76: dms_y9 | E76: =IFERROR(INDEX(INDIRECT(dms_RPT),dms_CRY_start_row+8),0) -> 2026-27
B77: 2015-16 | C77: 2016 | D77: dms_y10 | E77: =IFERROR(INDEX(INDIRECT(dms_RPT),dms_CRY_start_row+9),0) -> 2027-28
B78: 2016-17 | C78: 2017 | D78: dms_y11 | E78: =IFERROR(INDEX(INDIRECT(dms_RPT),dms_CRY_start_row+10),0) -> 2028-29
B79: 2017-18 | C79: 2018 | D79: dms_y12 | E79: =IFERROR(INDEX(INDIRECT(dms_RPT),dms_CRY_start_row+11),0) -> 2029-30
B80: 2018-19 | C80: 2019 | D80: dms_y13 | E80: =IFERROR(INDEX(INDIRECT(dms_RPT),dms_CRY_start_row+12),0) -> 2030-31
B81: 2019-20 | C81: 2020 | D81: dms_y14 | E81: =IFERROR(INDEX(INDIRECT(dms_RPT),dms_CRY_start_row+13),0) -> 2031-32
B82: 2020-21 | C82: 2021 | D82: dms_y15 | E82: =IFERROR(INDEX(INDIRECT(dms_RPT),dms_CRY_start_row+14),0) -> 2032-33
B83: 2021-22 | C83: 2022 | D83: dms_y16 | E83: =IFERROR(INDEX(INDIRECT(dms_RPT),dms_CRY_start_row+15),0) -> 2033-34
B84: 2022-23 | C84: 2023
B85: 2023-24 | C85: 2024
B86: 2024-25 | C86: 2025
B87: 2025-26 | C87: 2026
B88: 2026-27 | C88: 2027
B89: 2027-28 | C89: 2028
B90: 2028-29 | C90: 2029
B91: 2029-30 | C91: 2030
B92: 2030-31 | C92: 2031
B93: 2031-32 | C93: 2032
B94: 2032-33 | C94: 2033
B95: 2033-34 | C95: 2034
B96: 2034-35 | C96: 2035
B97: 2035-36 | C97: 2036
B98: 2036-37 | C98: 2037

Sheet AER ETL (hidden)
B1: AER ETL INFORMATION
B3: USES NAMED RANGES FLAG | C3: yes | D3: dms_Defined_Names_Used
B5: IF THIS IS AN ABC RIN - make sure the the named range CRY is applied and the named range dms_dollar_nom_UOM is applied
B6: IF THIS IS A RESET RIN - make sure the named ranges CRY and dms_dollar_nom_UOM are NOT present in the workbook
B7: FOR ABC RINS THAT SPAN MULTIPLE YEARS - make sure MultiYear Flag is set and final year entered as required
B9: Full trading name | C9: =INDEX(dms_TradingNameFull_List,MATCH(dms_TradingName,dms_TradingName_List)) -> Jemena Gas Networks (NSW) Ltd | E9: dms_TradingNameFull
B10: Trading name | C10: =dms_TradingName -> JGN
B11: Unique ID | C11: =INDEX(dms_UniqueID_List,MATCH(dms_TradingName,dms_TradingName_List)) -> GDDNSW100 | D11: dms_UniqueID
A12: Selected here | B12: Model / RIN | C12: ARR | D12: dms_Model
A13: Read from Business & other details | B13: Source | C13: Reporting | D13: dms_Source
B14: Data quality | C14: =dms_Selected_Quality -> Consolidated | D14: dms_DQ_1
B15: Data status | C15: =dms_Selected_Status -> Public | D15: dms_DQ_2
B16: Amendment reason | C16: =dms_Amendment_Text -> . | F16: dms_AmendmentReason
B17: Submission date | C17: =dms_Typed_Submission_Date -> dd/mm/yy | D17: dms_SubmissionDate
A19: Redundant | B19: EBSS - First application of scheme in forthcoming period? | C19: No
A20: Pre-populated from lookup table | B20: Data ingestion data quality | C20: =dms_Selected_Quality -> Consolidated | D20: dms_DataQuality | E20: =IF(dms_DQ_2="Confidential","Consolidated","Public")
B21: Sector | C21: =INDEX(dms_Sector_List,MATCH(dms_TradingName,dms_TradingName_List)) -> Gas | D21: dms_Sector | E21: =INDEX(dms_Sector_List,MATCH(dms_TradingName,dms_TradingName_List))
B22: Segment | C22: =INDEX(dms_Segment_List,MATCH(dms_TradingName,dms_TradingName_List)) -> Distribution | D22: dms_Segment | E22: =INDEX(dms_Segment_List,MATCH(dms_TradingName,dms_TradingName_List))
B23: Regulatory Year Ending | C23: =dms_RYE_result -> 2023 | D23: dms_RYE | E23: =IF(dms_MultiYear_Flag=1,LEFT(dms_Specified_FinalYear,2)&RIGHT(dms_Specified_FinalYear,2),INDEX(dms_RYE_Formula_Result,MATCH(dms_Model,dms_Model_List)))
B24: Reporting Period Type | C24: =INDEX(dms_RPT_List,MATCH(dms_TradingName,dms_TradingName_List)) -> Financial | D24: dms_RPT | E24: =INDEX(dms_RPT_List,MATCH(dms_TradingName,dms_TradingName_List))
B25: EB/CA Unit of Measure for Monetary Values | C25: $0s | D25: dms_dollar_nom_UOM | E25: If the cover sheet is attached to an ABC RIN apply the NAMED RANGE to the cell
B26: Security Classification | C26: Public | D26: dms_Classification | E26: Always Public
B27: Jurisdiction | C27: =INDEX(dms_JurisdictionList,MATCH(dms_TradingName,dms_TradingName_List)) -> NSW | D27: dms_Jurisdiction | E27: =INDEX(dms_JurisdictionList,MATCH(dms_TradingName,dms_TradingName_List))
A28: Relevant for PTRM, RFMs and Reset RINS | B28: $ REAL REFERENCES
B29: Does the named range CRY exist in this file? | C29: =IFERROR("Yes "&CRY,"NO") -> Yes 2018-19
B30: CRY-1 (last full calendar year before CRY) | C30: =IFERROR(IF(dms_RPT="calendar",CRY-1,LEFT(CRY,4)),"CRY not present") -> 2018 | D30: dms_Cal_Year_B4_CRY | E30: '=IF(dms_RPT="financial",VALUE(LEFT(dms_SingleYear_FinalYear_Result,4)),VALUE(LEFT(dms_SingleYear_FinalYear_Result,4)-1))
B31: Dollar $ real month | C31: =INDEX(dms_RPTMonth_List,MATCH(dms_TradingName,dms_TradingName_List)) -> June | D31: dms_RPTMonth | E31: =INDEX(dms_RPTMonth_List,MATCH(dms_TradingName,dms_TradingName_List))
B32: Dollar $ real (the last month before the FRCP_y1) | C32: =IF(dms_SingleYearModel="yes",CONCATENATE(dms_RPTMonth)&" "&VALUE((LEFT(CRY,2))&RIGHT(CRY,2)),CONCATENATE(dms_RPTMonth)&" "&dms_DollarReal_year) -> June 2019 | D32: dms_DollarReal | E32: =IF(SUM(dms_SingleYear_Model)>0,CONCATENATE(dms_RPTMonth)&" "&VALUE((LEFT(CRY,2))&RIGHT(CRY,2)),CONCATENATE(dms_RPTMonth)&" "&VALUE((LEFT(dms_RYE,2)&RIGHT(dms_RYE,2))))
B33: Dollar $ real previous year (PRCP_y5) | C33: =IF(dms_SingleYearModel="yes",CONCATENATE(dms_RPTMonth)&" "&VALUE((LEFT(CRY,2))&RIGHT(CRY,2)),CONCATENATE(dms_RPTMonth)&" "&dms_Previous_DollarReal_year) -> June 2019 | D33: dms_DollarReal_Prev | E33: =IF(SUM(dms_SingleYear_Model)>0,CONCATENATE(dms_RPTMonth)&" "&VALUE(((LEFT(CRY,2))&RIGHT(CRY,2))-1),CONCATENATE(dms_RPTMonth)&" "&VALUE(((LEFT(dms_CRCP_FirstYear_Result,2)&RIGHT(dms_CRCP_FirstYear_Result,2))))-1)
B34: PTRM/ RFMs
B35: Form of control | C35: =INDEX(dms_FormControl_List,MATCH(dms_TradingName,dms_TradingName_List)) -> Tariff cap | D35: dms_FormControl | E35: =INDEX(dms_FormControl_List,MATCH(dms_TradingName,dms_TradingName_List))
A36: All potential values for Regulatory Years or RYEs as calculated | B36: This block works out the various RYE's for ALL RIN types and MODELS
B37: dms_start_year | C37: =FRCP_y1 -> 2018-19 | D37: FRCP_y1 from cover sheet
B38: dms_CRY_start_year | C38: =IFERROR(CRY,CRCP_y4) -> 2018-19
B39: dms_CRY_start_row | C39: =IFERROR(MATCH(dms_CRY_start_year,INDIRECT(dms_RPT),0),0) -> 32
B40: dms_FRCP_start_row | C40: =MATCH(dms_start_year,INDIRECT(dms_RPT),0) -> 32 | D40: Uses FRCP_y1 as a start reference
B41: dms_CRCP_start_row | C41: =dms_FRCP_start_row-dms_CRCPlength_Num -> 27 | D41: Uses the value in dms_CRCPlength_Num
B42: dms_PRCP_start_row | C42: =dms_FRCP_start_row-dms_CRCPlength_Num-dms_PRCPlength_Num -> 22 | D42: Uses the value in dms_CRCPlength_Num and dms_PRCPlength_Num
B43: dms_RYE_start_row | C43: =dms_FRCP_start_row+(dms_FRCPlength_Num-1) -> 36 | D43: Uses the value in dms_FRCPlength_Num-1
B44: FRCP_start_year | C44: =INDEX(INDIRECT(dms_RPT),dms_FRCP_start_row) -> 2018-19 | D44: Converts the FRCP start row to display the year
B45: CRCP_start_year | C45: =INDEX(INDIRECT(dms_RPT),dms_CRCP_start_row) -> 2013-14 | D45: Converts the CRCP start row to display the year
B46: PRCP_start_year | C46: =INDEX(INDIRECT(dms_RPT),dms_PRCP_start_row) -> 2008-09 | D46: Converts the PRCP start row to display the year
B47: FRCP_final_year | C47: =INDEX(INDIRECT(dms_RPT),dms_FRCP_start_row+dms_FRCPlength_Num-1) -> 2022-23 | D47: Finds the FRCP final year
B48: CRCP_final_year | C48: =INDEX(INDIRECT(dms_RPT),dms_CRCP_start_row+dms_CRCPlength_Num-1) -> 2017-18 | D48: Finds the CRCP final year
B49: PRCP_final_year | C49: =INDEX(INDIRECT(dms_RPT),dms_PRCP_start_row+dms_FRCPlength_Num-1) -> 2012-13 | D49: Finds the PRCP final year
B50: dms_Reset_final_year | C50: =INDEX(INDIRECT(dms_RPT),dms_RYE_start_row) -> 2022-23 | D50: For Resets and PTRM/RFMs (same as FRCP_final_year)
B51: dms_SpecifiedYear_final_year | C51: =FRY -> 2022-23 | D51: FRY from cover sheet
B52: dms_DollarReal_year | C52: =LEFT(CRCP_final_year,2)&RIGHT(CRCP_final_year,2) -> 2018 | D52: Uses the value in CRCP_final_year
B53: dms_Previous_DollarReal_year | C53: =LEFT(PRCP_final_year,2)&RIGHT(PRCP_final_year,2) -> 2013 | D53: Uses the value in PRCP_final_year
B54: dms_CRY_RYE | C54: =IFERROR(LEFT(CRY,2)&RIGHT(CRY,2),0) -> 2019 | D54: For ABC single year RINS
B55: dms_Reset_RYE | C55: =IF(dms_Model_Span>1,IF(dms_Model="RFM",(LEFT(dms_DollarReal_year,2)&RIGHT(dms_DollarReal_year,2)),(LEFT(dms_Reset_final_year,2)&RIGHT(dms_Reset_final_year,2))),0) -> 0 | D55: If model span > 1 then uses dms_Reset_RYE otherwise it's a multi year ABC and uses dms_Specified_RYE
B56: dms_Specified_RYE | C56: =IF(dms_MultiYear_ResponseFlag="Yes",(LEFT(dms_Specified_FinalYear,2)&RIGHT(dms_Specified_FinalYear,2)),0) -> 2023 | D56: If multi year ABC - uses dms_Specified_FinalYear
B57: dms_Model_Span | C57: =INDEX(dms_Model_Span_List,MATCH(dms_Model,dms_Model_List)) -> 1 | D57: A result of 5 is used to signify that it is more than 1 year span
B58: dms_RYE_result | C58: =IF(dms_MultiYear_ResponseFlag="yes",dms_Specified_RYE,(IF(dms_Model_Span>1,dms_Reset_RYE,dms_CRY_RYE))) -> 2023 | D58: Nested IF - feeds into dms_RYE
B59: dms_Reset_Span | C59: =IF(dms_Reset_RYE>0,CONCATENATE(FRCP_y1," to ",FRCP_final_year),0) -> 0 | D59: Reset span of years as text
B60: dms_SpecifiedYear_Span | C60: =IF(dms_Specified_RYE>0,CONCATENATE(CRY," to ",dms_Specified_FinalYear),0) -> 2018-19 to 2022-23 | D60: Multi year ABC span of years as text
B61: dms_Header_Span | C61: =IF(dms_MultiYear_Flag=1,dms_SpecifiedYear_Span,IF(dms_Model_Span>1,dms_Reset_Span,CRY)) -> 2018-19 to 2022-23 | D61: NESTED IF - for Sheet Headers
B62: ABC RINS THAT SPAN MULTIPLE YEARS
B63: This is a multi year ABC RIN? | C63: Yes
C64: =IF(dms_MultiYear_ResponseFlag="No",0,1) -> 1 | D64: dms_MultiYear_Flag | E64: This is set from the answer provided above
C65: =IF(dms_MultiYear_Flag=1,FRY,"not a Multiple year submission") -> 2022-23 | D65: dms_Specified_FinalYear | E65: The result here is returned to dms_CRCP_FinalYear_Result if response to Q in C73 is "yes" and dms_MultiYear_Flag is set to 1
B66: Start year for 5.2 in Multi year ABC RINS | C66: =IFERROR(IF(dms_MultiYear_Flag=1,FRY,CRY),"not an ABC") -> 2022-23 | D66: dms_0502_Inst_Year | E66: =IF(dms_MultiYear_Flag=1,FRY,CRY) | G66: For single year RINS this is CRY - multi year RINS need to start a the end of the span of years (ie. FRY)
B67: WHAT IS THE RYE?
B68: Reg Period Lengths
B69: PRCP length in years | C69: =INDEX(dms_PRCPlength_List,MATCH(dms_TradingName,dms_TradingName_List)) -> 5 | D69: dms_PRCPlength_Num | E69: =INDEX(dms_PRCPlength_List,MATCH(dms_TradingName,dms_TradingName_List))
B70: CRCP length in years | C70: =INDEX(dms_CRCPlength_List,MATCH(dms_TradingName,dms_TradingName_List)) -> 5 | D70: dms_CRCPlength_Num | E70: =INDEX(dms_CRCPlength_List,MATCH(dms_TradingName,dms_TradingName_List))
B71: FRCP length in years | C71: =INDEX(dms_FRCPlength_List,MATCH(dms_TradingName,dms_TradingName_List)) -> 5 | D71: dms_FRCPlength_Num | E71: =INDEX(dms_FRCPlength_List,MATCH(dms_TradingName,dms_TradingName_List))
B72: Single year RIN?
B73: Single Year ABC RIN ? | C73: =IF(dms_Model="EB",1,0) -> 0 | D73: dms_EB
C74: =IF(dms_Model="CA",1,0) -> 0 | D74: dms_CA | E74: =dms_SingleYear_Model
C75: =IF(dms_Model="ARR",1,0) -> 1 | D75: dms_ARR
B76: Is this a single Year ABC RIN? | C76: =IF(SUM(dms_SingleYear_Model)=1,"yes","no") -> yes | D76: dms_SingleYearModel | E76: =IF(SUM(dms_SingleYear_Model)=1,"yes","no")
B77: Single Year Final Year Result | C77: =IF(AND(dms_SingleYearModel="yes",dms_MultiYear_Flag=0),CRY,0) -> 0 | D77: dms_SingleYear_FinalYear_Result | E77: =IFERROR(IF(SUM(dms_SingleYear_Model)<>0,(INDIRECT(dms_SingleYear_FinalYear_Ref)),"not a single year RIN"),"CRY not present")
B78: Multi year RIN?
B80: Multi Year Reset/Model? | C80: =IF(dms_Model_Span>1,"yes","no") -> no
B81: Final year result for Reset/Model | C81: =IF(dms_Model_Span>1,dms_Reset_final_year,0) -> 0 | D81: dms_MultiYear_FinalYear_Result
B83: Multi Year ABC RIN? | C83: =IF(dms_MultiYear_Flag=1,"yes","no") -> yes | D83: dms_MultiYear_ABC_RIN
B84: Final year result for ABC multi year | C84: =IF(dms_MultiYear_Flag=1,C51,0) -> 2022-23
B86: EB RINS
B87: Calendar Year for table 3.6 data | C87: =IFERROR(IF(dms_Segment="Transmission",dms_Cal_Year_B4_CRY,CRY),"CRY not present") -> 2018-19 | D87: dms_0306_Year | E87: =IF(dms_Segment="Transmission",dms_Cal_Year_B4_CRY,CRY)
B88: CA RINS
B89: Find how many rows in tables 6.3 sustained interruptions? | E89: dms_060301_MaxRows only returns a valid value when cover sheet is attached to a CA file
C90: =IF(dms_Model<>"CA","not a CA","Is a CA") -> not a CA | E90: =IF(dms_Model<>"CA","not a CA","Is a CA")
B91: dms_060301_Avg_Duration_Sustained_Int_Values present? | C91: =IFERROR(IF(INDEX(dms_060301_Avg_Duration_Sustained_Int_Values,1,1)<>"","yes","no"),"no") -> no | D91: dms_060301_checkvalue | E91: =IFERROR(IF(INDEX(dms_060301_Avg_Duration_Sustained_Int_Values,1,1)<>"","yes","no"),"no")
C92: =IF(AND(dms_Model="CA",(dms_060301_checkvalue="no")),"error - NR not present","no errors") -> no errors | E92: =IF(AND(dms_Model="CA",(dms_060301_checkvalue="no")),"error - NR not present","no errors")
B93: Table 6.3.1 - last row reference | C93: =IFERROR(IF(dms_Model="CA",LOOKUP(2,1/(dms_060301_Avg_Duration_Sustained_Int_Values<>""),(ROW(dms_060301_Avg_Duration_Sustained_Int_Values))),"not a CA"),"6.3 not present") -> not a CA | D93: dms_060301_LastRow | E93: =IFERROR(IF(dms_Model="CA",LOOKUP(2,1/(dms_060301_Avg_Duration_Sustained_Int_Values<>""),(ROW(dms_060301_Avg_Duration_Sustained_Int_Values))),"not a CA"),"6.3 not present")
B94: Table 6.3.1 - max number rows | C94: =IFERROR(IF(dms_Model="CA",(dms_060301_LastRow-15),"not a CA"),"error") -> not a CA | D94: dms_060301_MaxRows | E94: =IFERROR(IF(dms_Model="CA",(dms_060301_LastRow-15),"not a CA"),"error")
B95: Table 6.6.3 - Public lighting repair - no. business days | C95: =INDEX(dms_663_List,MATCH(dms_TradingName,dms_TradingName_List)) -> 0 | D95: dms_663 | E95: =INDEX(dms_663_List,MATCH(dms_TradingName,dms_TradingName_List))
B96: ARR or RESET RINS
B97: How many rows in tables 6.1 or 6.7? (leap year?) | C97: insert dms_LeapYear NR if required | E97: 'dms_LeapYear is used to determine dms_060701_Max_Rows BUT it is only found on worksheet 6.1 or 6.7 and the date value in the cell is used to determine whether it is a leap year
B98: Is dms_LeapYear named range present? | C98: =IFERROR(IF(dms_LeapYear,"yes"),"no") -> no
B99: Table 6.7.1 - includes a leap year? | C99: =IFERROR(IF(MONTH(DATE(YEAR(dms_LeapYear),2,29))=2,"is a leap year","not a leap year"), "dms_LeapYear not present") -> dms_LeapYear not present | D99: dms_LeapYear_Result | E99: =IFERROR(IF(MONTH(DATE(YEAR(dms_LeapYear),2,29))=2,"is a leap year","not a leap year"),"dms_LeapYear not present")
B100: MaxRows if Reset and leap year | C100: =IF(dms_LeapYear_Result="is a leap year",1827,1826) -> 1826 | D100: dms_060701_Reset_MaxRows | E100: =IF(dms_LeapYear_Result="is a leap year",1827,1826) | H100: number of days present in Reset RIN table
B101: MaxRows if ARR and leap year | C101: =IF(dms_LeapYear_Result="is a leap year",366,365) -> 365 | D101: dms_060701_ARR_MaxRows | E101: =IF(dms_LeapYear_Result="is a leap year",366,365) | H101: number of days present in ARR RIN table
B102: Table 6.7.1 - Max Rows (leap year/ non leap year) | C102: =IF(dms_Model="ARR",dms_060701_ARR_MaxRows,IF(dms_Model="Reset",dms_060701_Reset_MaxRows,"not a relevant RIN type")) -> 365 | D102: dms_060701_MaxRows | E102: =IF(dms_Model="ARR",dms_060701_ARR_MaxRows,IF(dms_Model="Reset",dms_060701_Reset_MaxRows,"not a relevant RIN type"))
B103: How many columns in 6.7? (4 or 5 feeder categories) | C103: =IF(dms_FifthFeeder_flag_NSP="NO","This NSP has only 4 feeder categories","This NSP has 5 feeder categories") -> This NSP has only 4 feeder categories
B104: Table 6.7.1 - Last column (# of feeder categories > 4) | C104: =IF(dms_FifthFeeder_flag_NSP="NO",10,12) -> 10 | D104: dms_060701_MaxCols | E104: =IF(dms_FifthFeeder_flag_NSP="NO",8,10)
B105: Table 6.7.1 - Number of offset rows | C105: =IF(dms_Model="ARR",15,9) -> 15 | D105: dms_060701_OffsetRows | E105: =IF(dms_Model="ARR",15,9)
B106: Start date for telephone answering in 6.1 or 6.7? | E106: Using 060101 as naming standard not 060701 for start dates
B107: Table 6.1.1 and 6.7.1 - Start Date as Text | C107: =IF(dms_SingleYearModel="yes",(CONCATENATE(IF(LEN(CRY)=4,"1-Jan-","1-Jul-"),LEFT(CRY,4))),(CONCATENATE(IF(LEN(PRCP_y4)=4,"1-Jan-","1-Jul-"),LEFT(PRCP_y4,4)))) -> 1-Jul-2018 | D107: dms_060101_StartDateTxt | E107: =IF(SUM(dms_SingleYear_Model)>1,(CONCATENATE(IF(LEN(CRY)=4,"1-Jan-","1-Jul-"),LEFT(CRY,4))),(CONCATENATE(IF(LEN(CRCP_y4)=4,"1-Jan-","1-Jul-"),LEFT(CRCP_y4,4))))
B108: Table 6.1.1 and 6.7.1 - Start Date as Date Value | C108: =DATEVALUE(dms_060701_StartDateTxt) -> 43282 | D108: dms_060101_StartDateVal | E108: =DATEVALUE(dms_060701_StartDateTxt)
B109: ARRs
B110: How many rows in table 6.8? | C110: insert dms_060801_StartCell NR if required | E110: dms_060801_StartCell is only found on worksheet 6.8 and is used to determine the starting date for the date range
B111: Is dms_060801_StartCell named range present? | C111: yes | E111: =IFERROR(IF((ROW(dms_060801_StartCell)-1)=1,"yes","yes"),"no")
B112: Table 6.8 - Number of offset rows | C112: 12 | D112: dms_0608_OffsetRows | E112: =IFERROR(IF(dms_Model="ARR",(ROW(dms_060801_StartCell)-1),"not an ARR"),"6.8 error")
B113: Table 6.8 - Last row | C113: 0 | D113: dms_0608_LastRow | E113: =IFERROR(IF(dms_060801_StartCell<>"",IF(dms_Model="ARR",(LOOKUP(2,1/(dms_060801_01_Values<>""),(ROW(dms_060801_01_Values)))),"not an ARR"),0),"0")
B114: Table 6.8 - MaxRows | C114: =IFERROR(IF(dms_Model="ARR",(MAX(0,dms_0608_LastRow-dms_0608_OffsetRows)),"not an ARR"),"0") -> 0 | D114: dms_060801_MaxRows | E114: =IFERROR(IF(dms_Model="ARR",(MAX(0,dms_0608_LastRow-dms_0608_OffsetRows)),"not an ARR"),"0")
B115: TNSP RESET RINS
B116: Table 7.9.4 only appears in TNSPs Reset RIN
B117: Table 7.9.4 - first year | C117: =LEFT(PRCP_y3,4) -> 2010 | D117: dms_070904_Start_Year | E117: =LEFT(PRCP_y3,4)
B119: MISC
B120: Distribution Determination Reference | C120: =INDEX(dms_DeterminationRef_List,MATCH(dms_TradingName,dms_TradingName_List)) -> 0 | D120: dms_DeterminationRef
B121: Public lighting NSP? | C121: =INDEX(dms_Public_Lighting_List,MATCH(dms_TradingName,dms_TradingName_List)) -> JGN | D121: dms_Public_Lighting | E121: =INDEX(dms_Public_Lighting_List,MATCH(dms_TradingName,dms_TradingName_List))
B122: CBD Feeder for this business | C122: =INDEX(dms_CBD_flag,MATCH(dms_TradingName,dms_TradingName_List)) -> NO | D122: dms_CBD_flag_NSP
B123: Urban Feeder for this business | C123: =INDEX(dms_Urban_flag,MATCH(dms_TradingName,dms_TradingName_List)) -> NO | D123: dms_Urban_flag_NSP
B124: Short rural Feeder for this business | C124: =INDEX(dms_ShortRural_flag,MATCH(dms_TradingName,dms_TradingName_List)) -> NO | D124: dms_ShortRural_flag_NSP
B125: Long rural Feeder for this business | C125: =INDEX(dms_LongRural_flag,MATCH(dms_TradingName,dms_TradingName_List)) -> NO | D125: dms_LongRural_flag_NSP
B126: Fifth Feeder Category (eg. TasNetworks (D)) | C126: =INDEX(dms_FeederType_5_flag,MATCH(dms_TradingName,dms_TradingName_List)) -> NO | D126: dms_FifthFeeder_flag_NSP | E126: =INDEX(dms_FeederType_5_flag,MATCH(dms_TradingName,dms_TradingName_List))
B128: DISCARD FILES
B129: discard this record? | C129: NO | D129: dms_DISCARD | E129: If record is to be discarded from DB set this flag to YES
B131: SUBSET FILES
B132: Is this Submission File a Subset File | C132: NO | D132: dms_Partial
B135: REGULATORY YEARS FOR MULTI RYE SUBMISSIONS
B136: Multiple RYE flag | C136: YES | D136: dms_Multi_RYE_flag
C137: Manually specify RYE | D137: Named ranges to apply
C138: 2015 | D138: dms_RYE_01
C139: 2016 | D139: dms_RYE_02
C140: 2017 | D140: dms_RYE_03
C141: 2018 | D141: dms_RYE_04
C142: 2019 | D142: dms_RYE_05
C143: 2020 | D143: dms_RYE_06
C144: 2021 | D144: dms_RYE_07
C145: 2022 | D145: dms_RYE_08
C146: 2023 | D146: dms_RYE_09
